Workbook

Sheet 表紙
S1: ２０２３年１１月１日 現在
C7: 折込広告部数表 （新聞折込 / くるみる / Otona＋ / assh・n-assh・ミニックポスティング）
K23: 【 納品先 】
K24: ＜下越地区＞ | L24: 流通本社 〒950-1125 新潟市西区流通3-1-1
N25: TEL 025-233-3500 FAX 025-233-3600
K26: ＜中越地区＞ | L26: 長岡折込センター 〒940-2117 長岡市石動南町10-2
E27: 【 お問合せ先 】 | N27: TEL 0258-47-4646 FAX 0258-47-4648
E28: 黒埼本社 | F28: 〒950-1179 新潟市西区善久772-2 | L28: 柏崎営業所 〒945-0026 柏崎市藤元町14-7
G29: TEL ０２５-３８３-８００８ | N29: TEL 0257-22-5212 FAX 0257-24-8590
G30: FAX ０２５-３８３-８００７ | K30: ＜上越地区＞ | L30: 高田営業所 〒943-0823 上越市高土町1-6-4
N31: TEL 025-522-2220 FAX 025-523-2950

Sheet ご案内

Sheet 新潟市
BI1: ='表紙 '!S1 -> ２０２３年１１月１日 現在
A2: 折込日 | M2: スポンサー名 | AD2: サイズ | AI2: チラシ内容・タイトル詳細 | AX2: 朝刊 小計 | BE2: Otona＋ 小計 | BL2: ページ枚数
A3: 2023/--/-- | AB3: 様 | AX3: =BY42+CG42 -> 0 | BE3: =AI42 -> 0 | BL3: =AX3+AX5+BE3+BE5 -> 0
A4: assh ポスティング日 | M4: ご請求先名 | AD4: ガタチラ 掲載 | AX4: くるみる 小計 | BE4: assh 小計 | BL4: 総枚数 | BU4: チラシコード
A5: 2023/--/-- | AB5: 様 | AX5: =CA42 -> 0 | BE5: =AC42 -> 0 | BL5: =BL3+下越1!BL3+下越２!BL3+中越1!BP3+中越２!BL3+上越1!BL3+上越２!BL3 -> 0 | BU5: =VLOOKUP(AD3,折込指示!$D$2:$E$23,2,FALSE) -> 
A7: 01 | B7: 新潟日報 | Z7: ポスティング（assh） | AF7: Otona+ | AL7: 備考 | AX7: 中央紙 | BI7: 備考 | BU7: 朝刊 | CA7: くるみる | CB7: assh | CC7: otona | CE7: 中央紙 朝刊
B8: 販売店名 | E8: 取扱い紙 | H8: 朝刊＋くるみる | K8: 配布数 | N8: 朝刊扱数 | Q8: 配布数 | T8: 朝刊数 | W8: くるみる数 | Z8: 部数 | AC8: 配布数 | AF8: 部数 | AI8: 配布数 | AX8: 販売店名 | BA8: 取扱い紙 | BC8: 部数 | BF8: 配布数 | BU8: 販売店名 | BV8: E | BW8: 朝刊1 | BX8: 朝刊２ | BY8: 部 | BZ8: 指示 | CA8: 部 | CB8: 部 | CC8: 部 | CE8: 販売店名 | CF8: E | CG8: 部 | CH8: 指示
A9: 新潟市 | B9: 万代 | E9: 新アマ日 | H9: =N9+W9 -> 3860 | N9: 3500 | T9: =IF(K9="","",IF(K9<=W9,K9,K9-W9)) ->  | W9: 360 | Z9: 2700 | AF9: 520 | AX9: 本町 | BA9: ヨサ日 | BC9: 850 | BU9: 万代 | BV9: 10101 | BW9: =Q9 -> 0 | BX9: =T9 ->  | BY9: =SUM(BW9:BX9) -> 0 | BZ9: =AL9 -> 0 | CA9: =IF($K9>$W9,$W9,"") ->  | CB9: =AC9 -> 0 | CC9: =AI9 -> 0 | CE9: 本町 | CF9: 210167 | CG9: =BF9 -> 0 | CH9: =BI9 -> 0
B10: 駅南 | E10: 新アマ日 | H10: 5190 | N10: 4600 | T10: =IF(K10="","",IF(K10<=W10,K10,K10-W10)) ->  | W10: 590 | Z10: 7400 | AF10: 660 | AX10: 中央 | BA10: ヨサ日 | BC10: 1530 | BU10: 駅南 | BV10: 10102 | BW10: 0 | BY10: =SUM(BW10:BX10) -> 0 | BZ10: =AL10 -> 0 | CA10: =IF($K10>$W10,$W10,"") ->  | CB10: 0 | CC10: 0 | CE10: 中央 | CF10: 210168 | CG10: 0 | CH10: 0
B11: 木戸 | E11: 新アマ日 | H11: 5570 | N11: 4900 | W11: 670 | Z11: 6050 | AF11: 670 | AX11: 小針 | BA11: ヨサ日 | BC11: 1070 | BU11: 木戸 | BV11: 10103 | BW11: 0 | BY11: =SUM(BW11:BX11) -> 0 | BZ11: =AL11 -> 0 | CB11: 0 | CC11: 0 | CE11: 小針 | CF11: 210169 | CG11: 0 | CH11: 0
B12: 石山東 | E12: 新アマ日 | H12: 6850 | N12: 5800 | W12: 1050 | Z12: 5250 | AF12: 640 | AX12: 寺尾 | BA12: ヨサ日 | BC12: 950 | BU12: 石山東 | BV12: 10105 | BW12: 0 | BY12: 0 | BZ12: =AL12 -> 0 | CB12: 0 | CC12: 0 | CE12: 寺尾 | CF12: 210170 | CG12: 0 | CH12: 0
B13: 山ノ下 | E13: 新アマ日 | H13: 4550 | N13: 4000 | W13: 550 | Z13: 3650 | AF13: 650 | AX13: 内野 | BA13: ヨサ日 | BC13: 1000 | BU13: 山ノ下 | BV13: 10107 | BW13: 0 | BY13: 0 | BZ13: =AL13 -> 0 | CB13: 0 | CC13: 0 | CE13: 内野 | CF13: 210171 | CG13: 0 | CH13: 0
B14: 物見山 | E14: 新アマ日 | H14: 4180 | N14: 3650 | W14: 530 | Z14: 3500 | AF14: 430 | AX14: 小新黒埼 | BA14: ヨサ日 | BC14: 850 | BU14: 物見山 | BV14: 10108 | BW14: 0 | BY14: 0 | BZ14: =AL14 -> 0 | CB14: 0 | CC14: 0 | CE14: 小新黒埼 | CF14: 210172 | CG14: 0 | CH14: 0
B15: とやの | E15: 新アマ日 | H15: 5550 | N15: 5100 | W15: 450 | Z15: 5800 | AF15: 650 | AX15: 黒埼南 | BA15: ヨサ日 | BC15: 200 | BU15: とやの | BV15: 10109 | BW15: 0 | BY15: 0 | BZ15: =AL15 -> 0 | CB15: 0 | CC15: 0 | CE15: 黒埼南 | CF15: 210179 | CG15: 0 | CH15: 0
B16: 県庁前 | E16: 新アマ日 | H16: 4380 | N16: 4300 | W16: 80 | Z16: 4400 | AF16: 550 | AX16: 万代 | BA16: ヨサ日 | BC16: 1000 | BU16: 県庁前 | BV16: 10111 | BW16: 0 | BY16: 0 | BZ16: 0 | CB16: 0 | CC16: 0 | CE16: 万代 | CF16: 210158 | CG16: 0 | CH16: 0
B17: 愛宕 | E17: 新アマ日 | H17: 5350 | N17: 4950 | W17: 400 | Z17: 3990 | AF17: 690 | AX17: 県庁前 | BA17: ヨサ日 | BC17: 2550 | BU17: 愛宕 | BV17: 10113 | BW17: 0 | BY17: 0 | BZ17: =AL17 -> 0 | CB17: 0 | CC17: 0 | CE17: 県庁前 | CF17: 210159 | CG17: 0 | CH17: 0
B18: 河渡 | E18: 新アマ日 | H18: 5000 | N18: 4800 | W18: 200 | Z18: 4450 | AF18: 450 | AX18: 駅南東 | BA18: ヨサ日 | BC18: 1550 | BU18: 河渡 | BV18: 10114 | BW18: 0 | BY18: 0 | BZ18: 0 | CB18: 0 | CC18: 0 | CE18: 駅南東 | CF18: 210160 | CG18: 0 | CH18: 0
B19: 牡丹山 | E19: 新アマ日 | H19: 2070 | N19: 1870 | W19: 200 | Z19: 1250 | AF19: 180 | AX19: 山木戸 | BA19: ヨサ日 | BC19: 1230 | BU19: 牡丹山 | BV19: 10115 | BW19: 0 | BY19: 0 | BZ19: 0 | CB19: 0 | CC19: 0 | CE19: 山木戸 | CF19: 210162 | CG19: 0 | CH19: 0
B20: 大形 | E20: 新アマ日 | H20: 3400 | N20: 3300 | W20: 100 | Z20: 2900 | AF20: 320 | AX20: 山ノ下 | BA20: ヨサ日 | BC20: 1330 | BU20: 大形 | BV20: 10116 | BW20: 0 | BY20: 0 | BZ20: 0 | CB20: 0 | CC20: 0 | CE20: 山ノ下 | CF20: 210163 | CG20: 0 | CH20: 0
B21: 松浜 | E21: 新アマ日 | H21: 7100 | N21: 6800 | W21: 300 | Z21: 5200 | AF21: 400 | AX21: 松浜 | BA21: ヨサ日 | BC21: 470 | BU21: 松浜 | BV21: 10117 | BW21: 0 | BY21: 0 | BZ21: 0 | CB21: 0 | CC21: 0 | CE21: 松浜 | CF21: 210164 | CG21: 0 | CH21: 0
B22: 新潟南 | E22: 合 | H22: 2930 | N22: 2890 | W22: 40 | Z22: 1460 | AF22: 140 | AX22: 亀田 | BA22: ヨサ日 | BC22: 2050 | BU22: 新潟南 | BV22: 10118 | BW22: 0 | BY22: 0 | BZ22: 0 | CB22: 0 | CC22: 0 | CE22: 亀田 | CF22: 210166 | CG22: 0 | CH22: 0
B23: 姥ケ山 | E23: 新アマ日 | H23: 2850 | N23: 2650 | W23: 200 | Z23: 2250 | AF23: 300 | BU23: 姥ケ山 | BV23: 10119 | BW23: 0 | BY23: 0 | BZ23: 0 | CB23: 0 | CC23: 0 | CG23: 0 | CH23: 0
B24: 山二ツ | E24: 新アマ日 | H24: 2830 | N24: 2750 | W24: 80 | Z24: 850 | AF24: 250 | BU24: 山二ツ | BV24: 10120 | BW24: 0 | BY24: 0 | BZ24: 0 | CB24: 0 | CC24: 0 | CG24: 0 | CH24: 0
B25: 亀田西 | E25: 新アマ日 | H25: 2810 | N25: 2650 | W25: 160 | Z25: 1600 | AF25: 200 | BU25: 亀田西 | BV25: 10122 | BW25: 0 | BY25: 0 | BZ25: 0 | CB25: 0 | CC25: 0 | CG25: 0 | CH25: 0
B26: 亀田 | E26: 新アマ日 | H26: 4300 | N26: 3800 | W26: 500 | Z26: 3550 | AF26: 280 | BU26: 亀田 | BV26: 10123 | BW26: 0 | BY26: 0 | BZ26: 0 | CB26: 0 | CC26: 0 | CG26: 0 | CH26: 0
B27: 横越 | E27: 新アマ日 | H27: 2280 | N27: 2230 | W27: 50 | Z27: 1200 | AF27: 120 | BU27: 横越 | BV27: 10176 | BW27: 0 | BY27: 0 | BZ27: 0 | CB27: 0 | CC27: 0 | CG27: 0 | CH27: 0
B28: 有明 | E28: 新アマ日 | H28: 6200 | N28: 5600 | W28: 600 | Z28: 5000 | AF28: 1100 | AY28: ■くるみる | BU28: 有明 | BV28: 10177 | BW28: 0 | BY28: 0 | BZ28: 0 | CB28: 0 | CC28: 0 | CG28: 0 | CH28: 0
B29: 小針 | E29: 新アマ日 | H29: 7940 | N29: 7200 | W29: 740 | Z29: 6800 | AF29: 1100 | AY29: 新聞無購読者向け、チラシ宅配サービスです。 | BU29: 小針 | BV29: 10127 | BW29: 0 | BY29: 0 | BZ29: 0 | CB29: 0 | CC29: 0 | CG29: 0 | CH29: 0
B30: 中通 | E30: 新アマ日 | H30: 2720 | N30: 2700 | W30: 20 | Z30: 2800 | AF30: 520 | AY30: 新潟日報販売店が朝刊配達時に、チラシをお届けします。 | BU30: 中通 | BV30: 10128 | BW30: 0 | BY30: 0 | BZ30: 0 | CB30: 0 | CC30: 0 | CG30: 0 | CH30: 0
B31: 本町 | E31: 新アマ日 | H31: 3100 | N31: 2800 | W31: 300 | Z31: 1500 | AF31: 480 | AY31: 新聞折込と合わせてご利用いただくことで、広告効果を高めることができます。 | BU31: 本町 | BV31: 10130 | BW31: 0 | BY31: 0 | BZ31: 0 | CB31: 0 | CC31: 0 | CG31: 0 | CH31: 0
B32: 中央 | E32: 新アマ日 | H32: 3150 | N32: 3100 | W32: 50 | Z32: 2000 | AF32: 480 | BU32: 中央 | BV32: 10131 | BW32: 0 | BY32: 0 | BZ32: 0 | CB32: 0 | CC32: 0 | CG32: 0 | CH32: 0
B33: 真砂 | E33: 新アマ日 | H33: 2300 | N33: 2100 | W33: 200 | Z33: 1650 | AF33: 420 | BU33: 真砂 | BV33: 10133 | BW33: 0 | BY33: 0 | BZ33: 0 | CB33: 0 | CC33: 0 | CG33: 0 | CH33: 0
B34: 寺尾 | E34: 新アマ日 | H34: 6550 | N34: 6340 | W34: 210 | Z34: 3000 | AF34: 950 | AY34: ■ポスティング（assh,n-assh） | BU34: 寺尾 | BV34: 10134 | BW34: 0 | BY34: 0 | BZ34: 0 | CB34: 0 | CC34: 0 | CG34: 0 | CH34: 0
B35: 新大前 | E35: 新アマ日 | H35: 3400 | N35: 3000 | W35: 400 | Z35: 3750 | AF35: 420 | AY35: asshは新潟日報社が制作する生活情報誌です（毎月 第2・第4木曜日 発行）。 | BU35: 新大前 | BV35: 10135 | BW35: 0 | BY35: 0 | BZ35: 0 | CB35: 0 | CC35: 0 | CG35: 0 | CH35: 0
B36: 内野 | E36: 新アマ日 | H36: 4180 | N36: 3730 | W36: 450 | Z36: 2200 | AF36: 340 | AY36: 新聞無購読世帯へ配布する際に、asshにチラシを折り込みポスティングします。 | BU36: 内野 | BV36: 10136 | BW36: 0 | BY36: 0 | BZ36: 0 | CB36: 0 | CC36: 0 | CG36: 0 | CH36: 0
B37: 西内野 | E37: 新アマ日 | H37: 3310 | N37: 3110 | W37: 200 | Z37: 2300 | AF37: 300 | AY37: asshポスティング単独でのご利用も可能ですが、新聞折込と合わせることで、 | BU37: 西内野 | BV37: 10137 | BW37: 0 | BY37: 0 | BZ37: 0 | CB37: 0 | CC37: 0 | CG37: 0 | CH37: 0
B38: 小新 | E38: 新アマ日 | H38: 4620 | N38: 4100 | W38: 520 | Z38: 3550 | AF38: 340 | AY38: ほぼ全世帯をカバーすることができます。 ※一部、配布不可世帯を除きます。 | BU38: 小新 | BV38: 10140 | BW38: 0 | BY38: 0 | BZ38: 0 | CB38: 0 | CC38: 0 | CG38: 0 | CH38: 0
B39: 寺地 | E39: 新アマ日 | H39: 2030 | N39: 1780 | W39: 250 | Z39: 1750 | AF39: 200 | BU39: 寺地 | BV39: 10141 | BW39: 0 | BY39: 0 | BZ39: 0 | CB39: 0 | CC39: 0 | CG39: 0 | CH39: 0
B40: 黒埼 | E40: 新アマ日 | H40: 3640 | N40: 3200 | W40: 440 | Z40: 2050 | AF40: 240 | BU40: 黒埼 | BV40: 10178 | BW40: 0 | BY40: 0 | BZ40: 0 | CB40: 0 | CC40: 0 | CG40: 0 | CH40: 0
B41: 黒埼南 | E41: 新アマ日 | H41: 3520 | N41: 3200 | W41: 320 | Z41: 1300 | AF41: 140 | BU41: 黒埼南 | BV41: 10143 | BW41: 0 | BY41: 0 | BZ41: 0 | CB41: 0 | CC41: 0 | CG41: 0 | CH41: 0
B42: 010 | D42: 小計 | H42: =SUM(H9:J41) -> 137710 | K42: =SUM(K9:M41) -> 0 | N42: =SUM(N9:P41) -> 126500 | Q42: =SUM(Q9:S41) -> 0 | T42: =SUM(T9:V41) -> 0 | W42: =CA42 -> 0 | Z42: =SUM(Z9:AB41) -> 107100 | AC42: =SUM(AC9:AE41) -> 0 | AF42: =SUM(AF9:AH41) -> 15130 | AI42: =SUM(AI9:AK41) -> 0 | AX42: 030 | AZ42: 小計 | BC42: =SUM(BC9:BE22) -> 16630 | BF42: =SUM(BF9:BH41) -> 0 | BW42: =SUM(BW9:BW41) -> 0 | BX42: =SUM(BX9:BX41) -> 0 | BY42: 0 | CA42: =SUM(CA9:CA41) -> 0 | CB42: 0 | CC42: 0 | CG42: =SUM(CG9:CG41) -> 0 | CI42: =SUM(BY42:CH42) -> 0
BY43: =SUM(BY42,CG42) -> 0

Sheet 下越1
BI1: =新潟市!BI1 -> ２０２３年１１月１日 現在
A2: 折込日 | M2: スポンサー名 | AD2: サイズ | AI2: チラシ内容・タイトル詳細 | AX2: 朝刊 小計 | BE2: Otona＋ 小計 | BL2: ページ枚数
A3: =新潟市!A3 -> 2023/--/-- | M3: =新潟市!M3 -> 0 | AB3: 様 | AD3: =新潟市!AD3 -> 0 | AI3: =新潟市!AI3 -> 0 | AX3: =BY49+CG49 -> 0 | BE3: =CC49 -> 0 | BL3: =AX3+AX5+BE3+BE5 -> 0
A4: assh ポスティング日 | M4: ご請求先名 | AD4: ガタチラ 掲載 | AX4: くるみる 小計 | BE4: assh 小計 | BL4: 総枚数
A5: =新潟市!A5 -> 2023/--/-- | M5: =新潟市!M5 -> 0 | AB5: 様 | AD5: =新潟市!AD5 -> 0 | AX5: =CA49 -> 0 | BE5: =CB49 -> 0 | BL5: =新潟市!BL5 -> 0
B7: 新潟日報 | Z7: ポスティング（assh） | AF7: Otona+ | AL7: 備考 | AX7: 中央紙 | BI7: 備考 | BU7: 朝刊 | CA7: くるみる | CB7: assh | CC7: otona | CE7: 中央紙 朝刊
A8: 02 | B8: 販売店名 | E8: 取扱い紙 | H8: 朝刊＋くるみる | K8: 配布数 | N8: 朝刊扱数 | Q8: 配布数 | T8: 朝刊数 | W8: くるみる数 | Z8: 部数 | AC8: 配布数 | AF8: 部数 | AI8: 配布数 | AX8: 販売店名 | BA8: 取扱い紙 | BC8: 部数 | BF8: 配布数 | BU8: 販売店名 | BV8: E | BW8: 朝刊1 | BX8: 朝刊２ | BY8: 部 | BZ8: 指示 | CA8: 部 | CB8: 部 | CC8: 部 | CE8: 販売店名 | CF8: E | CG8: 部 | CH8: 指示
A9: 旧西蒲原郡 | B9: 分水 | E9: 合 | N9: 3350 | AX9: 巻 | BA9: アサ | BC9: 650 | BU9: 分水 | BV9: 20101 | BW9: =Q9 -> 0 | BX9: =T9 -> 0 | BY9: =SUM(BW9:BX9) -> 0 | BZ9: =AL9 -> 0 | CA9: =IF($K9>$W9,$W9,"") ->  | CB9: =AC9 -> 0 | CC9: =AI9 -> 0 | CE9: 巻 | CF9: 20106 | CG9: =BF9 -> 0 | CH9: =BI9 -> 0
B10: 吉田 | E10: 合 | N10: 4600 | AF10: 70 | AX10: 巻 | BA10: ヨ | BC10: 700 | BU10: 吉田 | BV10: 20102 | BW10: 0 | BX10: 0 | BY10: 0 | BZ10: 0 | CB10: 0 | CC10: 0 | CE10: 巻 | CF10: 220107 | CG10: 0 | CH10: =BI10 -> 0
B11: 粟生津 | E11: 合 | N11: 700 | BU11: 粟生津 | BV11: 20104 | BW11: 0 | BX11: 0 | BY11: 0 | BZ11: 0 | CB11: 0 | CC11: 0 | CG11: =BF11 -> 0 | CH11: 0
B12: 巻 | E12: 新マ日 | H12: =N12+W12 -> 6700 | N12: 6350 | T12: =IF(K12="","",IF(K12<=W12,K12,K12-W12)) ->  | W12: 350 | AF12: 380 | BU12: 巻 | BV12: 20105 | BW12: 0 | BY12: 0 | BZ12: 0 | CB12: 0 | CC12: 0 | CG12: 0 | CH12: 0
B13: 岩室 | E13: 新マ日 | H13: =N13+W13 -> 740 | N13: 710 | T13: =IF(K13="","",IF(K13<=W13,K13,K13-W13)) ->  | W13: 30 | AF13: 40 | BU13: 岩室 | BV13: 20108 | BW13: 0 | BY13: 0 | BZ13: 0 | CB13: 0 | CC13: 0 | CG13: 0 | CH13: 0
B14: 西川 | E14: 合 | H14: 4250 | N14: 4050 | W14: 200 | AF14: 200 | BU14: 西川 | BV14: 20109 | BW14: 0 | BY14: 0 | BZ14: 0 | CB14: 0 | CC14: 0 | CG14: 0 | CH14: 0
B15: 中之口 | E15: 合 | N15: 1100 | BU15: 中之口 | BV15: 20110 | BW15: 0 | BX15: 0 | BY15: 0 | BZ15: 0 | CB15: 0 | CC15: 0 | CG15: 0 | CH15: 0
B16: 弥彦 | E16: 合 | H16: =N16+W16 -> 2040 | N16: 1940 | T16: =IF(K16="","",IF(K16<=W16,K16,K16-W16)) ->  | W16: 100 | BU16: 弥彦 | BV16: 20111 | BW16: 0 | BY16: 0 | BZ16: 0 | CB16: 0 | CC16: 0 | CG16: 0 | CH16: 0
B17: 010 | C17: 小計 | E17: =Q17+T17+W17+AC17+AI17+BF17 -> 0 | H17: =SUM(H9:J16) -> 13730 | K17: =SUM(K9:M16) -> 0 | N17: =SUM(N9:P16) -> 22800 | Q17: =SUM(Q9:S16) -> 0 | T17: =SUM(T9:V16) -> 0 | W17: =CA17 -> 0 | AF17: =SUM(AF9:AH16) -> 690 | AI17: =SUM(AI9:AK16) -> 0 | AX17: 小計 | BC17: =SUM(BC9:BE16) -> 1350 | BF17: =SUM(BF9:BH16) -> 0 | BU17: =SUM(BY9:CC16,CG9:CG16) -> 0 | BW17: =SUM(BW9:BW16) -> 0 | BX17: =SUM(BX9:BX16) -> 0 | BY17: 0 | CA17: =SUM(CA9:CA16) -> 0 | CB17: =SUM(CB9:CB16) -> 0 | CC17: 0 | CG17: =SUM(CG9:CG16) -> 0
A18: 旧中蒲原郡・旧新津・五泉市 | B18: 小須戸 | E18: 合 | N18: 3240 | AF18: 70 | BU18: 小須戸 | BV18: 20112 | BW18: 0 | BX18: 0 | BY18: 0 | BZ18: 0 | CB18: 0 | CC18: 0 | CG18: 0 | CH18: 0
B19: 矢代田 | E19: 合 | H19: =N19+W19 -> 990 | N19: 980 | T19: =IF(K19="","",IF(K19<=W19,K19,K19-W19)) ->  | W19: 10 | AF19: 20 | BU19: 矢代田 | BV19: 20113 | BW19: 0 | BY19: 0 | BZ19: 0 | CB19: 0 | CC19: 0 | CG19: 0 | CH19: 0
B20: 村松 | E20: 合 | N20: 3750 | AF20: 180 | BU20: 村松 | BV20: 20114 | BW20: 0 | BX20: 0 | BY20: 0 | BZ20: 0 | CB20: 0 | CC20: 0 | CG20: 0 | CH20: 0
B21: 020 | C21: 小計 | E21: =Q21+T21+W21+AC21+AI21+BF21 -> 0 | H21: =SUM(H18:J20) -> 990 | K21: =SUM(K18:M20) -> 0 | N21: =SUM(N18:P20) -> 7970 | Q21: =SUM(Q18:S20) -> 0 | T21: =SUM(T18:V20) -> 0 | W21: =CA21 -> 0 | AF21: =SUM(AF18:AH20) -> 270 | AI21: =SUM(AI18:AK20) -> 0 | AX21: 小計 | BU21: =SUM(BY18:CC20,CG18:CG20) -> 0 | BW21: =SUM(BW18:BW20) -> 0 | BX21: =SUM(BX18:BX20) -> 0 | BY21: 0 | CA21: =SUM(CA18:CA20) -> 0 | CB21: =SUM(CB18:CB20) -> 0 | CC21: 0 | CG21: =SUM(CG18:CG20) -> 0
B22: 新津 | E22: 合 | H22: =N22+W22 -> 10950 | N22: 10900 | T22: =IF(K22="","",IF(K22<=W22,K22,K22-W22)) ->  | W22: 50 | AF22: 340 | BU22: 新津 | BV22: 20116 | BW22: 0 | BY22: 0 | BZ22: 0 | CB22: 0 | CC22: 0 | CG22: 0 | CH22: 0
B23: 新津・荻川 | E23: 合 | H23: =N23+W23 -> 4650 | N23: 4600 | W23: 50 | AF23: 160 | BU23: 新津・荻川 | BV23: 20181 | BW23: 0 | BY23: 0 | BZ23: 0 | CB23: 0 | CC23: 0 | CG23: 0 | CH23: 0
B24: 030 | C24: 小計 | E24: =Q24+T24+W24+AC24+AI24+BF24 -> 0 | H24: =SUM(H22:J23) -> 15600 | K24: =SUM(K22:M23) -> 0 | N24: =SUM(N22:P23) -> 15500 | Q24: =SUM(Q22:S23) -> 0 | T24: =SUM(T22:V23) -> 0 | W24: =CA24 -> 0 | AF24: =SUM(AF22:AH23) -> 500 | AI24: =SUM(AI22:AK23) -> 0 | AX24: 小計 | BU24: =SUM(BY22:CC23,CG22:CG23) -> 0 | BW24: =SUM(BW22:BW23) -> 0 | BX24: =SUM(BX22:BX23) -> 0 | BY24: 0 | CA24: =SUM(CA22:CA23) -> 0 | CB24: =SUM(CB22:CB23) -> 0 | CC24: 0 | CG24: =SUM(CG22:CG23) -> 0
B25: 五泉 | E25: 合 | N25: 7480 | BU25: 五泉 | BV25: 20117 | BW25: 0 | BX25: 0 | BY25: 0 | BZ25: 0 | CB25: 0 | CC25: 0 | CG25: 0 | CH25: 0
B26: 五泉・馬下 | E26: 合 | N26: 240 | BU26: 五泉・馬下 | BV26: 20119 | BW26: 0 | BX26: 0 | BY26: 0 | BZ26: 0 | CB26: 0 | CC26: 0 | CG26: 0 | CH26: 0
B27: 保田・馬下 | E27: 合 | N27: 150 | BU27: 保田・馬下 | BV27: 20183 | BW27: 0 | BX27: 0 | BY27: 0 | BZ27: 0 | CB27: 0 | CC27: 0 | CG27: 0 | CH27: 0
B28: 040 | C28: 小計 | E28: =Q28+T28+W28+AC28+AI28+BF28 -> 0 | N28: =SUM(N25:P27) -> 7870 | Q28: =SUM(Q25:S27) -> 0 | AX28: 小計 | BU28: =SUM(BY25:CC27,CG25:CG27) -> 0 | BW28: =SUM(BW25:BW27) -> 0 | BX28: =SUM(BX25:BX27) -> 0 | BY28: 0 | CA28: =SUM(CA25:CA27) -> 0 | CB28: =SUM(CB25:CB27) -> 0 | CC28: 0 | CG28: =SUM(CG25:CG27) -> 0
A29: 旧白根市 | B29: 白根 | E29: 新アマ日 | H29: =N29+W29 -> 3470 | N29: 3270 | T29: =IF(K29="","",IF(K29<=W29,K29,K29-W29)) ->  | W29: 200 | AF29: 120 | AX29: 白根 | BA29: ヨサ | BC29: 700 | BU29: 白根 | BV29: 20120 | BW29: 0 | BY29: 0 | BZ29: 0 | CB29: 0 | CC29: 0 | CE29: 白根 | CF29: 220121 | CG29: 0 | CH29: 0
B30: 月潟 | E30: 新アマ日 | H30: =N30+W30 -> 1650 | N30: 1620 | W30: 30 | BU30: 月潟 | BV30: 20122 | BW30: 0 | BY30: 0 | BZ30: 0 | CB30: 0 | CC30: 0 | CG30: 0 | CH30: 0
B31: 新飯田 | E31: 合 | H31: 960 | N31: 950 | W31: 10 | BU31: 新飯田 | BV31: 20123 | BW31: 0 | BY31: 0 | BZ31: 0 | CB31: 0 | CC31: 0 | CG31: 0 | CH31: 0
B32: 050 | C32: 小計 | E32: =Q32+T32+W32+AC32+AI32+BF32 -> 0 | H32: =SUM(H29:J31) -> 6080 | K32: =SUM(K29:M31) -> 0 | N32: =SUM(N29:P31) -> 5840 | Q32: =SUM(Q29:S31) -> 0 | T32: =SUM(T29:V31) -> 0 | W32: =CA32 -> 0 | AF32: =SUM(AF29:AH31) -> 120 | AI32: =SUM(AI29:AK31) -> 0 | AX32: 小計 | BC32: =SUM(BC29:BE31) -> 700 | BF32: =SUM(BF29:BH31) -> 0 | BU32: =SUM(BY29:CC31,CG29:CG31) -> 0 | BW32: =SUM(BW29:BW31) -> 0 | BX32: =SUM(BX29:BX31) -> 0 | BY32: 0 | CA32: =SUM(CA29:CA31) -> 0 | CB32: =SUM(CB29:CB31) -> 0 | CC32: 0 | CG32: =SUM(CG29:CG31) -> 0
A33: 三条市・燕市・加茂市 | B33: 三条北 | E33: 新アマサ日 | N33: 10000 | AF33: 310 | AX33: 三条 | BA33: ヨ | BC33: 5200 | BU33: 三条北 | BV33: 20124 | BW33: 0 | BX33: 0 | BY33: 0 | BZ33: 0 | CB33: 0 | CC33: 0 | CE33: 三条 | CF33: 220129 | CG33: 0 | CH33: 0
B34: 三条南 | E34: 新アマサ日 | N34: 2400 | AF34: 60 | BU34: 三条南 | BV34: 20125 | BW34: 0 | BX34: 0 | BY34: 0 | BZ34: 0 | CB34: 0 | CC34: 0 | CG34: 0 | CH34: 0
B35: 060 | C35: 小計 | E35: =Q35+T35+W35+AC35+AI35+BF35 -> 0 | N35: =SUM(N33:P34) -> 12400 | Q35: =SUM(Q33:S34) -> 0 | AF35: =SUM(AF33:AH34) -> 370 | AI35: =SUM(AI33:AK34) -> 0 | AX35: 小計 | BC35: =SUM(BC33:BE34) -> 5200 | BF35: =SUM(BF33:BH34) -> 0 | BU35: =SUM(BY33:CC34,CG33:CG34) -> 0 | BW35: =SUM(BW33:BW34) -> 0 | BX35: =SUM(BX33:BX34) -> 0 | BY35: =SUM(BY33:BY34) -> 0 | CA35: =SUM(CA33:CA34) -> 0 | CB35: =SUM(CB33:CB34) -> 0 | CC35: =SUM(CC33:CC34) -> 0 | CG35: =SUM(CG33:CG34) -> 0
B36: 燕 | E36: 新アマサ日 | H36: =N36+W36 -> 5850 | N36: 5800 | T36: =IF(K36="","",IF(K36<=W36,K36,K36-W36)) ->  | W36: 50 | AF36: 150 | AX36: 燕 | BA36: ヨ | BC36: 3300 | BU36: 燕 | BV36: 20130 | BW36: 0 | BY36: 0 | BZ36: 0 | CB36: 0 | CC36: 0 | CE36: 燕 | CF36: 220134 | CG36: 0 | CH36: 0
B37: 燕南 | E37: 新アマサ日 | N37: 1050 | AF37: 30 | BU37: 燕南 | BV37: 20131 | BW37: 0 | BX37: 0 | BY37: 0 | BZ37: 0 | CB37: 0 | CC37: 0 | CG37: 0 | CH37: 0
B38: 070 | C38: 小計 | E38: =Q38+T38+W38+AC38+AI38+BF38 -> 0 | H38: =SUM(H36:J37) -> 5850 | K38: =SUM(K36:M37) -> 0 | N38: =SUM(N36:P37) -> 6850 | Q38: =SUM(Q36:S37) -> 0 | T38: =SUM(T36:V37) -> 0 | W38: =CA38 -> 0 | AF38: =SUM(AF36:AH37) -> 180 | AI38: =SUM(AI36:AK37) -> 0 | AX38: 小計 | BC38: =SUM(BC36:BE37) -> 3300 | BF38: =SUM(BF36:BH37) -> 0 | BU38: =SUM(BY36:CC37,CG36:CG37) -> 0 | BW38: =SUM(BW36:BW37) -> 0 | BX38: =SUM(BX36:BX37) -> 0 | BY38: 0 | CA38: =SUM(CA36:CA37) -> 0 | CB38: =SUM(CB36:CB37) -> 0 | CC38: 0 | CG38: =SUM(CG36:CG37) -> 0
B39: 加茂 | E39: 新アマサ日 | H39: =N39+W39 -> 7750 | N39: 7670 | T39: =IF(K39="","",IF(K39<=W39,K39,K39-W39)) ->  | W39: 80 | AF39: 260 | AX39: 加茂 | BA39: ヨ | BC39: 1700 | BU39: 加茂 | BV39: 20135 | BW39: 0 | BY39: 0 | BZ39: 0 | CB39: 0 | CC39: 0 | CE39: 加茂 | CF39: 220137 | CG39: 0 | CH39: 0
B40: 080 | C40: 小計 | E40: =Q40+T40+W40+AC40+AI40+BF40 -> 0 | H40: =SUM(H39) -> 7750 | K40: =SUM(K39) -> 0 | N40: =SUM(N39) -> 7670 | Q40: =SUM(Q39) -> 0 | T40: =SUM(T39) -> 0 | W40: =CA40 -> 0 | AF40: =SUM(AF39) -> 260 | AI40: =SUM(AI39) -> 0 | AX40: 小計 | BC40: =SUM(BC39) -> 1700 | BF40: =SUM(BF39) -> 0 | BU40: =SUM(BY39:CC39,CG39) -> 0 | BW40: =SUM(BW39) -> 0 | BX40: =SUM(BX39) -> 0 | BY40: 0 | CA40: =SUM(CA39) -> 0 | CB40: =SUM(CB39) -> 0 | CC40: 0 | CG40: =SUM(CG39) -> 0
A41: 旧南蒲原郡 | B41: 下田 | E41: 合 | N41: 2050 | BU41: 下田 | BV41: 20139 | BW41: 0 | BX41: 0 | BY41: 0 | BZ41: 0 | CB41: 0 | CC41: 0 | CG41: 0 | CH41: 0
B42: 栄山嵜 | E42: 合 | N42: 1150 | BU42: 栄山嵜 | BV42: 20140 | BW42: 0 | BX42: 0 | BY42: 0 | BZ42: 0 | CB42: 0 | CC42: 0 | CG42: 0 | CH42: 0
B43: 栄吉田 | E43: 合 | N43: 300 | BU43: 栄吉田 | BV43: 20141 | BW43: 0 | BX43: 0 | BY43: 0 | BZ43: 0 | CB43: 0 | CC43: 0 | CG43: 0 | CH43: 0
B44: 帯織 | E44: 合 | N44: 350 | BU44: 帯織 | BV44: 20143 | BW44: 0 | BX44: 0 | BY44: 0 | BZ44: 0 | CB44: 0 | CC44: 0 | CG44: 0 | CH44: 0
B45: 090 | C45: 小計 | E45: =Q45+T45+W45+AC45+AI45+BF45 -> 0 | N45: =SUM(N41:P44) -> 3850 | Q45: =SUM(Q41:S44) -> 0 | AX45: 小計 | BU45: =SUM(BY41:CC44,CG41:CG44) -> 0 | BW45: =SUM(BW41:BW44) -> 0 | BX45: =SUM(BX41:BX44) -> 0 | BY45: 0 | CA45: =SUM(CA41:CA44) -> 0 | CB45: =SUM(CB41:CB44) -> 0 | CC45: 0 | CG45: =SUM(CG41:CG44) -> 0
A46: 旧豊栄市 | B46: 豊栄 | E46: 新アマ日 | H46: =N46+W46 -> 6010 | N46: 5590 | T46: =IF(K46="","",IF(K46<=W46,K46,K46-W46)) ->  | W46: 420 | Z46: 5720 | AF46: 260 | AX46: 豊栄 | BA46: ヨサ日 | BC46: 880 | BU46: 豊栄 | BV46: 20179 | BW46: =Q46 -> 0 | BX46: =T46 ->  | BY46: =SUM(BW46:BX46) -> 0 | BZ46: =AL46 -> 0 | CB46: =AC46 -> 0 | CC46: =AI46 -> 0 | CE46: 豊栄 | CF46: 220145 | CG46: 0 | CH46: 0
B47: 木崎 | E47: 合 | H47: =N47+W47 -> 2390 | N47: 2340 | W47: 50 | Z47: 1200 | AF47: 70 | BU47: 木崎 | BV47: 20146 | BW47: =Q47 -> 0 | BX47: =T47 ->  | BY47: =SUM(BW47:BX47) -> 0 | BZ47: =AL47 -> 0 | CA47: =IF($K47>$W47,$W47,"") ->  | CB47: =AC47 -> 0 | CC47: =AI47 -> 0 | CG47: 0 | CH47: 0
B48: 100 | C48: 小計 | E48: =Q48+T48+W48+AC48+AI48+BF48 -> 0 | H48: =SUM(H46:J47) -> 8400 | K48: =SUM(K46:M47) -> 0 | N48: =SUM(N46:P47) -> 7930 | Q48: =SUM(Q46:S47) -> 0 | T48: =SUM(T46:V47) -> 0 | W48: =CA48 -> 0 | Z48: =SUM(Z46:AB47) -> 6920 | AC48: =SUM(AC46:AE47) -> 0 | AF48: =SUM(AF46:AH47) -> 330 | AI48: =SUM(AI46:AK47) -> 0 | AX48: 小計 | BC48: =SUM(BC46:BE47) -> 880 | BF48: =SUM(BF46:BH47) -> 0 | BU48: =SUM(BY46:CC47,CG46:CG47) -> 0 | BW48: =SUM(BW46:BW47) -> 0 | BX48: =SUM(BX46:BX47) -> 0 | BY48: =SUM(BY46:BY47) -> 0 | CA48: =SUM(CA46:CA47) -> 0 | CB48: =SUM(CB46:CB47) -> 0 | CC48: =SUM(CC46:CC47) -> 0 | CG48: =SUM(CG46:CG47) -> 0
A49: 合計 | E49: =SUM(E48,E45,E40,E38,E35,E32,E28,E24,E21,E17) -> 0 | H49: =SUM(H48,H45,H40,H38,H35,H32,H28,H24,H21,H17) -> 58400 | K49: =SUM(K48,K45,K40,K38,K35,K32,K28,K24,K21,K17) -> 0 | N49: =SUM(N48,N45,N40,N38,N35,N32,N28,N24,N21,N17) -> 98680 | Q49: =SUM(Q48,Q45,Q40,Q38,Q35,Q32,Q28,Q24,Q21,Q17) -> 0 | T49: =SUM(T48,T45,T40,T38,T35,T32,T28,T24,T21,T17) -> 0 | W49: =SUM(W48,W45,W40,W38,W35,W32,W28,W24,W21,W17) -> 0 | Z49: =SUM(Z48,Z45,Z40,Z38,Z35,Z32,Z28,Z24,Z21,Z17) -> 6920 | AC49: =SUM(AC48,AC45,AC40,AC38,AC35,AC32,AC28,AC24,AC21,AC17) -> 0 | AF49: =SUM(AF48,AF45,AF40,AF38,AF35,AF32,AF28,AF24,AF21,AF17) -> 2720 | AI49: =SUM(AI48,AI45,AI40,AI38,AI35,AI32,AI28,AI24,AI21,AI17) -> 0 | AX49: 合計 | BC49: =SUM(BC48,BC45,BC40,BC38,BC35,BC32,BC28,BC24,BC21,BC17) -> 13130 | BF49: =SUM(BF48,BF45,BF40,BF38,BF35,BF32,BF28,BF24,BF21,BF17) -> 0 | BU49: =SUM(BU48,BU45,BU40,BU38,BU35,BU32,BU28,BU24,BU21,BU17) -> 0 | BW49: =SUM(BW48,BW45,BW40,BW38,BW35,BW32,BW28,BW24,BW21,BW17) -> 0 | BX49: =SUM(BX48,BX45,BX40,BX38,BX35,BX32,BX28,BX24,BX21,BX17) -> 0 | BY49: =SUM(BY48,BY45,BY40,BY38,BY35,BY32,BY28,BY24,BY21,BY17) -> 0 | CA49: =SUM(CA48,CA45,CA40,CA38,CA35,CA32,CA28,CA24,CA21,CA17) -> 0 | CB49: =SUM(CB48,CB45,CB40,CB38,CB35,CB32,CB28,CB24,CB21,CB17) -> 0 | CC49: =SUM(CC48,CC45,CC40,CC38,CC35,CC32,CC28,CC24,CC21,CC17) -> 0 | CG49: =SUM(CG48,CG45,CG40,CG38,CG35,CG32,CG28,CG24,CG21,CG17) -> 0 | CI49: =SUM(BY49:CH49) -> 0
AF50: ■Otona+ ※ がある販売店は一部朝刊宅配エリアがございます。 | BY50: =SUM(BY49,CG49) -> 0

Sheet 下越２
BI1: =新潟市!BI1 -> ２０２３年１１月１日 現在
A2: 折込日 | M2: スポンサー名 | AD2: サイズ | AI2: チラシ内容・タイトル詳細 | AX2: 朝刊 小計 | BE2: Otona＋ 小計 | BL2: ページ枚数
A3: =新潟市!A3 -> 2023/--/-- | M3: =新潟市!M3 -> 0 | AB3: 様 | AD3: =新潟市!AD3 -> 0 | AI3: =新潟市!AI3 -> 0 | AX3: =BY53+CG53 -> 0 | BE3: =CC53 -> 0 | BL3: =SUM(AX3,BE3,AX5,BE5) -> 0
A4: assh ポスティング日 | M4: ご請求先名 | AD4: ガタチラ 掲載 | AX4: くるみる 小計 | BE4: assh 小計 | BL4: 総枚数
A5: =新潟市!A5 -> 2023/--/-- | M5: =新潟市!M5 -> 0 | AB5: 様 | AD5: =新潟市!AD5 -> 0 | AX5: =CA53 -> 0 | BE5: =CB53 -> 0 | BL5: =新潟市!BL5 -> 0
A7: 02 | B7: 新潟日報 | Z7: ポスティング（ミニック） | AF7: Otona+ | AL7: 備考 | AX7: 中央紙 | BI7: 備考 | BU7: 朝刊 | CA7: くるみる | CB7: assh | CC7: otona | CE7: 中央紙 朝刊
B8: 販売店名 | E8: 取扱い紙 | H8: 朝刊＋くるみる | K8: 配布数 | N8: 朝刊扱数 | Q8: 配布数 | T8: 朝刊数 | W8: くるみる数 | Z8: 部数 | AC8: 配布数 | AF8: 部数 | AI8: 配布数 | AX8: 販売店名 | BA8: 取扱い紙 | BC8: 部数 | BF8: 配布数 | BU8: 販売店名 | BV8: E | BW8: 朝刊1 | BX8: 朝刊２ | BY8: 部 | BZ8: 指示 | CA8: 部 | CB8: 部 | CC8: 部 | CE8: 販売店名 | CF8: E | CG8: 部 | CH8: 指示
A9: 新発田市 | B9: 新発田西 | E9: 新アマ日 | H9: =N9+W9 -> 10630 | N9: 9900 | T9: =IF(K9="","",IF(K9<=W9,K9,K9-W9)) ->  | W9: 730 | Z9: 10800 | AF9: 360 | AX9: 新発田 | BA9: ヨサ | BC9: 3200 | BU9: 新発田西 | BV9: 20148 | BW9: =Q9 -> 0 | BX9: =T9 ->  | BY9: =SUM(BW9:BX9) -> 0 | BZ9: =AL9 -> 0 | CA9: =IF($K9>$W9,$W9,"") ->  | CB9: =AC9 -> 0 | CC9: =AI9 -> 0 | CE9: 新発田 | CF9: 220152 | CG9: =BF9 -> 0 | CH9: =BI9 -> 0
B10: 新発田東 | E10: 新アマ日 | H10: =N10+W10 -> 10140 | N10: 9600 | T10: =IF(K10="","",IF(K10<=W10,K10,K10-W10)) ->  | W10: 540 | Z10: 7250 | AF10: 310 | BU10: 新発田東 | BV10: 20149 | BW10: =Q10 -> 0 | BX10: =T10 ->  | BY10: =SUM(BW10:BX10) -> 0 | BZ10: =AL10 -> 0 | CA10: =IF($K10>$W10,$W10,"") ->  | CB10: =AC10 -> 0 | CC10: =AI10 -> 0 | CG10: =BF10 -> 0
B11: 月岡 | E11: 合 | H11: 2030 | N11: 2000 | T11: =IF(K11="","",IF(K11<=W11,K11,K11-W11)) ->  | W11: 30 | BU11: 月岡 | BV11: 20153 | BW11: 0 | BY11: 0 | BZ11: 0 | CB11: 0 | CC11: 0 | CG11: 0
B12: ※木崎ミニック | Z12: 120 | BU12: ※木崎ミニック | BV12: 20180 | BW12: 0 | BX12: 0 | BY12: 0 | BZ12: 0 | CB12: 0 | CC12: 0 | CG12: 0
B13: 110 | C13: 小計 | E13: =Q13+T13+W13+AC13+AI13+BF13 -> 0 | H13: =SUM(H9:J12) -> 22800 | K13: =SUM(K9:M12) -> 0 | N13: =SUM(N9:P12) -> 21500 | Q13: =SUM(Q9:S12) -> 0 | T13: =SUM(T9:V12) -> 0 | W13: =CA13 -> 0 | Z13: =SUM(Z9:AB12) -> 18170 | AC13: =SUM(AC9:AE12) -> 0 | AF13: =SUM(AF9:AH12) -> 670 | AI13: =SUM(AI9:AK12) -> 0 | AX13: 小計 | BC13: =SUM(BC9:BE12) -> 3200 | BF13: =SUM(BF9:BH12) -> 0 | BU13: =SUM(BY13,CA13:CC13,CG13) -> 0 | BW13: =SUM(BW9:BW12) -> 0 | BX13: =SUM(BX9:BX12) -> 0 | BY13: 0 | BZ13: 0 | CA13: =SUM(CA9:CA12) -> 0 | CB13: 0 | CC13: 0 | CG13: =SUM(CG9:CG12) -> 0
A14: 旧北蒲原郡 | B14: 中条東 | E14: 新アマ日 | N14: 1900 | AX14: 中条 | BA14: ヨ | BC14: 1000 | BU14: 中条東 | BV14: 20154 | BW14: 0 | BX14: 0 | BY14: 0 | BZ14: 0 | CB14: 0 | CC14: 0 | CE14: 中条 | CF14: 220156 | CG14: 0 | CH14: =BI14 -> 0
B15: 西中条 | E15: 新アマ日 | N15: 1480 | AX15: 水原 | BA15: ヨサ | BC15: 1180 | BU15: 西中条 | BV15: 20155 | BW15: 0 | BX15: 0 | BY15: 0 | BZ15: 0 | CB15: 0 | CC15: 0 | CE15: 水原 | CF15: 220160 | CG15: 0 | CH15: 0
B16: 黒川 | E16: 合 | N16: 2180 | BU16: 黒川 | BV16: 20157 | BW16: 0 | BX16: 0 | BY16: 0 | BZ16: 0 | CB16: 0 | CC16: 0 | CG16: 0
B17: 水原 | E17: 新アマ日 | H17: =N17+W17 -> 6000 | N17: 5800 | T17: =IF(K17="","",IF(K17<=W17,K17,K17-W17)) ->  | W17: 200 | Z17: 100 | AF17: 120 | BU17: 水原 | BV17: 20158 | BW17: 0 | BY17: 0 | BZ17: 0 | CB17: 0 | CC17: 0 | CG17: 0
B18: 保田 | E18: 合 | N18: 2450 | AF18: 110 | BU18: 保田 | BV18: 20161 | BW18: 0 | BX18: 0 | BY18: 0 | BZ18: 0 | CB18: 0 | CC18: 0 | CG18: 0
B19: 120 | C19: 小計 | E19: =Q19+T19+W19+AC19+AI19+BF19 -> 0 | H19: =SUM(H14:J18) -> 6000 | K19: =SUM(K14:M18) -> 0 | N19: =SUM(N14:P18) -> 13810 | Q19: =SUM(Q14:S18) -> 0 | T19: =SUM(T14:V18) -> 0 | W19: =CA19 -> 0 | Z19: =SUM(Z14:AB18) -> 100 | AC19: =SUM(AC14:AE18) -> 0 | AF19: =SUM(AF14:AH18) -> 230 | AI19: =SUM(AI14:AK18) -> 0 | AX19: 小計 | BC19: =SUM(BC14:BE18) -> 2180 | BF19: =SUM(BF14:BH18) -> 0 | BU19: =SUM(BY19,CA19:CC19,CG19) -> 0 | BW19: =SUM(BW14:BW18) -> 0 | BX19: =SUM(BX14:BX18) -> 0 | BY19: 0 | CA19: =SUM(CA14:CA18) -> 0 | CB19: =SUM(CB14:CB18) -> 0 | CC19: 0 | CG19: =SUM(CG14:CG18) -> 0
A20: 村上市 | B20: 村上 | E20: 合 | N20: 7400 | BU20: 村上 | BV20: 20162 | BW20: 0 | BX20: 0 | BY20: 0 | BZ20: 0 | CB20: 0 | CC20: 0 | CG20: 0
B21: 岩船 | E21: 合 | N21: 2280 | BU21: 岩船 | BV21: 20163 | BW21: 0 | BX21: 0 | BY21: 0 | BZ21: 0 | CB21: 0 | CC21: 0 | CG21: 0
B22: 越後早川 | E22: 合 | N22: 320 | BU22: 越後早川 | BV22: 20164 | BW22: 0 | BX22: 0 | BY22: 0 | BZ22: 0 | CB22: 0 | CC22: 0 | CG22: 0
B23: 130 | C23: 小計 | E23: =Q23+T23+W23+AC23+AI23+BF23 -> 0 | N23: =SUM(N20:P22) -> 10000 | Q23: =SUM(Q20:S22) -> 0 | AX23: 小計 | BU23: =SUM(BY23,CA23:CC23,CG23) -> 0 | BW23: =SUM(BW20:BW22) -> 0 | BX23: =SUM(BX20:BX22) -> 0 | BY23: 0 | CA23: =SUM(CA20:CA22) -> 0 | CB23: =SUM(CB20:CB22) -> 0 | CC23: 0 | CG23: =SUM(CG20:CG22) -> 0
A24: 岩船郡 | B24: 坂町 | E24: 合 | N24: 1920 | BU24: 坂町 | BV24: 20165 | BW24: 0 | BX24: 0 | BY24: 0 | BZ24: 0 | CB24: 0 | CC24: 0 | CG24: 0 | CH24: =BI51 -> 0
B25: 関川 | E25: 合 | N25: 1200 | BU25: 関川 | BV25: 20167 | BW25: 0 | BX25: 0 | BY25: 0 | BZ25: 0 | CB25: 0 | CC25: 0 | CG25: 0 | CH25: 0
B26: 府屋 | E26: 合 | N26: 960 | BU26: 府屋 | BV26: 20170 | BW26: 0 | BX26: 0 | BY26: 0 | BZ26: 0 | CB26: 0 | CC26: 0 | CG26: 0 | CH26: =BI54 -> 0
B27: 黒川俣 | E27: 合 | N27: 200 | BU27: 黒川俣 | BV27: 20172 | BW27: 0 | BX27: 0 | BY27: 0 | BZ27: 0 | CB27: 0 | CC27: 0 | CG27: 0 | CH27: =BI53 -> 0
B28: 140 | C28: 小計 | E28: =Q28+T28+W28+AC28+AI28+BF28 -> 0 | N28: =SUM(N24:P27) -> 4280 | Q28: =SUM(Q24:S27) -> 0 | AX28: 小計 | BU28: =SUM(BY28,CA28:CC28,CG28) -> 0 | BW28: =SUM(BW24:BW27) -> 0 | BX28: =SUM(BX24:BX27) -> 0 | BY28: 0 | CA28: =SUM(CA24:CA27) -> 0 | CB28: =SUM(CB24:CB27) -> 0 | CC28: 0 | CG28: =SUM(CG24:CG27) -> 0
A29: 旧東蒲原郡・※山形県 | B29: 津川 | E29: 合 | N29: 1650 | BU29: 津川 | BV29: 20173 | BW29: 0 | BX29: 0 | BY29: 0 | BZ29: 0 | CB29: 0 | CC29: 0 | CG29: 0
B30: 豊実 | E30: 合 | N30: 60 | BU30: 豊実 | BV30: 20174 | BW30: 0 | BX30: 0 | BY30: 0 | BZ30: 0 | CB30: 0 | CC30: 0 | CG30: 0
B31: 日出谷 | E31: 合 | N31: 190 | BU31: 日出谷 | BV31: 20175 | BW31: 0 | BX31: 0 | BY31: 0 | BZ31: 0 | CB31: 0 | CC31: 0 | CG31: 0
B32: 鹿瀬 | E32: 合 | N32: 300 | BU32: 鹿瀬 | BV32: 20176 | BW32: 0 | BX32: 0 | BY32: 0 | BZ32: 0 | CB32: 0 | CC32: 0 | CG32: 0
B33: 白崎 | E33: 合 | N33: 600 | BU33: 白崎 | BV33: 20177 | BW33: 0 | BX33: 0 | BY33: 0 | BZ33: 0 | CB33: 0 | CC33: 0 | CG33: 0
B34: 白崎・五十島 | E34: 合 | N34: 60 | BU34: 白崎・五十島 | BV34: 20178 | BW34: 0 | BX34: 0 | BY34: 0 | BZ34: 0 | CB34: 0 | CC34: 0 | CG34: 0
B35: 保田・五十島 | E35: 合 | N35: 90 | BU35: 保田・五十島 | BV35: 20182 | BW35: 0 | BX35: 0 | BY35: 0 | BZ35: 0 | CB35: 0 | CC35: 0 | CG35: 0
B36: 150 | C36: 小計 | E36: =Q36+T36+W36+AC36+AI36+BF36 -> 0 | N36: =SUM(N29:P35) -> 2950 | Q36: =SUM(Q29:S35) -> 0 | AX36: 小計 | BU36: =SUM(BY36,CA36:CC36,CG36) -> 0 | BW36: =SUM(BW29:BW35) -> 0 | BX36: =SUM(BX29:BX35) -> 0 | BY36: 0 | CA36: =SUM(CA29:CA35) -> 0 | CG36: =SUM(CG29:CG35) -> 0
B37: 小国 | E37: 合 | N37: 2800 | BU37: 小国 | BV37: 20201 | BW37: 0 | BX37: 0 | BY37: 0 | BZ37: 0 | CB37: 0 | CC37: 0 | CG37: 0
B38: 160 | C38: 小計 | E38: =Q38+T38+W38+AC38+AI38+BF38 -> 0 | N38: =SUM(N37) -> 2800 | Q38: =SUM(Q37) -> 0 | AX38: 小計 | BU38: =SUM(BY38,CA38:CC38,CG38) -> 0 | BW38: =SUM(BW37) -> 0 | BX38: =SUM(BX37) -> 0 | BY38: 0 | CA38: =SUM(CA37) -> 0 | CG38: =SUM(CG37) -> 0
A39: 03 | B39: 両津 | E39: 新マ日 | N39: 2280 | AX39: 両津 | BA39: ア | BC39: 680 | BU39: 両津 | BV39: 30101 | BW39: 0 | BX39: 0 | BY39: 0 | BZ39: 0 | CB39: 0 | CC39: 0 | CE39: 両津 | CF39: 30102 | CG39: 0 | CH39: =BI39 -> 0
A40: 旧両津市・旧佐渡郡 | B40: 吉井 | E40: 新マ日 | N40: 180 | AX40: 両津 | BA40: ヨサ | BC40: 860 | BU40: 吉井 | BV40: 30105 | BW40: 0 | BX40: 0 | BY40: 0 | BZ40: 0 | CB40: 0 | CC40: 0 | CE40: 両津 | CF40: 230103 | CG40: 0 | CH40: 0
B41: 010 | C41: 小計 | E41: =Q41+T41+W41+AC41+AI41+BF41 -> 0 | N41: =SUM(N39:P40) -> 2460 | Q41: =SUM(Q39:S40) -> 0 | AX41: 小計 | BC41: =SUM(BC39:BE40) -> 1540 | BF41: =SUM(BF39:BH40) -> 0 | BU41: =SUM(BY41,CA41:CC41,CG41) -> 0 | BW41: =SUM(BW39:BW40) -> 0 | BX41: =SUM(BX39:BX40) -> 0 | BY41: 0 | CA41: =SUM(CA39:CA40) -> 0 | CG41: =SUM(CG39:CG40) -> 0
B42: 真野 | E42: 新サ | N42: 730 | AX42: 真野 | BA42: アマヨサ日 | BC42: 280 | BU42: 真野 | BV42: 30106 | BW42: 0 | BX42: 0 | BY42: 0 | BZ42: 0 | CB42: 0 | CC42: 0 | CE42: 真野 | CF42: 30107 | CG42: 0 | CH42: =BI42 -> 0
B43: 新穂 | E43: 新マサ日 | N43: 700 | AX43: 新穂 | BA43: ア | BC43: 70 | BU43: 新穂 | BV43: 30108 | BW43: 0 | BX43: 0 | BY43: 0 | BZ43: 0 | CB43: 0 | CC43: 0 | CE43: 新穂 | CF43: 30109 | CG43: 0 | CH43: 0
B44: 畑野 | E44: 新 | N44: 700 | AX44: 畑野 | BA44: アマヨサ日 | BC44: 280 | BU44: 畑野 | BV44: 30111 | BW44: 0 | BX44: 0 | BY44: 0 | BZ44: 0 | CB44: 0 | CC44: 0 | CE44: 畑野 | CF44: 30112 | CG44: 0 | CH44: 0
B45: 佐和田 | E45: 新アマ日 | N45: 1500 | AX45: 佐和田 | BA45: ヨサ | BC45: 270 | BU45: 佐和田 | BV45: 30114 | BW45: 0 | BX45: 0 | BY45: 0 | BZ45: 0 | CB45: 0 | CC45: 0 | CE45: 佐和田 | CF45: 230115 | CG45: 0 | CH45: 0
B46: 相川 | E46: 合 | N46: 1000 | AX46: 沢根 | BA46: ヨア | BC46: 50 | BU46: 相川 | BV46: 30110 | BW46: 0 | BX46: 0 | BY46: 0 | BZ46: 0 | CB46: 0 | CC46: 0 | CE46: 沢根 | CF46: 230116 | CG46: 0 | CH46: 0
B47: 金井 | E47: 合 | N47: 870 | AX47: 相川 | BA47: ア | BC47: 130 | BU47: 金井 | BV47: 30121 | BW47: 0 | BX47: 0 | BY47: 0 | BZ47: 0 | CB47: 0 | CC47: 0 | CE47: 相川 | CF47: 30118 | CG47: 0 | CH47: 0
B48: 羽茂 | E48: 合 | N48: 820 | AX48: 相川 | BA48: ヨサ | BC48: 120 | BU48: 羽茂 | BV48: 30122 | BW48: 0 | BX48: 0 | BY48: 0 | BZ48: 0 | CB48: 0 | CC48: 0 | CE48: 相川 | CF48: 230120 | CG48: 0 | CH48: 0
B49: 小木 | E49: 新 | N49: 500 | AX49: 小木 | BA49: アマサ日 | BC49: 160 | BU49: 小木 | BV49: 30124 | BW49: 0 | BX49: 0 | BY49: 0 | BZ49: 0 | CB49: 0 | CC49: 0 | CE49: 小木 | CF49: 30125 | CG49: 0 | CH49: 0
B50: 赤泊 | E50: 合 | N50: 450 | AX50: 小木 | BA50: ヨ | BC50: 150 | BU50: 赤泊 | BV50: 30127 | BW50: 0 | BX50: 0 | BY50: 0 | BZ50: 0 | CB50: 0 | CC50: 0 | CE50: 小木 | CF50: 230126 | CG50: 0 | CH50: 0
B51: 多田 | E51: 合 | N51: 130 | BU51: 多田 | BV51: 30130 | BW51: 0 | BX51: 0 | BY51: 0 | BZ51: 0 | CB51: 0 | CC51: 0 | CG51: 0
B52: 020 | C52: 小計 | E52: =Q52+T52+W52+AC52+AI52+BF52 -> 0 | N52: =SUM(N42:P51) -> 7400 | Q52: =SUM(Q42:S51) -> 0 | AX52: 小計 | BC52: =SUM(BC42:BE51) -> 1510 | BF52: =SUM(BF42:BH51) -> 0 | BU52: =SUM(BY52,CA52:CC52,CG52) -> 0 | BW52: =SUM(BW42:BW51) -> 0 | BX52: =SUM(BX42:BX51) -> 0 | BY52: 0 | CA52: =SUM(CA42:CA51) -> 0 | CB52: =SUM(CB42:CB51) -> 0 | CC52: 0 | CG52: =SUM(CG42:CG51) -> 0
A53: 合計 | E53: =SUM(E52,E41,E38,E36,E28,E23,E19,E13) -> 0 | H53: =SUM(H52,H41,H38,H36,H28,H23,H19,H13) -> 28800 | K53: =SUM(K52,K41,K38,K36,K28,K23,K19,K13) -> 0 | N53: =SUM(N52,N41,N38,N36,N28,N23,N19,N13) -> 65200 | Q53: =SUM(Q52,Q41,Q38,Q36,Q28,Q23,Q19,Q13) -> 0 | T53: =SUM(T52,T41,T38,T36,T28,T23,T19,T13) -> 0 | W53: =SUM(W52,W41,W38,W36,W28,W23,W19,W13) -> 0 | Z53: =SUM(Z52,Z41,Z38,Z36,Z28,Z23,Z19,Z13) -> 18270 | AC53: =SUM(AC52,AC41,AC38,AC36,AC28,AC23,AC19,AC13) -> 0 | AF53: =SUM(AF52,AF41,AF38,AF36,AF28,AF23,AF19,AF13) -> 900 | AI53: =SUM(AI52,AI41,AI38,AI36,AI28,AI23,AI19,AI13) -> 0 | AX53: 合計 | BC53: =SUM(BC52,BC41,BC38,BC36,BC28,BC23,BC19,BC13) -> 8430 | BF53: =SUM(BF52,BF41,BF38,BF36,BF28,BF23,BF19,BF13) -> 0 | BU53: =SUM(BU52,BU41,BU38,BU36,BU28,BU23,BU19,BU13) -> 0 | BW53: =SUM(BW52,BW41,BW38,BW36,BW28,BW23,BW19,BW13) -> 0 | BX53: =SUM(BX52,BX41,BX38,BX36,BX28,BX23,BX19,BX13) -> 0 | BY53: 0 | CA53: =SUM(CA52,CA41,CA38,CA36,CA28,CA23,CA19,CA13) -> 0 | CB53: =SUM(CB52,CB41,CB38,CB36,CB28,CB23,CB19,CB13) -> 0 | CC53: 0 | CG53: =SUM(CG52,CG41,CG38,CG36,CG28,CG23,CG19,CG13) -> 0 | CI53: =SUM(BY53:CH53) -> 0
R54: ■ ポスティング（ミニック） ※ がある販売店はミニックではなくasshとなります。 ■Otona+ ※ がある販売店は一部朝刊宅配エリアがございます。 | BY54: =SUM(BY53,CG53) -> 0

Sheet 中越1
BO1: =新潟市!BI1 -> ２０２３年１１月１日 現在
A2: 折込日 | N2: スポンサー名 | AE2: サイズ | AJ2: チラシ内容・タイトル詳細 | AZ2: 朝刊 小計 | BH2: Otona＋ 小計 | BP2: ページ枚数
A3: =新潟市!A3 -> 2023/--/-- | N3: =新潟市!M3 -> 0 | AC3: 様 | AE3: =新潟市!AD3 -> 0 | AJ3: =新潟市!AI3 -> 0 | AZ3: =CD39+CM39 -> 0 | BH3: =CI39 -> 0 | BP3: =SUM(AZ3,BH3,AZ5,BH5) -> 0
A4: assh ポスティング日 | N4: ご請求先名 | AE4: ガタチラ 掲載 | AZ4: くるみる 小計 | BH4: assh 小計 | BP4: 総枚数
A5: =新潟市!A5 -> 2023/--/-- | N5: =新潟市!M5 -> 0 | AC5: 様 | AE5: =新潟市!AD5 -> 0 | AZ5: =CF39 -> 0 | BH5: =CG39+CH39 -> 0 | BP5: =新潟市!BL5 -> 0
A7: 04 | B7: 新潟日報 | Z7: ポスティング （ｎ-assh）2週目 | AF7: ポスティング （ｎ-assh）4週目 | AL7: Otona+ | AR7: 備考 | BC7: 中央紙 | BN7: 備考 | BZ7: 朝刊 | CF7: くるみる | CG7: assh | CH7: assh | CI7: otona | CK7: 中央紙 朝刊
B8: 販売店名 | E8: 取扱い紙 | H8: 朝刊＋くるみる | K8: 配布数 | N8: 朝刊扱数 | Q8: 配布数 | T8: 朝刊数 | W8: くるみる数 | Z8: 部数 | AC8: 配布数 | AF8: 部数 | AI8: 配布数 | AL8: 部数 | AO8: 配布数 | BC8: 販売店名 | BF8: 取扱い紙 | BH8: 部数 | BK8: 配布数 | BZ8: 販売店名 | CA8: E | CB8: 朝刊1 | CC8: 朝刊２ | CD8: 部 | CE8: 指示 | CF8: 部 | CG8: 部 | CH8: 部 | CI8: 部 | CK8: 販売店名 | CL8: E | CM8: 部 | CN8: 指示
A9: 旧長岡市 | B9: 長岡中央 | E9: 新アマサ日 | H9: =N9+W9 -> 5910 | N9: 5330 | T9: =IF(K9="","",IF(K9<=W9,K9,K9-W9)) ->  | W9: 580 | Z9: 4760 | AF9: 4760 | AL9: 500 | BC9: 長岡 | BF9: ヨ | BH9: 3440 | BZ9: 長岡中央 | CA9: 40102 | CB9: =Q9 -> 0 | CC9: =T9 ->  | CD9: =SUM(CB9:CC9) -> 0 | CE9: =AR9 -> 0 | CF9: =IF($K9>$W9,$W9,"") ->  | CG9: =AC9 -> 0 | CH9: =AI9 -> 0 | CI9: =AO9 -> 0 | CK9: 長岡 | CL9: 240109 | CM9: =BK9 -> 0 | CN9: =BN9 -> 0
B10: 長岡南 | E10: 新アマサ日 | H10: =N10+W10 -> 1630 | N10: 1600 | T10: =IF(K10="","",IF(K10<=W10,K10,K10-W10)) ->  | W10: 30 | Z10: 1490 | AF10: 1490 | AL10: 110 | BC10: 長岡南部 | BF10: ヨ | BH10: 1220 | BZ10: 長岡南 | CA10: 40300 | CB10: =Q10 -> 0 | CC10: =T10 ->  | CD10: =SUM(CB10:CC10) -> 0 | CE10: =AR10 -> 0 | CF10: =IF($K10>$W10,$W10,"") ->  | CG10: =AC10 -> 0 | CH10: =AI10 -> 0 | CI10: =AO10 -> 0 | CK10: 長岡南部 | CL10: 240110 | CM10: =BK10 -> 0 | CN10: =BN10 -> 0
B11: 長岡東 | E11: 新アマサ日 | H11: =N11+W11 -> 6160 | N11: 5460 | T11: =IF(K11="","",IF(K11<=W11,K11,K11-W11)) ->  | W11: 700 | Z11: 5640 | AF11: 5640 | AL11: 340 | BC11: 長岡西部 | BF11: ヨ | BH11: 2600 | BZ11: 長岡東 | CA11: 40104 | CB11: =Q11 -> 0 | CC11: =T11 ->  | CD11: =SUM(CB11:CC11) -> 0 | CE11: =AR11 -> 0 | CF11: =IF($K11>$W11,$W11,"") ->  | CG11: =AC11 -> 0 | CH11: =AI11 -> 0 | CI11: =AO11 -> 0 | CK11: 長岡西部 | CL11: 240112 | CM11: =BK11 -> 0 | CN11: =BN11 -> 0
B12: 長岡新保 | E12: 新アマサ日 | H12: =N12+W12 -> 3250 | N12: 3180 | T12: =IF(K12="","",IF(K12<=W12,K12,K12-W12)) ->  | W12: 70 | Z12: 2360 | AF12: 2360 | AL12: 90 | BC12: 長岡宮内 | BF12: ヨ | BH12: 1200 | BZ12: 長岡新保 | CA12: 40105 | CB12: =Q12 -> 0 | CC12: =T12 ->  | CD12: =SUM(CB12:CC12) -> 0 | CE12: =AR12 -> 0 | CF12: =IF($K12>$W12,$W12,"") ->  | CG12: =AC12 -> 0 | CH12: =AI12 -> 0 | CI12: =AO12 -> 0 | CK12: 長岡宮内 | CL12: 240123 | CM12: =BK12 -> 0 | CN12: =BN12 -> 0
B13: 長岡悠久 | E13: 新アマサ日 | H13: 3500 | N13: 3400 | W13: 100 | Z13: 3680 | AF13: 3680 | AL13: 130 | BZ13: 長岡悠久 | CA13: 40106 | CB13: =Q13 -> 0 | CC13: =T13 ->  | CD13: 0 | CE13: =AR13 -> 0 | CF13: =IF($K13>$W13,$W13,"") ->  | CG13: =AC13 -> 0 | CH13: =AI13 -> 0 | CI13: =AO13 -> 0 | CM13: =BK13 -> 0
B14: 西長岡 | E14: 新アマサ日 | H14: 4200 | N14: 4000 | W14: 200 | Z14: 4900 | AF14: 4900 | AL14: 170 | BZ14: 西長岡 | CA14: 40111 | CB14: =Q14 -> 0 | CC14: =T14 ->  | CD14: 0 | CE14: =AR14 -> 0 | CF14: =IF($K14>$W14,$W14,"") ->  | CG14: =AC14 -> 0 | CH14: =AI14 -> 0 | CI14: =AO14 -> 0 | CM14: =BK14 -> 0
B15: 関原 | E15: 新アマサ日 | N15: 4600 | Z15: 5150 | AF15: 5150 | AL15: 200 | BZ15: 関原 | CA15: 40113 | CB15: =Q15 -> 0 | CC15: =T15 -> 0 | CD15: 0 | CE15: =AR15 -> 0 | CF15: =IF($K15>$W15,$W15,"") ->  | CG15: =AC15 -> 0 | CH15: =AI15 -> 0 | CI15: =AO15 -> 0 | CM15: =BK15 -> 0
B16: 王寺川 | E16: 合 | H16: =N16+W16 -> 460 | N16: 410 | T16: =IF(K16="","",IF(K16<=W16,K16,K16-W16)) ->  | W16: 50 | Z16: 170 | AF16: 170 | BZ16: 王寺川 | CA16: 40114 | CB16: =Q16 -> 0 | CC16: =T16 ->  | CD16: 0 | CE16: =AR16 -> 0 | CF16: =IF($K16>$W16,$W16,"") ->  | CG16: =AC16 -> 0 | CH16: =AI16 -> 0 | CI16: =AO16 -> 0 | CM16: =BK16 -> 0
B17: 長岡江陽 | E17: 新アマサ日 | H17: =N17+W17 -> 2030 | N17: 2000 | T17: =IF(K17="","",IF(K17<=W17,K17,K17-W17)) ->  | W17: 30 | Z17: 2500 | AF17: 2500 | AL17: 80 | BZ17: 長岡江陽 | CA17: 40115 | CB17: =Q17 -> 0 | CC17: =T17 ->  | CD17: 0 | CE17: =AR17 -> 0 | CF17: =IF($K17>$W17,$W17,"") ->  | CG17: =AC17 -> 0 | CH17: =AI17 -> 0 | CI17: =AO17 -> 0 | CM17: =BK17 -> 0
B18: 黒条 | E18: 合 | H18: =N18+W18 -> 1830 | N18: 1680 | W18: 150 | Z18: 1370 | AF18: 1370 | AL18: 40 | BZ18: 黒条 | CA18: 40116 | CB18: =Q18 -> 0 | CC18: =T18 ->  | CD18: 0 | CE18: =AR18 -> 0 | CF18: =IF($K18>$W18,$W18,"") ->  | CG18: =AC18 -> 0 | CH18: =AI18 -> 0 | CI18: =AO18 -> 0 | CM18: =BK18 -> 0
B19: 新組 | E19: 合 | H19: =N19+W19 -> 1430 | N19: 1400 | W19: 30 | Z19: 600 | AF19: 500 | AL19: 20 | BZ19: 新組 | CA19: 40117 | CB19: =Q19 -> 0 | CC19: =T19 ->  | CD19: 0 | CE19: =AR19 -> 0 | CF19: =IF($K19>$W19,$W19,"") ->  | CG19: =AC19 -> 0 | CH19: =AI19 -> 0 | CI19: =AO19 -> 0 | CM19: =BK19 -> 0
B20: 長岡宮内 | E20: 新アマサ日 | H20: =N20+W20 -> 4340 | N20: 4200 | W20: 140 | Z20: 5270 | AF20: 5270 | AL20: 210 | BZ20: 長岡宮内 | CA20: 40121 | CB20: =Q20 -> 0 | CC20: =T20 ->  | CD20: 0 | CE20: =AR20 -> 0 | CF20: =IF($K20>$W20,$W20,"") ->  | CG20: =AC20 -> 0 | CH20: =AI20 -> 0 | CI20: =AO20 -> 0 | CM20: =BK20 -> 0
B21: 濁沢 | E21: 合 | N21: 280 | Z21: 200 | AF21: 200 | BZ21: 濁沢 | CA21: 40124 | CB21: =Q21 -> 0 | CC21: =T21 -> 0 | CD21: 0 | CE21: =AR21 -> 0 | CF21: =IF($K21>$W21,$W21,"") ->  | CG21: =AC21 -> 0 | CH21: =AI21 -> 0 | CI21: =AO21 -> 0 | CM21: =BK21 -> 0
B22: 岡南 | E22: 合 | N22: 780 | Z22: 80 | AF22: 80 | BZ22: 岡南 | CA22: 40125 | CB22: =Q22 -> 0 | CC22: =T22 -> 0 | CD22: 0 | CE22: =AR22 -> 0 | CF22: =IF($K22>$W22,$W22,"") ->  | CG22: =AC22 -> 0 | CH22: =AI22 -> 0 | CI22: =AO22 -> 0 | CM22: =BK22 -> 0
B23: 六日市 | E23: 合 | N23: 360 | Z23: 20 | AF23: 20 | BZ23: 六日市 | CA23: 40126 | CB23: =Q23 -> 0 | CC23: =T23 -> 0 | CD23: 0 | CE23: =AR23 -> 0 | CF23: =IF($K23>$W23,$W23,"") ->  | CG23: =AC23 -> 0 | CH23: =AI23 -> 0 | CI23: =AO23 -> 0 | CM23: =BK23 -> 0
B24: 010 | C24: 小計 | E24: =Q24+T24+W24+AC24+AI24+AO24+BK24 -> 0 | H24: =SUM(H9:J23) -> 34740 | K24: =SUM(K9:M23) -> 0 | N24: =SUM(N9:P23) -> 38680 | Q24: =SUM(Q9:S23) -> 0 | T24: =SUM(T9:V23) -> 0 | W24: =CF24 -> 0 | Z24: =SUM(Z9:AB23) -> 38190 | AC24: =SUM(AC9:AE23) -> 0 | AF24: =SUM(AF9:AH23) -> 38090 | AI24: =SUM(AI9:AK23) -> 0 | AL24: =SUM(AL9:AN23) -> 1890 | AO24: =SUM(AO9:AQ15,AO17:AQ20) -> 0 | BC24: 小計 | BH24: =SUM(BH9:BJ23) -> 8460 | BK24: =SUM(BK9:BM23) -> 0 | BZ24: =SUM(CD24,CF24:CI24,CM24) -> 0 | CB24: =SUM(CB9:CB23) -> 0 | CC24: =SUM(CC9:CC23) -> 0 | CD24: =SUM(CD9:CD23) -> 0 | CF24: =SUM(CF9:CF23) -> 0 | CG24: =SUM(CG9:CG23) -> 0 | CH24: =SUM(CH9:CH23) -> 0 | CI24: =SUM(CI9:CI23) -> 0 | CM24: =SUM(CM9:CM23) -> 0
A25: 旧栃尾市・見附市 | B25: 栃尾 | E25: 新アマサ | N25: 2960 | Z25: 900 | AF25: 900 | BC25: 栃尾 | BF25: ヨ日 | BH25: 2100 | BZ25: 栃尾 | CA25: 40127 | CB25: =Q25 -> 0 | CC25: =T25 -> 0 | CD25: 0 | CE25: =AR25 -> 0 | CF25: =IF($K25>$W25,$W25,"") ->  | CG25: =AC25 -> 0 | CH25: =AI25 -> 0 | CI25: =AO25 -> 0 | CK25: 栃尾 | CL25: 240129 | CM25: =BK25 -> 0 | CN25: =BN25 -> 0
B26: 020 | C26: 小計 | E26: =Q26+T26+W26+AC26+AI26+AO26+BK26 -> 0 | N26: =SUM(N25) -> 2960 | Q26: =SUM(Q25) -> 0 | W26: =CF26 -> 0 | Z26: =SUM(Z25) -> 900 | AC26: =SUM(AC25) -> 0 | AF26: =SUM(AF25) -> 900 | AI26: =SUM(AI25) -> 0 | BC26: 小計 | BH26: =SUM(BH25) -> 2100 | BK26: =SUM(BK25) -> 0 | BZ26: =SUM(CD26,CF26:CI26,CM26) -> 0 | CB26: =SUM(CB25) -> 0 | CC26: =SUM(CC25) -> 0 | CD26: 0 | CF26: =SUM(CF25) -> 0 | CG26: =SUM(CG25) -> 0 | CH26: 0 | CI26: 0 | CM26: =SUM(CM25) -> 0
B27: 見附南 | E27: 新アマサ日 | N27: 2650 | Z27: 1500 | AF27: 20 | AL27: 90 | BC27: 見附 | BF27: ヨ | BH27: 1400 | BZ27: 見附南 | CA27: 40130 | CB27: =Q27 -> 0 | CC27: =T27 -> 0 | CD27: 0 | CE27: =AR27 -> 0 | CF27: =IF($K27>$W27,$W27,"") ->  | CG27: =AC27 -> 0 | CH27: =AI27 -> 0 | CI27: =AO27 -> 0 | CK27: 見附 | CL27: 240133 | CM27: =BK27 -> 0 | CN27: =BN27 -> 0
B28: 見附北 | E28: 新アマ日 | N28: 3400 | Z28: 3200 | AF28: 0 | AL28: 140 | BC28: 見附 | BF28: サ | BH28: 680 | BZ28: 見附北 | CA28: 40131 | CB28: =Q28 -> 0 | CC28: =T28 -> 0 | CD28: 0 | CE28: =AR28 -> 0 | CF28: =IF($K28>$W28,$W28,"") ->  | CG28: =AC28 -> 0 | CH28: =AI28 -> 0 | CI28: =AO28 -> 0 | CK28: 見附 | CL28: 40134 | CM28: =BK28 -> 0 | CN28: =BN28 -> 0
B29: 今町 | E29: 新アマサ日 | N29: 3350 | Z29: 1610 | AF29: 460 | AL29: 130 | BC29: 今町 | BF29: ヨ | BH29: 600 | BZ29: 今町 | CA29: 40135 | CB29: =Q29 -> 0 | CC29: =T29 -> 0 | CD29: 0 | CE29: =AR29 -> 0 | CF29: =IF($K29>$W29,$W29,"") ->  | CG29: =AC29 -> 0 | CH29: =AI29 -> 0 | CI29: =AO29 -> 0 | CK29: 今町 | CL29: 240136 | CM29: =BK29 -> 0 | CN29: =BN29 -> 0
B30: 030 | C30: 小計 | E30: =Q30+T30+W30+AC30+AI30+AO30+BK30 -> 0 | N30: =SUM(N27:P29) -> 9400 | Q30: =SUM(Q27:S29) -> 0 | W30: =CF30 -> 0 | Z30: =SUM(Z27:AA29) -> 6310 | AC30: =SUM(AC27:AE29) -> 0 | AF30: =SUM(AF27:AH29) -> 480 | AI30: =SUM(AI27:AK29) -> 0 | AL30: =SUM(AL27:AN29) -> 360 | AO30: =SUM(AO27:AQ29) -> 0 | BC30: 小計 | BH30: =SUM(BH27:BI29) -> 2680 | BK30: =SUM(BK27:BM29) -> 0 | BZ30: =SUM(CD30,CF30:CI30,CM30) -> 0 | CB30: =SUM(CB27:CB29) -> 0 | CC30: =SUM(CC27:CC29) -> 0 | CD30: 0 | CF30: =SUM(CF27:CF29) -> 0 | CG30: =SUM(CG27:CG29) -> 0 | CH30: 0 | CI30: 0 | CM30: =SUM(CM27:CM29) -> 0
A31: 旧三島郡 | B31: 越路 | E31: 新アマサ日 | H31: =N31+W31 -> 2860 | N31: 2810 | T31: =IF(K31="","",IF(K31<=W31,K31,K31-W31)) ->  | W31: 50 | Z31: 2470 | AF31: 2470 | AL31: 0 | BC31: 来迎寺 | BF31: ヨ | BH31: 620 | BZ31: 越路 | CA31: 40139 | CB31: =Q31 -> 0 | CC31: =T31 ->  | CD31: 0 | CE31: =AR31 -> 0 | CF31: =IF($K31>$W31,$W31,"") ->  | CG31: =AC31 -> 0 | CH31: =AI31 -> 0 | CI31: =AO31 -> 0 | CK31: 来迎寺 | CL31: 240140 | CM31: =BK31 -> 0 | CN31: =BN31 -> 0
B32: 塚山 | E32: 合 | N32: 810 | Z32: 130 | AF32: 130 | BZ32: 塚山 | CA32: 40141 | CB32: =Q32 -> 0 | CC32: =T32 -> 0 | CD32: 0 | CE32: =AR32 -> 0 | CF32: =IF($K32>$W32,$W32,"") ->  | CG32: =AC32 -> 0 | CH32: =AI32 -> 0 | CI32: =AO32 -> 0 | CM32: =BK32 -> 0
B33: 与板 | E33: 合 | H33: =N33+W33 -> 2830 | N33: 2680 | T33: =IF(K33="","",IF(K33<=W33,K33,K33-W33)) ->  | W33: 150 | Z33: 900 | AF33: 900 | BZ33: 与板 | CA33: 40144 | CB33: =Q33 -> 0 | CC33: =T33 ->  | CD33: 0 | CE33: =AR33 -> 0 | CF33: =IF($K33>$W33,$W33,"") ->  | CG33: =AC33 -> 0 | CH33: =AI33 -> 0 | CI33: =AO33 -> 0 | CM33: =BK33 -> 0
B34: 大河津 | E34: 合 | N34: 1080 | BZ34: 大河津 | CA34: 40145 | CB34: =Q34 -> 0 | CC34: =T34 -> 0 | CD34: 0 | CE34: =AR34 -> 0 | CF34: =IF($K34>$W34,$W34,"") ->  | CG34: =AC34 -> 0 | CH34: =AI34 -> 0 | CI34: =AO34 -> 0 | CM34: =BK34 -> 0
B35: 寺泊 | E35: 合 | N35: 1090 | BZ35: 寺泊 | CA35: 40146 | CB35: =Q35 -> 0 | CC35: =T35 -> 0 | CD35: 0 | CE35: =AR35 -> 0 | CF35: =IF($K35>$W35,$W35,"") ->  | CG35: =AC35 -> 0 | CH35: =AI35 -> 0 | CI35: =AO35 -> 0 | CM35: =BK35 -> 0
B36: 和島 | E36: 合 | N36: 940 | BZ36: 和島 | CA36: 40147 | CB36: =Q36 -> 0 | CC36: =T36 -> 0 | CD36: 0 | CE36: =AR36 -> 0 | CF36: =IF($K36>$W36,$W36,"") ->  | CG36: =AC36 -> 0 | CH36: =AI36 -> 0 | CI36: =AO36 -> 0 | CM36: =BK36 -> 0
B37: 西越 | E37: 合 | N37: 1200 | BZ37: 西越 | CA37: 40148 | CB37: =Q37 -> 0 | CC37: =T37 -> 0 | CD37: 0 | CE37: =AR37 -> 0 | CF37: =IF($K37>$W37,$W37,"") ->  | CG37: =AC37 -> 0 | CH37: =AI37 -> 0 | CI37: =AO37 -> 0 | CM37: =BK37 -> 0
B38: 040 | C38: 小計 | E38: =Q38+T38+W38+AC38+AI38+AO38+BK38 -> 0 | H38: =SUM(H31:J37) -> 5690 | K38: =SUM(K31:M37) -> 0 | N38: =SUM(N31:P37) -> 10610 | Q38: =SUM(Q31:S37) -> 0 | T38: =SUM(T31:V37) -> 0 | W38: =CF38 -> 0 | Z38: =SUM(Z31:AB37) -> 3500 | AC38: =SUM(AC31:AE37) -> 0 | AF38: =SUM(AF31:AH37) -> 3500 | AI38: =SUM(AI31:AK37) -> 0 | BC38: 小計 | BH38: =SUM(BH31:BJ37) -> 620 | BK38: =SUM(BK31:BM37) -> 0 | BZ38: =SUM(CD38,CF38:CI38,CM38) -> 0 | CB38: =SUM(CB31:CB37) -> 0 | CC38: =SUM(CC31:CC37) -> 0 | CD38: =SUM(CD31:CD37) -> 0 | CE38: =SUM(CE8:CE37) -> 0 | CF38: =SUM(CF31:CF37) -> 0 | CG38: =SUM(CG31:CG37) -> 0 | CH38: 0 | CI38: 0 | CM38: =SUM(CM31:CM37) -> 0
A39: 合計 | E39: =SUM(E38,E30,E26,E24) -> 0 | H39: =SUM(H38,H30,H26,H24) -> 40430 | K39: =SUM(K38,K30,K26,K24) -> 0 | N39: =SUM(N38,N30,N26,N24) -> 61650 | Q39: =SUM(Q38,Q30,Q26,Q24) -> 0 | T39: =SUM(T38,T30,T26,T24) -> 0 | W39: =SUM(W38,W30,W26,W24) -> 0 | Z39: =SUM(Z38,Z30,Z26,Z24) -> 48900 | AC39: =SUM(AC38,AC30,AC26,AC24) -> 0 | AF39: =SUM(AF38,AF30,AF26,AF24) -> 42970 | AI39: =SUM(AI38,AI30,AI26,AI24) -> 0 | AL39: =SUM(AL38,AL30,AL26,AL24) -> 2250 | AO39: =SUM(AO38,AO30,AO26,AO24) -> 0 | BC39: 合計 | BH39: =SUM(BH38,BH30,BH26,BH24) -> 13860 | BK39: =SUM(BK38,BK30,BK26,BK24) -> 0 | BZ39: =SUM(BZ38,BZ30,BZ26,BZ24) -> 0 | CB39: =SUM(CB38,CB30,CB26,CB24) -> 0 | CC39: =SUM(CC38,CC30,CC26,CC24) -> 0 | CD39: 0 | CF39: =SUM(CF24,CF26,CF30,CF38) -> 0 | CG39: =SUM(CG38,CG30,CG26,CG24) -> 0 | CH39: 0 | CI39: =SUM(CI38,CI30,CI26,CI24) -> 0 | CM39: =SUM(CM38,CM30,CM26,CM24) -> 0 | CO39: =SUM(CD39:CN39) -> 0
AL40: ■Otona+ ※ がある販売店は一部朝刊宅配エリアがございます。 | CD40: =SUM(CD39,CM39) -> 0

Sheet 中越２
BI1: =新潟市!BI1 -> ２０２３年１１月１日 現在
A2: 折込日 | M2: スポンサー名 | AD2: サイズ | AI2: チラシ内容・タイトル詳細 | AX2: 朝刊 小計 | BE2: Otona＋ 小計 | BL2: ページ枚数
A3: =新潟市!A3 -> 2023/--/-- | M3: =新潟市!M3 -> 0 | AB3: 様 | AD3: =新潟市!AD3 -> 0 | AI3: =新潟市!AI3 -> 0 | AX3: =BY42+CG42 -> 0 | BL3: =SUM(AX3,BE3,BE5,AX5) -> 0
A4: assh ポスティング日 | M4: ご請求先名 | AD4: ガタチラ 掲載 | AX4: くるみる 小計 | BE4: assh 小計 | BL4: 総枚数
A5: =新潟市!A5 -> 2023/--/-- | M5: =新潟市!M5 -> 0 | AB5: 様 | AD5: =新潟市!AD5 -> 0 | AX5: =CA42 -> 0 | BL5: =新潟市!BL5 -> 0
A7: 04 | B7: 新潟日報 | Z7: ポスティング | AF7: Otona+ | AL7: 備考 | AX7: 中央紙 | BI7: 備考 | BU7: 朝刊 | CA7: くるみる | CB7: assh | CC7: otona | CE7: 中央紙 朝刊
B8: 販売店名 | E8: 取扱い紙 | H8: 朝刊＋くるみる | K8: 配布数 | N8: 朝刊扱数 | Q8: 配布数 | T8: 朝刊数 | W8: くるみる数 | Z8: 部数 | AC8: 配布数 | AF8: 部数 | AI8: 配布数 | AX8: 販売店名 | BA8: 取扱い紙 | BC8: 部数 | BF8: 配布数 | BU8: 販売店名 | BV8: E | BW8: 朝刊1 | BX8: 朝刊２ | BY8: 部 | BZ8: 指示 | CA8: 部 | CB8: 部 | CC8: 部 | CE8: 販売店名 | CF8: E | CG8: 部 | CH8: 指示
A9: 小千谷市 | B9: 小千谷中央 | E9: 新アマサ日 | N9: 3760 | AX9: 小千谷 | BA9: ヨ | BC9: 1340 | BU9: 小千谷中央 | BV9: 40151 | BW9: =Q9 -> 0 | BX9: =W9 -> 0 | BY9: =SUM(BW9:BX9) -> 0 | BZ9: =AL9 -> 0 | CE9: 小千谷 | CF9: 240153 | CG9: =BF9 -> 0 | CH9: =BI9 -> 0
B10: 小千谷東 | E10: 新アマサ日 | N10: 1500 | BU10: 小千谷東 | BV10: 40152 | BW10: =Q10 -> 0 | BX10: =W10 -> 0 | BY10: =SUM(BW10:BX10) -> 0 | BZ10: =AL10 -> 0 | CG10: =BF10 -> 0 | CH10: =BI10 -> 0
B11: 片貝 | E11: 合 | N11: 1460 | BU11: 片貝 | BV11: 40154 | BW11: 0 | BX11: 0 | BY11: 0 | BZ11: 0 | CG11: 0 | CH11: 0
B12: 岩沢 | E12: 合 | N12: 640 | BU12: 岩沢 | BV12: 40155 | BW12: 0 | BX12: 0 | BY12: 0 | BZ12: 0 | CG12: 0 | CH12: 0
B13: 050 | C13: 小計 | E13: =Q13+T13+W13+BF13 -> 0 | N13: =SUM(N9:P12) -> 7360 | Q13: =SUM(Q9:S12) -> 0 | AX13: 小計 | BC13: =SUM(BC9:BE12) -> 1340 | BF13: =SUM(BF9:BH12) -> 0 | BU13: =SUM(BY13,CA13:CC13,CG13) -> 0 | BW13: =SUM(BW9:BW12) -> 0 | BX13: =SUM(BX9:BX12) -> 0 | BY13: 0 | CA13: =SUM(CA9:CA12) -> 0 | CB13: 0 | CC13: 0 | CG13: =SUM(CG9:CG12) -> 0
A14: 十日町市 | B14: 十日町西部 | E14: 新アマサ日 | N14: 2780 | AX14: 十日町 | BA14: ヨ日 | BC14: 1460 | BU14: 十日町西部 | BV14: 40156 | BW14: 0 | BX14: 0 | BY14: 0 | BZ14: 0 | CE14: 十日町 | CF14: 240159 | CG14: 0 | CH14: 0
B15: 十日町東部 | E15: 新アマサ日 | N15: 1100 | BU15: 十日町東部 | BV15: 40157 | BW15: 0 | BX15: 0 | BY15: 0 | BZ15: 0 | CG15: 0 | CH15: 0
B16: 下条 | E16: 合 | N16: 1050 | BU16: 下条 | BV16: 40162 | BW16: 0 | BX16: 0 | BY16: 0 | BZ16: 0 | CG16: 0 | CH16: 0
B17: 魚沼中条 | E17: 合 | N17: 890 | BU17: 魚沼中条 | BV17: 40163 | BW17: 0 | BX17: 0 | BY17: 0 | BZ17: 0 | CG17: 0 | CH17: 0
B18: 水沢 | E18: 合 | N18: 730 | BU18: 水沢 | BV18: 40164 | BW18: 0 | BX18: 0 | BY18: 0 | BZ18: 0 | CG18: 0 | CH18: 0
B19: 伊達 | E19: 合 | N19: 320 | BU19: 伊達 | BV19: 40165 | BW19: 0 | BX19: 0 | BY19: 0 | BZ19: 0 | CG19: 0 | CH19: 0
B20: 060 | C20: 小計 | E20: =Q20+T20+W20+BF20 -> 0 | N20: =SUM(N14:P19) -> 6870 | Q20: =SUM(Q14:S19) -> 0 | AX20: 小計 | BC20: =SUM(BC14:BE19) -> 1460 | BF20: =SUM(BF14:BH19) -> 0 | BU20: =SUM(BY20,CA20:CC20,CG20) -> 0 | BW20: =SUM(BW14:BW19) -> 0 | BX20: =SUM(BX14:BX19) -> 0 | BY20: 0 | CA20: =SUM(CA14:CA19) -> 0 | CB20: 0 | CC20: 0 | CG20: =SUM(CG14:CG19) -> 0
A21: 旧北魚沼郡 | B21: 川口 | E21: 合 | N21: 1050 | AX21: 小出 | BA21: ヨ | BC21: 1250 | BU21: 川口 | BV21: 40166 | BW21: 0 | BX21: 0 | BY21: 0 | BZ21: 0 | CE21: 小出 | CF21: 240170 | CG21: 0 | CH21: 0
B22: 堀之内 | E22: 合 | N22: 1720 | BU22: 堀之内 | BV22: 40167 | BW22: 0 | BX22: 0 | BY22: 0 | BZ22: 0 | CG22: 0 | CH22: 0
B23: 小出 | E23: 新アマサ日 | N23: 4320 | BU23: 小出 | BV23: 40168 | BW23: 0 | BX23: 0 | BY23: 0 | BZ23: 0 | CG23: 0 | CH23: 0
B24: 魚沼北 | E24: 合 | N24: 2030 | BU24: 魚沼北 | BV24: 40172 | BW24: 0 | BX24: 0 | BY24: 0 | BZ24: 0 | CG24: 0 | CH24: 0
B25: 070 | C25: 小計 | E25: =Q25+T25+W25+BF25 -> 0 | N25: =SUM(N21:P24) -> 9120 | Q25: =SUM(Q21:S24) -> 0 | AX25: 小計 | BC25: =SUM(BC21:BE24) -> 1250 | BF25: =SUM(BF21:BH24) -> 0 | BU25: =SUM(BY25,CA25:CC25,CG25) -> 0 | BW25: =SUM(BW21:BW24) -> 0 | BX25: =SUM(BX21:BX24) -> 0 | BY25: 0 | CA25: =SUM(CA21:CA24) -> 0 | CB25: 0 | CC25: 0 | CG25: =SUM(CG21:CG24) -> 0
A26: 旧南魚沼郡 | B26: 浦佐 | E26: 合 | N26: 1490 | AX26: 六日町 | BA26: ヨ | BC26: 1770 | BU26: 浦佐 | BV26: 40176 | BW26: 0 | BX26: 0 | BY26: 0 | BZ26: 0 | CE26: 六日町 | CF26: 240183 | CG26: 0 | CH26: 0
B27: 大崎 | E27: 合 | N27: 620 | AX27: 塩沢石打 | BA27: ヨ | BC27: 1400 | BU27: 大崎 | BV27: 40178 | BW27: 0 | BX27: 0 | BY27: 0 | BZ27: 0 | CE27: 塩沢石打 | CF27: 240185 | CG27: 0 | CH27: 0
B28: 五日町 | E28: 合 | N28: 990 | AX28: 湯沢 | BA28: ヨ | BC28: 700 | BU28: 五日町 | BV28: 40179 | BW28: 0 | BX28: 0 | BY28: 0 | BZ28: 0 | CE28: 湯沢 | CF28: 240190 | CG28: 0 | CH28: 0
B29: 城内 | E29: 合 | N29: 850 | BU29: 城内 | BV29: 40180 | BW29: 0 | BX29: 0 | BY29: 0 | BZ29: 0 | CG29: 0 | CH29: 0
B30: 六日町 | E30: 新アマサ日 | N30: 2700 | BU30: 六日町 | BV30: 40181 | BW30: 0 | BX30: 0 | BY30: 0 | BZ30: 0 | CG30: 0 | CH30: 0
B31: 塩沢 | E31: 新アマサ日 | N31: 1990 | BU31: 塩沢 | BV31: 40184 | BW31: =Q31 -> 0 | BX31: 0 | BY31: 0 | BZ31: 0 | CG31: 0 | CH31: 0
B32: 上田 | E32: 合 | N32: 650 | BU32: 上田 | BV32: 40186 | BW32: 0 | BX32: 0 | BY32: 0 | BZ32: 0 | CG32: 0 | CH32: 0
B33: 湯沢 | E33: 新アマサ日 | N33: 1400 | BU33: 湯沢 | BV33: 40189 | BW33: 0 | BX33: 0 | BY33: 0 | BZ33: 0 | CG33: 0 | CH33: 0
B34: 080 | C34: 小計 | E34: =Q34+T34+W34+BF34 -> 0 | N34: =SUM(N26:P33) -> 10690 | Q34: =SUM(Q26:S33) -> 0 | AX34: 小計 | BC34: =SUM(BC26:BE33) -> 3870 | BF34: =SUM(BF26:BH33) -> 0 | BU34: =SUM(BY34,CA34:CC34,CG34) -> 0 | BW34: =SUM(BW26:BW33) -> 0 | BX34: =SUM(BX26:BX33) -> 0 | BY34: =SUM(BY26:BY33) -> 0 | CA34: =SUM(CA26:CA33) -> 0 | CB34: =SUM(CB26:CB33) -> 0 | CC34: =SUM(CC26:CC33) -> 0 | CG34: =SUM(CG26:CG33) -> 0
A35: 旧中魚沼郡 | B35: 十日町川西 | E35: 合 | N35: 1440 | BU35: 十日町川西 | BV35: 40192 | BW35: 0 | BX35: 0 | BY35: 0 | BZ35: 0 | CG35: 0 | CH35: 0
B36: 仙田 | E36: 合 | N36: 160 | BU36: 仙田 | BV36: 40193 | BW36: 0 | BX36: 0 | BY36: 0 | BZ36: 0 | CG36: 0 | CH36: 0
B37: 田沢 | E37: 合 | N37: 1060 | BU37: 田沢 | BV37: 40194 | BW37: 0 | BX37: 0 | BY37: 0 | BZ37: 0 | CG37: 0 | CH37: 0
B38: 津南 | E38: 合 | N38: 1740 | BU38: 津南 | BV38: 340197 | BW38: 0 | BX38: 0 | BY38: 0 | BZ38: 0 | CG38: 0 | CH38: 0
B39: 上郷 | E39: 合 | N39: 330 | BU39: 上郷 | BV39: 40199 | BW39: 0 | BX39: 0 | BY39: 0 | BZ39: 0 | CG39: 0 | CH39: 0
B40: 森宮野原 | E40: 合 | N40: 40 | BU40: 森宮野原 | BV40: 40200 | BW40: 0 | BX40: 0 | BY40: 0 | BZ40: 0 | CG40: 0 | CH40: 0
B41: 090 | C41: 小計 | E41: =Q41+T41+W41+BF41 -> 0 | N41: =SUM(N35:P40) -> 4770 | Q41: =SUM(Q35:S40) -> 0 | AX41: 小計 | BU41: =SUM(BY41,CA41:CC41,CG41) -> 0 | BW41: =SUM(BW35:BW40) -> 0 | BX41: =SUM(BX35:BX40) -> 0 | BY41: 0 | CA41: =SUM(CA35:CA40) -> 0 | CB41: 0 | CC41: 0 | CG41: =SUM(CG35:CG40) -> 0
A42: 合計 | E42: =SUM(E41,E34,E25,E20,E13) -> 0 | N42: =SUM(N41,N34,N25,N20,N13) -> 38810 | Q42: =SUM(Q41,Q34,Q25,Q20,Q13) -> 0 | Z42: =SUM(Z40) -> 0 | AF42: =SUM(AF40,AF32,AF30,AF27,AF23,AF15,AF12,AF8) -> 0 | AX42: 合計 | BC42: =SUM(BC41,BC34,BC25,BC20,BC13) -> 7920 | BF42: =SUM(BF41,BF34,BF25,BF20,BF13) -> 0 | BU42: =SUM(BU41,BU34,BU25,BU20,BU13) -> 0 | BW42: =SUM(BW41,BW34,BW25,BW20,BW13) -> 0 | BX42: =SUM(BX41,BX34,BX25,BX20,BX13) -> 0 | BY42: =SUM(BY41,BY34,BY25,BY20,BY13) -> 0 | CA42: =SUM(CA41,CA34,CA25,CA20,CA13) -> 0 | CB42: =SUM(CB41,CB34,CB25,CB20,CB13) -> 0 | CC42: =SUM(CC41,CC34,CC25,CC20,CC13) -> 0 | CG42: =SUM(CG41,CG34,CG25,CG20,CG13) -> 0 | CI42: =SUM(BY42:CH42) -> 0
BY43: =SUM(BY42,CG42) -> 0

Sheet 上越1
BI1: =新潟市!BI1 -> ２０２３年１１月１日 現在
A2: 折込日 | M2: スポンサー名 | AD2: サイズ | AI2: チラシ内容・タイトル詳細 | AX2: 朝刊 小計 | BE2: Otona＋ 小計 | BL2: ページ枚数
A3: =新潟市!A3 -> 2023/--/-- | M3: =新潟市!M3 -> 0 | AB3: 様 | AD3: =新潟市!AD3 -> 0 | AI3: =新潟市!AI3 -> 0 | AX3: =BY43+CG43 -> 0 | BL3: =SUM(AX3,BE3,AX5,BE5) -> 0
A4: assh ポスティング日 | M4: ご請求先名 | AD4: ガタチラ 掲載 | AX4: くるみる 小計 | BE4: assh 小計 | BL4: 総枚数
A5: =新潟市!A5 -> 2023/--/-- | M5: =新潟市!M5 -> 0 | AB5: 様 | AD5: =新潟市!AD5 -> 0 | AX5: =CA43 -> 0 | BL5: =新潟市!BL5 -> 0
A7: 04 | B7: 新潟日報 | Z7: ポスティング | AF7: Otona+ | AL7: 備考 | AX7: 中央紙 | BI7: 備考 | BU7: 朝刊 | CA7: くるみる | CB7: assh | CC7: otona | CE7: 中央紙 朝刊
B8: 販売店名 | E8: 取扱い紙 | H8: 朝刊＋くるみる | K8: 配布数 | N8: 朝刊扱数 | Q8: 配布数 | T8: 朝刊数 | W8: くるみる数 | Z8: 部数 | AC8: 配布数 | AF8: 部数 | AI8: 配布数 | AX8: 販売店名 | BA8: 取扱い紙 | BC8: 部数 | BF8: 配布数 | BU8: 販売店名 | BV8: E | BW8: 朝刊1 | BX8: 朝刊２ | BY8: 部 | BZ8: 指示 | CA8: 部 | CB8: 部 | CC8: 部 | CE8: 販売店名 | CF8: E | CG8: 部 | CH8: 指示
A9: 柏崎市 | B9: 柏崎中央 | E9: 新アマサ日 | N9: 2220 | AX9: 柏崎西部 | BA9: ヨ | BC9: 2320 | BU9: 柏崎中央 | BV9: 40229 | BW9: =Q9 -> 0 | BX9: =T9 -> 0 | BY9: =SUM(BW9:BX9) -> 0 | BZ9: =AL9 -> 0 | CA9: =IF($K9>$W9,$W9,"") ->  | CE9: 柏崎西部 | CF9: 240205 | CG9: =BF9 -> 0 | CH9: =BI9 -> 0
B10: 柏崎 | E10: 新アマサ日 | H10: =N10+W10 -> 3930 | N10: 3530 | T10: =IF(K10="","",IF(K10<=W10,K10,K10-W10)) ->  | W10: 400 | AX10: 柏崎東部 | BA10: ヨ | BC10: 2100 | BU10: 柏崎 | BV10: 40202 | BW10: =Q10 -> 0 | BX10: =T10 ->  | BY10: =SUM(BW10:BX10) -> 0 | BZ10: =AL10 -> 0 | CA10: =IF($K10>$W10,$W10,"") ->  | CE10: 柏崎東部 | CF10: 240206 | CG10: =BF10 -> 0 | CH10: =BI10 -> 0
B11: 柏崎南 | E11: 新アマサ日 | N11: 2760 | BU11: 柏崎南 | BV11: 40203 | BW11: =Q11 -> 0 | BX11: =T11 -> 0 | BY11: =SUM(BW11:BX11) -> 0 | BZ11: =AL11 -> 0 | CG11: 0 | CH11: 0
B12: 100 | C12: 小計 | E12: =Q12+T12+W12+BF12 -> 0 | H12: =SUM(H10) -> 3930 | K12: =SUM(K10) -> 0 | N12: =SUM(N9:P11) -> 8510 | Q12: =SUM(Q9:S11) -> 0 | T12: =SUM(T9:V11) -> 0 | W12: =CA12 -> 0 | AX12: 小計 | BC12: =SUM(BC9:BE11) -> 4420 | BF12: =SUM(BF9:BH11) -> 0 | BU12: =SUM(BY12,CA12:CC12,CG12) -> 0 | BW12: =SUM(BW9:BW11) -> 0 | BX12: =SUM(BX9:BX11) -> 0 | BY12: 0 | CA12: =SUM(CA9:CA11) -> 0 | CB12: =SUM(CB9:CB11) -> 0 | CC12: 0 | CG12: =SUM(CG9:CG11) -> 0
B13: 安田 | E13: 合 | N13: 2450 | BU13: 安田 | BV13: 40211 | BW13: 0 | BX13: 0 | BY13: 0 | BZ13: 0 | CG13: 0 | CH13: 0
B14: 北条 | E14: 合 | N14: 300 | BU14: 北条 | BV14: 40212 | BW14: 0 | BX14: 0 | BY14: 0 | BZ14: 0 | CG14: 0 | CH14: 0
B15: 広田 | E15: 合 | N15: 390 | BU15: 広田 | BV15: 40213 | BW15: 0 | BX15: 0 | BY15: 0 | BZ15: 0 | CG15: 0 | CH15: 0
B16: 米山 | E16: 合 | N16: 320 | BU16: 米山 | BV16: 40228 | BW16: 0 | BX16: 0 | BY16: 0 | BZ16: 0 | CG16: 0 | CH16: 0
B17: 笠島 | E17: 合 | N17: 60 | BU17: 笠島 | BV17: 40216 | BW17: 0 | BX17: 0 | BY17: 0 | BZ17: 0 | CG17: 0 | CH17: 0
B18: 110 | C18: 小計 | E18: =Q18+T18+W18+BF18 -> 0 | N18: =SUM(N13:P17) -> 3520 | Q18: =SUM(Q13:S17) -> 0 | AX18: 小計 | BU18: =SUM(BY18,CA18:CC18,CG18) -> 0 | BW18: =SUM(BW13:BW17) -> 0 | BX18: =SUM(BX13:BX17) -> 0 | BY18: =SUM(BY13:BY17) -> 0 | CA18: =SUM(CA13:CA17) -> 0 | CB18: =SUM(CB13:CB17) -> 0 | CC18: =SUM(CC13:CC17) -> 0 | CG18: =SUM(CG13:CG17) -> 0
A19: 旧刈羽郡 | B19: 高柳 | E19: 合 | N19: 330 | BU19: 高柳 | BV19: 40217 | BW19: 0 | BX19: 0 | BY19: 0 | BZ19: 0 | CG19: 0 | CH19: 0
B20: 上小国 | E20: 合 | N20: 870 | BU20: 上小国 | BV20: 40219 | BW20: 0 | BX20: 0 | BY20: 0 | BZ20: 0 | CG20: 0 | CH20: 0
B21: 荒浜 | E21: 合 | N21: 1900 | BU21: 荒浜 | BV21: 40220 | BW21: 0 | BX21: 0 | BY21: 0 | BZ21: 0 | CG21: 0 | CH21: 0
B22: 西山 | E22: 合 | N22: 1000 | BU22: 西山 | BV22: 40221 | BW22: 0 | BX22: 0 | BY22: 0 | BZ22: 0 | CG22: 0 | CH22: 0
B23: 120 | C23: 小計 | E23: =Q23+T23+W23+BF23 -> 0 | N23: =SUM(N19:P22) -> 4100 | Q23: =SUM(Q19:S22) -> 0 | AX23: 小計 | BU23: =SUM(BY23,CA23:CC23,CG23) -> 0 | BW23: =SUM(BW19:BW22) -> 0 | BX23: =SUM(BX19:BX22) -> 0 | BY23: 0 | CA23: =SUM(CA19:CA22) -> 0 | CB23: =SUM(CB19:CB22) -> 0 | CC23: 0 | CG23: =SUM(CG19:CG22) -> 0
A24: 05 | B24: 高田 | E24: 新マサ日 | H24: =N24+W24 -> 2790 | N24: 2450 | T24: =IF(K24="","",IF(K24<=W24,K24,K24-W24)) ->  | W24: 340 | AX24: 高田 | BA24: ア | BC24: 2500 | BU24: 高田 | BV24: 50101 | BW24: 0 | BY24: 0 | BZ24: 0 | CE24: 高田 | CF24: 50104 | CG24: 0 | CH24: 0
A25: 上越市 | B25: 高田南 | E25: 新マサ日 | H25: 2650 | N25: 2350 | T25: =IF(K25="","",IF(K25<=W25,K25,K25-W25)) ->  | W25: 300 | AX25: 高田 | BA25: ヨ | BC25: 3300 | BU25: 高田南 | BV25: 50102 | BW25: 0 | BY25: 0 | BZ25: 0 | CE25: 高田 | CF25: 250105 | CG25: 0 | CH25: 0
B26: 木田 | E26: 新マサ日 | H26: 1670 | N26: 1600 | W26: 70 | AX26: 上越中央 | BA26: ヨ | BC26: 2270 | BU26: 木田 | BV26: 50103 | BW26: 0 | BY26: 0 | BZ26: 0 | CE26: 上越中央 | CF26: 250107 | CG26: 0 | CH26: 0
B27: 春日山 | E27: 新マサ日 | H27: 2590 | N27: 2440 | W27: 150 | AX27: 脇野田 | BA27: ヨ | BC27: 400 | BU27: 春日山 | BV27: 50106 | BW27: 0 | BY27: 0 | BZ27: 0 | CE27: 脇野田 | CF27: 250106 | CG27: 0 | CH27: 0
B28: 脇野田 | E28: 新アマサ日 | H28: 1880 | N28: 1680 | W28: 200 | AX28: 直江津 | BA28: ヨ | BC28: 3900 | BU28: 脇野田 | BV28: 50108 | BW28: 0 | BY28: 0 | BZ28: 0 | CE28: 直江津 | CF28: 250115 | CG28: 0 | CH28: 0
B29: 上越東 | E29: 合 | H29: 3120 | N29: 3110 | W29: 10 | AX29: 直江津 | BA29: ア | BC29: 1800 | BU29: 上越東 | BV29: 50109 | BW29: 0 | BY29: 0 | BZ29: 0 | CE29: 直江津 | CF29: 50116 | CG29: 0 | CH29: 0
B30: 上越三和 | E30: 合 | N30: 1550 | BU30: 上越三和 | BV30: 50112 | BW30: 0 | BX30: 0 | BY30: 0 | BZ30: 0 | CG30: 0 | CH30: 0
B31: 直江津 | E31: 新マサ日 | H31: =N31+W31 -> 2490 | N31: 2340 | T31: =IF(K31="","",IF(K31<=W31,K31,K31-W31)) ->  | W31: 150 | BU31: 直江津 | BV31: 50113 | BW31: 0 | BY31: 0 | BZ31: 0 | CG31: 0 | CH31: 0
B32: 直江津東 | E32: 新マサ日 | H32: =N32+W32 -> 2690 | N32: 2600 | T32: =IF(K32="","",IF(K32<=W32,K32,K32-W32)) ->  | W32: 90 | BU32: 直江津東 | BV32: 50114 | BW32: 0 | BY32: 0 | BZ32: 0 | CG32: 0 | CH32: 0
B33: 黒井 | E33: 合 | N33: 820 | BU33: 黒井 | BV33: 50117 | BW33: 0 | BX33: 0 | BY33: 0 | BZ33: 0 | CG33: 0 | CH33: 0
B34: 名立谷浜 | E34: 合 | N34: 960 | BU34: 名立谷浜 | BV34: 50152 | BW34: 0 | BX34: 0 | BY34: 0 | BZ34: 0 | CG34: 0 | CH34: 0
B35: 010 | C35: 小計 | E35: =Q35+T35+W35+BF35 -> 0 | H35: =SUM(H24:J34) -> 19880 | K35: =SUM(K24:M34) -> 0 | N35: =SUM(N24:P34) -> 21900 | Q35: =SUM(Q24:S34) -> 0 | T35: =SUM(T24:V34) -> 0 | W35: =CA35 -> 0 | Z35: =SUM(Z24:AB34) -> 0 | AX35: 小計 | BC35: =SUM(BC24:BE34) -> 14170 | BF35: =SUM(BF24:BH34) -> 0 | BU35: =SUM(BY35,CA35:CC35,CG35) -> 0 | BW35: =SUM(BW24:BW34) -> 0 | BX35: =SUM(BX24:BX34) -> 0 | BY35: 0 | CA35: =SUM(CA24:CA34) -> 0 | CB35: =SUM(CB24:CB34) -> 0 | CC35: 0 | CG35: =SUM(CG24:CG34) -> 0
A36: 旧新井市 | B36: 新井 | E36: 合 | N36: 5400 | BU36: 新井 | BV36: 50119 | BW36: 0 | BX36: 0 | BY36: 0 | BZ36: 0 | CG36: 0 | CH36: 0
B37: 新井学校町 | E37: 合 | N37: 1290 | BU37: 新井学校町 | BV37: 50120 | BW37: 0 | BX37: 0 | BY37: 0 | BZ37: 0 | CG37: 0 | CH37: 0
B38: 新井南 | E38: 合 | N38: 890 | BU38: 新井南 | BV38: 50121 | BW38: 0 | BX38: 0 | BY38: 0 | BZ38: 0 | CG38: 0 | CH38: 0
B39: 関山 | E39: 合 | N39: 870 | BU39: 関山 | BV39: 50122 | BW39: 0 | BX39: 0 | BY39: 0 | BZ39: 0 | CG39: 0 | CH39: 0
B40: 妙高 | E40: 合 | N40: 530 | BU40: 妙高 | BV40: 50123 | BW40: 0 | BX40: 0 | BY40: 0 | BZ40: 0 | CG40: 0 | CH40: 0
B41: 赤倉 | E41: 合 | N41: 650 | BU41: 赤倉 | BV41: 50124 | BW41: 0 | BX41: 0 | BY41: 0 | BZ41: 0 | CG41: 0 | CH41: 0
B42: 020 | C42: 小計 | E42: =Q42+T42+W42+BF42 -> 0 | N42: =SUM(N36:P41) -> 9630 | Q42: =SUM(Q36:S41) -> 0 | AX42: 小計 | BU42: =SUM(BY42,CA42:CC42,CG42) -> 0 | BW42: =SUM(BW36:BW41) -> 0 | BX42: =SUM(BX36:BX41) -> 0 | BY42: 0 | CA42: =SUM(CA36:CA41) -> 0 | CB42: =SUM(CB36:CB41) -> 0 | CC42: 0 | CG42: =SUM(CG36:CG41) -> 0
A43: 合計 | E43: =SUM(E42,E35,E23,E18,E12) -> 0 | H43: =SUM(H42,H35,H23,H18,H12) -> 23810 | K43: =SUM(K42,K35,K23,K18,K12) -> 0 | N43: =SUM(N42,N35,N23,N18,N12) -> 47660 | Q43: =SUM(Q42,Q35,Q23,Q18,Q12) -> 0 | T43: =SUM(T42,T35,T23,T18,T12) -> 0 | W43: =SUM(W42,W35,W23,W18,W12) -> 0 | Z43: =SUM(Z41) -> 0 | AF43: =SUM(AF41,AF32,AF30,AF27,AF23,AF15,#REF!,AF9) ->  | AX43: 合計 | BC43: =SUM(BC42,BC35,BC23,BC18,BC12) -> 18590 | BF43: =SUM(BF42,BF35,BF23,BF18,BF12) -> 0 | BU43: =SUM(BU42,BU35,BU23,BU18,BU12) -> 0 | BW43: =SUM(BW42,BW35,BW23,BW18,BW12) -> 0 | BX43: =SUM(BX42,BX35,BX23,BX18,BX12) -> 0 | BY43: =SUM(BY42,BY35,BY23,BY18,BY12) -> 0 | CA43: =SUM(CA42,CA35,CA23,CA18,CA12) -> 0 | CB43: =SUM(CB42,CB35,CB23,CB18,CB12) -> 0 | CC43: =SUM(CC42,CC35,CC23,CC18,CC12) -> 0 | CG43: =SUM(CG42,CG35,CG23,CG18,CG12) -> 0 | CI43: =SUM(BY43:CH43) -> 0
BY44: =SUM(BY43,CG43) -> 0

Sheet 上越２
BI1: =新潟市!BI1 -> ２０２３年１１月１日 現在
A2: 折込日 | M2: スポンサー名 | AD2: サイズ | AI2: チラシ内容・タイトル詳細 | AX2: 朝刊 小計 | BE2: Otona＋ 小計 | BL2: ページ枚数
A3: =新潟市!A3 -> 2023/--/-- | M3: =新潟市!M3 -> 0 | AB3: 様 | AD3: =新潟市!AD3 -> 0 | AI3: =新潟市!AI3 -> 0 | AX3: =BY30+CG30 -> 0 | BL3: =SUM(AX3,BE3,AX5,BE5) -> 0
A4: assh ポスティング日 | M4: ご請求先名 | AD4: ガタチラ 掲載 | AX4: くるみる 小計 | BE4: assh 小計 | BL4: 総枚数
A5: =新潟市!A5 -> 2023/--/-- | M5: =新潟市!M5 -> 0 | AB5: 様 | AD5: =新潟市!AD5 -> 0 | AX5: =CA30 -> 0 | BL5: =新潟市!BL5 -> 0
A7: 05 | B7: 新潟日報 | Z7: ポスティング | AF7: Otona+ | AL7: 備考 | AX7: 中央紙 | BI7: 備考 | BU7: 朝刊 | CA7: くるみる | CB7: assh | CC7: otona | CE7: 中央紙 朝刊
B8: 販売店名 | E8: 取扱い紙 | H8: 朝刊＋くるみる | K8: 配布数 | N8: 朝刊扱数 | Q8: 配布数 | T8: 朝刊数 | W8: くるみる数 | Z8: 部数 | AC8: 配布数 | AF8: 部数 | AI8: 配布数 | AX8: 販売店名 | BA8: 取扱い紙 | BC8: 部数 | BF8: 配布数 | BU8: 販売店名 | BV8: E | BW8: 朝刊1 | BX8: 朝刊２ | BY8: 部 | BZ8: 指示 | CA8: 部 | CB8: 部 | CC8: 部 | CE8: 販売店名 | CF8: E | CG8: 部 | CH8: 指示
A9: 旧中頸城郡 | B9: 柿崎 | E9: 合 | N9: 2300 | BU9: 柿崎 | BV9: 50125 | BW9: =Q9 -> 0 | BX9: =W9 -> 0 | BY9: =SUM(BW9:BX9) -> 0 | BZ9: =AL9 -> 0 | CG9: =BF9 -> 0
B10: 吉川 | E10: 合 | N10: 800 | BU10: 吉川 | BV10: 50126 | BW10: =Q10 -> 0 | BX10: =W10 -> 0 | BY10: =SUM(BW10:BX10) -> 0 | BZ10: =AL10 -> 0 | CG10: 0
B11: 大潟 | E11: 合 | N11: 1600 | BU11: 大潟 | BV11: 50127 | BW11: 0 | BX11: 0 | BY11: 0 | BZ11: 0 | CG11: 0
B12: 犀潟 | E12: 合 | N12: 820 | BU12: 犀潟 | BV12: 50128 | BW12: 0 | BX12: 0 | BY12: 0 | BZ12: 0 | CG12: 0
B13: 百間町 | E13: 合 | N13: 790 | BU13: 百閒町 | BV13: 50129 | BW13: 0 | BX13: 0 | BY13: 0 | BZ13: 0 | CG13: 0
B14: 明治 | E14: 合 | N14: 350 | BU14: 明治 | BV14: 50130 | BW14: 0 | BX14: 0 | BY14: 0 | BZ14: 0 | CG14: 0
B15: 030 | C15: 小計 | E15: =Q15+T15+W15+BF15 -> 0 | N15: =SUM(N9:P14) -> 6660 | Q15: =SUM(Q9:S14) -> 0 | AX15: 小計 | BU15: =SUM(BY15:CC15,CG15) -> 0 | BW15: =SUM(BW9:BW14) -> 0 | BX15: =SUM(BX9:BX14) -> 0 | BY15: 0 | CA15: =SUM(CA9:CA14) -> 0 | CB15: 0 | CC15: =SUM(CC9:CC14) -> 0 | CG15: =SUM(CG9:CG14) -> 0
A16: 旧東頚城郡 | B16: 浦川原 | E16: 合 | N16: 750 | BU16: 浦川原 | BV16: 50131 | BW16: =Q16 -> 0 | BX16: =W16 -> 0 | BY16: =SUM(BW16:BX16) -> 0 | BZ16: =AL16 -> 0 | CG16: =BF16 -> 0
B17: 上越安塚 | E17: 合 | N17: 570 | BU17: 上越安塚 | BV17: 50133 | BW17: 0 | BX17: 0 | BY17: 0 | BZ17: 0 | CG17: 0
B18: 大島 | E18: 合 | N18: 360 | BU18: 大島 | BV18: 50134 | BW18: 0 | BX18: 0 | BY18: 0 | BZ18: 0 | CG18: 0
B19: 松代 | E19: 合 | N19: 700 | BU19: 松代 | BV19: 50135 | BW19: 0 | BX19: 0 | BY19: 0 | BZ19: 0 | CG19: 0
B20: 松之山 | E20: 合 | N20: 460 | BU20: 松之山 | BV20: 50136 | BW20: 0 | BX20: 0 | BY20: 0 | BZ20: 0 | CG20: 0
B21: 040 | C21: 小計 | E21: =Q21+T21+W21+BF21 -> 0 | N21: =SUM(N16:P20) -> 2840 | Q21: =SUM(Q16:S20) -> 0 | AX21: 小計 | BU21: =SUM(BY21:CC21,CG21) -> 0 | BW21: =SUM(BW16:BW20) -> 0 | BX21: =SUM(BX16:BX20) -> 0 | BY21: 0 | CA21: =SUM(CA16:CA20) -> 0 | CB21: 0 | CC21: 0 | CG21: =SUM(CG16:CG20) -> 0
A22: 糸魚川市・旧西頸城郡 | B22: 糸魚川 | E22: 新マ | N22: 2900 | AX22: 糸魚川綱島 | BA22: ヨアサ日 | BC22: 3300 | BU22: 糸魚川 | BV22: 50137 | BW22: =Q22 -> 0 | BX22: =W22 -> 0 | BY22: =SUM(BW22:BX22) -> 0 | BZ22: =AL22 -> 0 | CE22: 糸魚川綱島 | CF22: 50138 | CG22: =BF22 -> 0 | CH22: =BI22 -> 0
B23: 糸魚川東 | E23: 新マ | N23: 1750 | AX23: 大和川吉岡 | BA23: ヨア | BC23: 460 | BU23: 糸魚川東 | BV23: 50142 | BW23: 0 | BX23: 0 | BY23: 0 | BZ23: 0 | CE23: 大和川吉岡 | CF23: 50140 | CG23: =BF23 -> 0 | CH23: =BI23 -> 0
B24: 根知 | E24: 合 | N24: 320 | AX24: 浦本田代 | BA24: ヨア | BC24: 40 | BU24: 根知 | BV24: 50144 | BW24: 0 | BX24: 0 | BY24: 0 | BZ24: 0 | CE24: 浦本田代 | CF24: 50143 | CG24: 0 | CH24: 0
B25: 050 | C25: 小計 | E25: =Q25+T25+W25+BF25 -> 0 | N25: =SUM(N22:P24) -> 4970 | Q25: =SUM(Q22:S24) -> 0 | AX25: 小計 | BC25: =SUM(BC22:BE24) -> 3800 | BF25: =SUM(BF22:BH24) -> 0 | BU25: =SUM(BY25:CC25,CG25) -> 0 | BW25: =SUM(BW22:BW24) -> 0 | BX25: =SUM(BX22:BX24) -> 0 | BY25: 0 | CA25: =SUM(CA22:CA24) -> 0 | CB25: 0 | CC25: 0 | CG25: =SUM(CG22:CG24) -> 0
B26: 筒石 | E26: 合 | N26: 390 | BU26: 筒石 | BV26: 50148 | BW26: =Q26 -> 0 | BX26: =W26 -> 0 | BY26: =SUM(BW26:BX26) -> 0 | BZ26: =AL26 -> 0 | CG26: =BF26 -> 0
B27: 能生 | E27: 合 | N27: 1690 | BU27: 能生 | BV27: 50149 | BW27: 0 | BX27: 0 | BY27: 0 | BZ27: 0 | CG27: 0
B28: 青海 | E28: 合 | N28: 1500 | BU28: 青梅 | BV28: 50150 | BW28: 0 | BX28: 0 | BY28: 0 | BZ28: 0 | CG28: 0
B29: 060 | C29: 小計 | E29: =Q29+T29+W29+BF29 -> 0 | N29: =SUM(N26:P28) -> 3580 | Q29: =SUM(Q26:S28) -> 0 | AX29: 小計 | BU29: =SUM(BY29:CC29,CG29) -> 0 | BW29: =SUM(BW26:BW28) -> 0 | BX29: =SUM(BX26:BX28) -> 0 | BY29: 0 | CA29: =SUM(CA26:CA28) -> 0 | CB29: 0 | CC29: 0 | CG29: =SUM(CG26:CG28) -> 0
A30: 合計 | E30: =SUM(E29,E25,E21,E15) -> 0 | N30: =SUM(N29,N25,N21,N15) -> 18050 | Q30: =SUM(Q29,Q25,Q21,Q15) -> 0 | AX30: 合計 | BC30: =SUM(BC29,BC25,BC21,BC15) -> 3800 | BF30: =SUM(BF29,BF25,BF21,BF15) -> 0 | BU30: =SUM(BU29,BU25,BU21,BU15) -> 0 | BW30: =SUM(BW29,BW25,BW21,BW15) -> 0 | BX30: =SUM(BX29,BX25,BX21,BX15) -> 0 | BY30: 0 | CA30: =SUM(CA29,CA25,CA21,CA15) -> 0 | CB30: 0 | CC30: 0 | CG30: =SUM(CG29,CG25,CG21,CG15) -> 0 | CI30: =SUM(BY30:CH30) -> 0
BY31: =SUM(BY30,CG30) -> 0

Sheet 地区集計
B1: 新潟県地区別/媒体別 折込部数・配布部数表
A2: エリア | C2: 新潟日報＋くるみる | F2: assh n-assh 1回目 ミニック | G2: n-assh 2回目 | H2: Ｏｔｏｎａ+ | I2: 中央紙 | L2: 販売店件数
A6: 地区 | B6: 市郡 | C6: 朝刊+くるみる | D6: 朝刊 | E6: くるみる | F6: 部数 | G6: 部数 | H6: 配布数 | I6: 朝日新聞 | J6: 読売新聞 | K6: 産経新聞 | L6: 新潟日報 | M6: 朝日新聞 | N6: 読売新聞 | O6: 産経新聞 | P6: 計 | Q6: くるみる
A7: 下越・佐渡地区 | B7: 旧新潟市 | C7: =SUM(D7:E7) -> 137710 | D7: =新潟市!N42 -> 126500 | E7: =SUM(新潟市!W9:Y41) -> 11210 | F7: =新潟市!Z42 -> 107100 | H7: =新潟市!AF42 -> 15130 | J7: =SUM(新潟市!BC9:BE22) -> 16630 | L7: =SUM(COUNTIF(新潟市!E9:G41,{"新アマ日","合"})) -> 33 | N7: =SUM(COUNTIF(新潟市!BA9:BB22,{"ヨサ日"})) -> 14 | P7: =SUM(L7:O7) -> 47 | Q7: =COUNTA(新潟市!W9:Y41) -> 33
B8: 旧西蒲原郡 | C8: =SUM(D8:E8) -> 23480 | D8: =下越1!N17 -> 22800 | E8: =SUM(下越1!W9:Y16) -> 680 | H8: =SUM(下越1!AF9:AH16) -> 690 | I8: =下越1!BC9 -> 650 | J8: =下越1!BC10 -> 700 | L8: =SUM(COUNTIF(下越1!E9:G16,{"新アマヨ日","新マ日","合"})) -> 8 | M8: =SUM(COUNTIF(下越1!BA9:BB11,{"アサ"})) -> 1 | N8: =SUM(COUNTIF(下越1!BA9:BB11,{"ヨ"})) -> 1 | P8: =SUM(L8:O8) -> 10 | Q8: =COUNTA(下越1!W12:Y16) -> 4
B9: 旧中蒲原郡 | C9: 7980 | D9: =SUM(下越1!N18:P20) -> 7970 | E9: =SUM(下越1!W18:W20) -> 10 | H9: =SUM(下越1!AF18:AH20) -> 270 | L9: =SUM(COUNTIF(下越1!E18:G20,{"合"})) -> 3 | P9: 3 | Q9: =COUNTA(下越1!W19) -> 1
B10: 旧新津市 | C10: =SUM(D10:E10) -> 15600 | D10: =SUM(下越1!N22:P23) -> 15500 | E10: =SUM(下越1!W22:W23) -> 100 | H10: =SUM(下越1!AF24) -> 500 | L10: =SUM(COUNTIF(下越1!E22:G23,{"合"})) -> 2 | P10: 2 | Q10: =COUNTA(下越1!W22:Y23) -> 2
B11: 五泉市 | C11: =SUM(D11:E11) -> 7870 | D11: =SUM(下越1!N25:P27) -> 7870 | L11: =SUM(COUNTIF(下越1!E25:G27,{"合"})) -> 3 | P11: 3
B12: 旧白根市 | C12: =SUM(D12:E12) -> 6080 | D12: =SUM(下越1!N29:P31) -> 5840 | E12: =SUM(下越1!W29:Y31) -> 240 | H12: =SUM(下越1!AF29:AF31) -> 120 | J12: =下越1!BC32 -> 700 | L12: =SUM(COUNTIF(下越1!E29:G31,{"新アマ日","合"})) -> 3 | N12: =SUM(COUNTIF(下越1!BA29,{"ヨサ"})) -> 1 | P12: 4 | Q12: =COUNTA(下越1!W29:Y31) -> 3
B13: 三条市 | C13: =SUM(D13:E13) -> 12400 | D13: =SUM(下越1!N33:P34) -> 12400 | H13: =SUM(下越1!AF35) -> 370 | J13: =下越1!BC35 -> 5200 | L13: =SUM(COUNTIF(下越1!E33:G34,{"新アマサ日"})) -> 2 | N13: =SUM(COUNTIF(下越1!BA33,{"ヨ"})) -> 1 | P13: 3
B14: 燕市 | C14: =SUM(D14:E14) -> 6900 | D14: =下越1!N38 -> 6850 | E14: =SUM(下越1!W36:W37) -> 50 | H14: =下越1!AF38 -> 180 | J14: =下越1!BC38 -> 3300 | L14: =SUM(COUNTIF(下越1!E36:G37,{"新アマサ日"})) -> 2 | N14: =SUM(COUNTIF(下越1!BA36,{"ヨ"})) -> 1 | P14: 3 | Q14: =COUNTA(下越1!W36) -> 1
B15: 加茂市 | C15: 7750 | D15: =下越1!N40 -> 7670 | E15: =SUM(下越1!W39) -> 80 | H15: =SUM(下越1!AF40) -> 260 | J15: =下越1!BC40 -> 1700 | L15: =SUM(COUNTIF(下越1!E39,{"新アマサ日"})) -> 1 | N15: =SUM(COUNTIF(下越1!BA39,{"ヨ"})) -> 1 | P15: 2 | Q15: =COUNTA(下越1!W39) -> 1
B16: 旧南蒲原郡 | C16: =SUM(D16:E16) -> 3850 | D16: =SUM(下越1!N45) -> 3850 | L16: =SUM(COUNTIF(下越1!E41:G44,{"合"})) -> 4 | P16: 4
B17: 旧豊栄市 | C17: 8400 | D17: =SUM(下越1!N48) -> 7930 | E17: =SUM(下越1!W46:Y47) -> 470 | F17: =下越1!Z48 -> 6920 | H17: =SUM(下越1!AF48) -> 330 | J17: =下越1!BC46 -> 880 | L17: =SUM(COUNTIF(下越1!E46:G47,{"新アマ日","合"})) -> 2 | N17: =SUM(COUNTIF(下越1!BA46,{"ヨサ日"})) -> 1 | P17: 3 | Q17: =COUNTA(下越1!W46:Y47) -> 2
B18: 新発田市 | C18: 22800 | D18: =SUM(下越２!N13) -> 21500 | E18: =SUM(下越２!W9:Y12) -> 1300 | F18: =SUM(下越２!Z13) -> 18170 | H18: =SUM(下越２!AF13) -> 670 | J18: =下越２!BC9 -> 3200 | L18: =SUM(COUNTIF(下越２!E9:G11,{"新アマ日","合"})) -> 3 | N18: =SUM(COUNTIF(下越２!BA9,{"ヨサ"})) -> 1 | P18: 4 | Q18: =COUNTA(下越２!W9:Y11) -> 3
B19: 旧北蒲原郡 | C19: 14010 | D19: =SUM(下越２!N19) -> 13810 | E19: =SUM(下越２!W14:W18) -> 200 | F19: =下越２!Z19 -> 100 | H19: =下越２!AF19 -> 230 | J19: =下越２!BC19 -> 2180 | L19: =SUM(COUNTIF(下越２!E14:G18,{"新アマ日","合"})) -> 5 | N19: =SUM(COUNTIF(下越２!BA14:BB15,{"ヨサ","ヨ"})) -> 2 | P19: 7 | Q19: =COUNTA(下越２!W17) -> 1
B20: 村上市 | C20: =SUM(D20:E20) -> 10000 | D20: =SUM(下越２!N23) -> 10000 | L20: =SUM(COUNTIF(下越２!E20:G22,{"合"})) -> 3 | P20: 3
B21: 岩船郡 | C21: 4280 | D21: =SUM(下越２!N28) -> 4280 | L21: =SUM(COUNTIF(下越２!E24:G27,{"合"})) -> 4 | P21: 4
B22: 旧東蒲原郡 | C22: 2950 | D22: =SUM(下越２!N36) -> 2950 | L22: =SUM(COUNTIF(下越２!E29:G35,{"合"})) -> 7 | P22: 7
B23: 旧両津市 | C23: 2460 | D23: =SUM(下越２!N41) -> 2460 | I23: =下越２!BC39 -> 680 | J23: =下越２!BC40 -> 860 | L23: =SUM(COUNTIF(下越２!E39:G40,{"新マサ日","新マ日"})) -> 2 | M23: =SUM(COUNTIF(下越２!BA39:BB40,{"ア"})) -> 1 | N23: =SUM(COUNTIF(下越２!BA39:BB40,{"ヨサ"})) -> 1 | P23: 4
B24: 旧佐渡郡 | C24: 7400 | D24: =SUM(下越２!N52) -> 7400 | I24: =SUM(下越２!BC42:BE44,下越２!BC47,下越２!BC49) -> 920 | J24: =SUM(下越２!BC45:BE46,下越２!BC48,下越２!BC50) -> 590 | L24: =SUM(COUNTIF(下越２!E42:G51,{"新サ","新マサ日","新","新アマ日","合"})) -> 10 | M24: =SUM(COUNTIF(下越２!BA42:BB50,{"アマヨサ日","アマサ日","ア"})) -> 5 | N24: =SUM(COUNTIF(下越２!BA42:BB50,{"ヨサ","ヨア","ヨ"})) -> 4 | P24: 19
A25: 中越地区 | B25: 旧長岡市 | C25: 40760 | D25: =SUM(中越1!N24) -> 38680 | E25: =SUM(中越1!W9:W23) -> 2080 | F25: =中越1!Z24 -> 38190 | G25: =中越1!AF24 -> 38090 | H25: =中越1!AL24 -> 1890 | J25: =中越1!BH24 -> 8460 | L25: =SUM(COUNTIF(中越1!E9:G23,{"新アマサ日","合"})) -> 15 | N25: =SUM(COUNTIF(中越1!BF9:BG12,{"ヨ"})) -> 4 | P25: 19 | Q25: =COUNTA(中越1!W9:Y20) -> 11
B26: 栃尾市 | C26: =SUM(D26:E26) -> 2960 | D26: =中越1!N26 -> 2960 | F26: =中越1!Z26 -> 900 | G26: =中越1!AF26 -> 900 | H26: =中越1!AL26 -> 0 | J26: =中越1!BH26 -> 2100 | L26: =SUM(COUNTIF(中越1!E25,{"新アマサ"})) -> 1 | N26: =SUM(COUNTIF(中越1!BF25,{"ヨ日"})) -> 1 | P26: 2
B27: 見附市 | C27: 9400 | D27: =中越1!N30 -> 9400 | F27: =中越1!Z30 -> 6310 | G27: =中越1!AF30 -> 480 | H27: =中越1!AL30 -> 360 | J27: =SUM(中越1!BH27,中越1!BH29) -> 2000 | K27: =SUM(中越1!BH28) -> 680 | L27: =SUM(COUNTIF(中越1!E27:G29,{"新アマサ日","新アマ日"})) -> 3 | N27: =SUM(COUNTIF(中越1!BF27:BG29,{"ヨ"})) -> 2 | O27: =SUM(COUNTIF(中越1!BF27:BG29,{"サ"})) -> 1 | P27: 6
B28: 旧三島郡 | C28: 10810 | D28: =中越1!N38 -> 10610 | E28: =SUM(中越1!W31:Y37) -> 200 | F28: =中越1!Z38 -> 3500 | G28: =中越1!AF38 -> 3500 | H28: =中越1!AL38 -> 0 | J28: =SUM(中越1!BH38) -> 620 | L28: =SUM(COUNTIF(中越1!E31:G37,{"新アマサ日","合"})) -> 7 | N28: =SUM(COUNTIF(中越1!BF31,{"ヨ"})) -> 1 | P28: 8 | Q28: =COUNTA(中越1!W31:Y33) -> 2
B29: 小千谷市 | C29: 7360 | D29: =中越２!N13 -> 7360 | J29: =中越２!BC13 -> 1340 | L29: =SUM(COUNTIF(中越２!E9:G12,{"新アマサ日","合"})) -> 4 | N29: =SUM(COUNTIF(中越２!BA9,{"ヨ"})) -> 1 | P29: 5
B30: 十日町市 | C30: 6870 | D30: =中越２!N20 -> 6870 | J30: =中越２!BC20 -> 1460 | L30: =SUM(COUNTIF(中越２!E14:G19,{"新アマサ日","合"})) -> 6 | N30: =SUM(COUNTIF(中越２!BA14,{"ヨ日"})) -> 1 | P30: 7
B31: 旧北魚沼郡 | C31: 9120 | D31: =中越２!N25 -> 9120 | J31: =中越２!BC25 -> 1250 | L31: =SUM(COUNTIF(中越２!E21:G24,{"新アマサ日","合"})) -> 4 | N31: =SUM(COUNTIF(中越２!BA21,{"ヨ"})) -> 1 | P31: 5
B32: 旧南魚沼郡 | C32: 10690 | D32: =中越２!N34 -> 10690 | J32: =中越２!BC34 -> 3870 | L32: =SUM(COUNTIF(中越２!E26:G33,{"新アマサ日","合"})) -> 8 | N32: =SUM(COUNTIF(中越２!BA26:BB28,{"ヨ"})) -> 3 | P32: 11
B33: 旧中魚沼郡 | C33: 4770 | D33: =中越２!N41 -> 4770 | L33: =SUM(COUNTIF(中越２!E35:G40,{"合"})) -> 6 | P33: 6
B34: 柏崎市 | C34: =SUM(D34:E34) -> 12430 | D34: =SUM(上越1!N12,上越1!N18) -> 12030 | E34: =SUM(上越1!W9:W11) -> 400 | J34: =SUM(上越1!BC12) -> 4420 | L34: =SUM(COUNTIF(上越1!E9:G17,{"新アマサ日","合"})) -> 8 | N34: =SUM(COUNTIF(上越1!BA9:BB10,{"ヨ"})) -> 2 | P34: 10 | Q34: =COUNTA(上越1!W10) -> 1
B35: 旧刈羽郡 | C35: =SUM(D35:E35) -> 4100 | D35: =上越1!N23 -> 4100 | L35: =SUM(COUNTIF(上越1!E19:G22,{"合"})) -> 4 | P35: 4
A36: 上越地区 | B36: 上越市 | C36: =SUM(D36:E36) -> 23210 | D36: =上越1!N35 -> 21900 | E36: =SUM(上越1!W24:W34) -> 1310 | F36: =上越1!Z35 -> 0 | I36: =SUM(上越1!BC24,上越1!BC29) -> 4300 | J36: =SUM(上越1!BC25:BE28) -> 9870 | L36: =SUM(COUNTIF(上越1!E24:G34,{"新マサ日","新アマサ日","合"})) -> 11 | M36: =SUM(COUNTIF(上越1!BA24:BB29,{"ア"})) -> 2 | N36: =SUM(COUNTIF(上越1!BA24:BB29,{"ヨ"})) -> 4 | P36: 17 | Q36: =COUNTA(上越1!W24:Y32) -> 8
B37: 旧新井市 | C37: =SUM(D37:E37) -> 9630 | D37: =上越1!N42 -> 9630 | L37: =SUM(COUNTIF(上越1!E36:G41,{"合"})) -> 6 | P37: 6
B38: 旧中頸城郡 | C38: 6660 | D38: =上越２!N15 -> 6660 | F38: =上越２!Z15 -> 0 | L38: =SUM(COUNTIF(上越２!E9:G14,{"合"})) -> 6 | P38: 6
B39: 旧東頸城郡 | C39: 2840 | D39: =上越２!N21 -> 2840 | L39: =SUM(COUNTIF(上越２!E16:G20,{"合"})) -> 5 | P39: 5
B40: 糸魚川市 | C40: 4970 | D40: =上越２!N25 -> 4970 | J40: =上越２!BC25 -> 3800 | L40: =SUM(COUNTIF(上越２!E22:G24,{"新マ","合"})) -> 3 | N40: =SUM(COUNTIF(上越２!BA22:BB24,{"ヨアサ日","ヨア"})) -> 3 | P40: 6
B41: 旧西頸城郡 | C41: 3580 | D41: =上越２!N29 -> 3580 | L41: =SUM(COUNTIF(上越２!E26:G28,{"合"})) -> 3 | P41: 3
A42: 合計 | C42: =SUM(D42:E42) -> 472080 | D42: =SUM(D7:D41) -> 453750 | E42: =SUM(E7:E41) -> 18330 | F42: =SUM(F7:F41) -> 181190 | G42: =SUM(G7:G41) -> 42970 | H42: 21000 | I42: =SUM(I7:I41) -> 6550 | J42: =SUM(J7:J41) -> 75130 | K42: 680 | L42: =SUM(L7:L41) -> 197 | M42: =SUM(M7:M41) -> 9 | N42: 51 | O42: 1 | P42: 258 | Q42: 73
B43: ※山形県の販売店の折込部数は新潟県の折込部数の合計値に含まれておりません。
B44: ※新潟日報の販売店が扱う主要日刊紙は、新潟日報の折込部数に包含します。 | I44: ※朝刊部数 計 | K44: =SUM(D42,I42:K42) -> 536110
B45: ※新潟県内には、日本経済新聞の専売店がありませんので系統区分には記載がありません。 | I45: ※朝刊部数 計（くるみる含） | K45: =SUM(C42,I42:K42) -> 554440

Sheet ガタチラ(チラシ情報)掲載
A1: Gatachira（ガタチラ）チラシ情報への広告掲載【申込書】
A3: 基本要項（必須） | N3: 以下は初回時、又は2回目以降に変更がある場合にご記入ください。
A4: ふりがな | N4: ふりがな
A5: クライアント名 | N5: 広告主 又は代理店
C6: ※ チラシ情報ページのクライアント名に表示されます。タイトルの【】では株式会社等は省略されます。 | N6: ふりがな
A7: 広告タイトル | N7: ご担当者
C8: ※ チラシ情報ページのタイトル、【】以降に表示されます。 | N8: ご住所 | O8: 〒
A9: 店舗名
C10: ※ チラシ情報ページのタイトル前【】内に表示されます。指定が無い場合はクライアント名が表示されます。
A11: 掲載開始日 | G11: 掲載終了日 ※最大6ヵ月 | N11: TEL
B12: 月 | D12: 日 | F12: 曜日 | H12: 月 | J12: 日 | L12: 曜日 | N12: MAIL
A13: エリア (最大5個)
A14: チラシのカテゴリ (最大5個) | N14: データ入稿先 | O14: gatachira2@niigata-mn.co.jp
A15: 対象店舗やURL、注意書き、クーポンの利用方法など その他掲載情報（任意） | N15: データ形式：JPG PNG データサイズ：5000ピクセル以内（テキストが潰れない程度） データ送信容量：合計4MB（データ容量が4MBを超える場合はデータ便などのオンラインストレージサービスをご利用ください。） ※弊社「新聞折込広告基準」に準じている広告をご入稿ください。 ※トンボなどの不要なデータは削除してご入稿ください。 ※指定サイズを超える場合はご相談ください。
C18: 【掲載期間】 | E18: 掲載期間は最大6ヵ月となります。掲載の延長を希望される場合は改めてお申し込みください。
C19: 【データ入稿】 | E19: データ入稿の締切は掲載日の2営業日前のAMまでとなります（お盆・年末年始などは除く） また、データ容量が大きすぎる場合はインターネット上での読み込み速度が遅くなる為、弊社にて加工させていただく場合がございます。
C20: 【その他】 | E20: クーポン付チラシの場合、電子クーポンの利用について「可・否」をご記載ください。利用可の場合、「利用方法」も併せてご記載をお願いします。 サイトの仕様上、タイトルのテキスト数やカテゴリ等、弊社の判断で添削する場合がございます。予めご了承ください。
C21: 株式会社 新潟日報メディアネット ガタチラ事務局
A23: 運営記入欄 | C23: No | G23: 受付日 | I23: 備考
A25: カテゴリ
A26: スーパー
A27: 百貨店
A28: ホームセンター
A29: 電化製品
A30: 家電製品
A31: パソコン用品
A32: 携帯電話
A33: ファッション
A34: 衣服
A35: 靴
A36: アクセサリー
A37: 雑貨
A38: おもちゃ
A39: インテリア雑貨・家具
A40: 通信販売
A41: 車
A42: 新車
A43: 中古車
A44: カー用品
A45: 習い事
A46: 塾
A47: そろばん
A48: スポーツ
A49: スイミング
A50: プログラミング
A51: その他
A52: 住宅
A53: 不動産
A54: マンション・アパート
A55: リフォーム
A56: お掃除
A57: クリーニング
A58: ハウスクリーニング
A59: 便利屋
A60: 官公庁（自治体）
A61: ドラッグストア
A62: 飲食店
A63: レストラン・食事処
A64: カフェ
A65: スイーツ
A66: 居酒屋
A67: 宅配・テイクアウト
A68: 美容
A69: 美容室
A70: エステ
A71: スポーツジム
A72: 入浴・スパ
A73: パチンコ
A74: 冠婚葬祭
A75: 式場
A76: 葬儀場
A77: 買取／販売
A78: 旅行／レジャー
A79: 求人情報
A80: その他

Sheet 更新履歴 (hidden)
A1: 日 | B1: 対象シート | C1: 更新内容 | D1: 対応者
A2: 2022-11-04 | B2: 下越１・２、中越１ | C2: Otona+部数欄に※追加 朝刊配達エリア店 | D2: 櫻井
A3: 2022-11-04 | B3: 新潟市 | C3: assh説明文 J-assh削除 | D3: 櫻井
A4: 2022-11-04 | B4: 新潟市 | C4: くるみる部数欄 条件設定変更 色付け解除 | D4: 櫻井
A5: 2022-11-05 | B5: 下越２ | C5: 佐渡の中央紙並び替え（従来版に戻した） | D5: 櫻井
A6: 2022-11-05 | B6: 地区集計 | C6: 旧佐渡郡、中央紙部数・件数計算式更新 | D6: 櫻井
A7: 2022-11-05 | B7: 下越１・２、中越１ | C7: 条件設定変更 旧豊栄市 色付け設定 | D7: 櫻井
A8: 2022-11-05 | B8: 下越１・２、中越１ | C8: 地域小計 計算式追加（ａｓｓｈ、おとプラ） | D8: 櫻井
A9: 2022-11-14 | B9: 中越１ | C9: 長岡大手くるみる欄追加、条件設定変更（Ｑ） | D9: 櫻井
A10: 2022-11-14 | B10: 地区集計 | C10: くるみる欄長岡市数式更新 | D10: 櫻井
A11: 2022-11-14 | B11: 新潟市～上越２ | C11: 全媒体部数改定12月 | D11: 櫻井
A12: 2022-11-18 | B12: 下越２ | C12: 羽茂 合、旧佐渡郡合計部数 | D12: 櫻井
A13: 2023-01-26 | B13: 下越１ | C13: 吉田産経削除 → 吉田 合 4730部 | D13: 込山
A14: 2023-01-27 | B14: 下越１～上越2 | C14: サイズ・ガタチラ他 入力制限・ロック設定 | D14: 櫻井
A15: 2023-10-12 | B15: 下越１ | C15: 矢代田・新津 朝刊部数 | D15: 櫻井
A16: 2023-10-12 | B16: 下越１ | C16: 三条西削除 三条北 朝刊・Otona+部数 | D16: 櫻井
A17: 2023-10-12 | B17: 下越１ | C17: 豊栄南削除 豊栄北 朝・く・ａ・お部数、販売店名称 | D17: 櫻井
A18: 2023-10-12 | B18: 中越１ | C18: 長岡大手削除 長岡中央・東 各部数 | D18: 櫻井
A19: 2023-10-12 | B19: 上越１ | C19: 柏崎東削除 柏崎 朝刊部数 | D19: 櫻井
A20: 2023-10-12 | B20: 表紙 | C20: 日付 | D20: 櫻井

Sheet ＥＤＩ朝刊 (hidden)
A1: 1 | B1: =A1+1 -> 2 | C1: =B1+1 -> 3 | D1: 4 | E1: 5 | F1: 6 | G1: 7 | H1: 8 | I1: 9 | J1: 10 | K1: 11 | L1: 12 | M1: 13 | N1: 14 | O1: 15 | P1: 16 | Q1: 17 | R1: 18 | S1: 19 | T1: 20 | U1: 21 | V1: 22
F2: CSV出力範囲
F3: 1 | G3: 2 | H3: 3 | I3: 4 | J3: 5 | K3: 6 | L3: 7 | M3: 8 | N3: 9 | O3: 10 | P3: 11 | Q3: 12 | R3: 13 | S3: 14 | T3: 15 | U3: 16 | V3: 17
A4: ①ヘッダーレコード | F4: 1 | G4: 0 | H4: 025669 | I4: 0 | J4: 0 | K4: 株式会社 新潟日報サービスネット | L4: データ作成日付（YYYYMMDD） | M4: 受注No． | N4: 1 | O4: 0 | P4: 0 | Q4: =新潟市!M3 -> 0 | R4: =TEXT(新潟市!A3,"yyyymmdd") -> 2023/--/-- | S4: =IF(新潟市!AI3=0,"",新潟市!AI3) ->  | T4: =新潟市!BU5 ->  | U4: =SUM(I5:I321) -> 
A5: ②明細コード | B5: 新潟市 | C5: 日報 | D5: 1 | E5: =新潟市!BU9 -> 万代 | F5: 2 | G5: 受注No． | H5: =新潟市!BV9 -> 10101 | I5: =IF(新潟市!BY9=0,"",新潟市!BY9) ->  | J5: 1 | K5: =IF(新潟市!AL9=0,"",新潟市!AL9) -> 
A6: ②明細コード | B6: 新潟市 | C6: 日報 | D6: =D5+1 -> 2 | E6: =新潟市!BU10 -> 駅南 | F6: 2 | G6: 受注No． | H6: =新潟市!BV10 -> 10102 | I6: =IF(新潟市!BY10=0,"",新潟市!BY10) ->  | J6: 1 | K6: =IF(新潟市!AL10=0,"",新潟市!AL10) -> 
A7: ②明細コード | B7: 新潟市 | C7: 日報 | D7: =D6+1 -> 3 | E7: =新潟市!BU11 -> 木戸 | F7: 2 | G7: 受注No． | H7: =新潟市!BV11 -> 10103 | I7: =IF(新潟市!BY11=0,"",新潟市!BY11) ->  | J7: 1 | K7: =IF(新潟市!AL11=0,"",新潟市!AL11) -> 
A8: ②明細コード | B8: 新潟市 | C8: 日報 | D8: 4 | E8: =新潟市!BU12 -> 石山東 | F8: 2 | G8: 受注No． | H8: =新潟市!BV12 -> 10105 | I8: =IF(新潟市!BY12=0,"",新潟市!BY12) ->  | J8: 1 | K8: =IF(新潟市!AL12=0,"",新潟市!AL12) -> 
A9: ②明細コード | B9: 新潟市 | C9: 日報 | D9: 5 | E9: =新潟市!BU13 -> 山ノ下 | F9: 2 | G9: 受注No． | H9: =新潟市!BV13 -> 10107 | I9: =IF(新潟市!BY13=0,"",新潟市!BY13) ->  | J9: 1 | K9: =IF(新潟市!AL13=0,"",新潟市!AL13) -> 
A10: ②明細コード | B10: 新潟市 | C10: 日報 | D10: 6 | E10: =新潟市!BU14 -> 物見山 | F10: 2 | G10: 受注No． | H10: =新潟市!BV14 -> 10108 | I10: =IF(新潟市!BY14=0,"",新潟市!BY14) ->  | J10: 1 | K10: =IF(新潟市!AL14=0,"",新潟市!AL14) -> 
A11: ②明細コード | B11: 新潟市 | C11: 日報 | D11: 7 | E11: =新潟市!BU15 -> とやの | F11: 2 | G11: 受注No． | H11: =新潟市!BV15 -> 10109 | I11: =IF(新潟市!BY15=0,"",新潟市!BY15) ->  | J11: 1 | K11: =IF(新潟市!AL15=0,"",新潟市!AL15) -> 
A12: ②明細コード | B12: 新潟市 | C12: 日報 | D12: 8 | E12: =新潟市!BU16 -> 県庁前 | F12: 2 | G12: 受注No． | H12: =新潟市!BV16 -> 10111 | I12: =IF(新潟市!BY16=0,"",新潟市!BY16) ->  | J12: 1 | K12: =IF(新潟市!AL16=0,"",新潟市!AL16) -> 
A13: ②明細コード | B13: 新潟市 | C13: 日報 | D13: 9 | E13: =新潟市!#REF! ->  | F13: 2 | G13: 受注No． | H13: =新潟市!#REF! ->  | I13: =IF(新潟市!#REF!=0,"",新潟市!#REF!) ->  | J13: 1 | K13: =IF(新潟市!#REF!=0,"",新潟市!#REF!) -> 
A14: ②明細コード | B14: 新潟市 | C14: 日報 | D14: 10 | E14: =新潟市!BU17 -> 愛宕 | F14: 2 | G14: 受注No． | H14: =新潟市!BV17 -> 10113 | I14: =IF(新潟市!BY17=0,"",新潟市!BY17) ->  | J14: 1 | K14: =IF(新潟市!AL17=0,"",新潟市!AL17) -> 
A15: ②明細コード | B15: 新潟市 | C15: 日報 | D15: 11 | E15: =新潟市!BU18 -> 河渡 | F15: 2 | G15: 受注No． | H15: =新潟市!BV18 -> 10114 | I15: =IF(新潟市!BY18=0,"",新潟市!BY18) ->  | J15: 1 | K15: =IF(新潟市!AL18=0,"",新潟市!AL18) -> 
A16: ②明細コード | B16: 新潟市 | C16: 日報 | D16: 12 | E16: =新潟市!BU19 -> 牡丹山 | F16: 2 | G16: 受注No． | H16: =新潟市!BV19 -> 10115 | I16: =IF(新潟市!BY19=0,"",新潟市!BY19) ->  | J16: 1 | K16: =IF(新潟市!AL19=0,"",新潟市!AL19) -> 
A17: ②明細コード | B17: 新潟市 | C17: 日報 | D17: 13 | E17: =新潟市!BU20 -> 大形 | F17: 2 | G17: 受注No． | H17: =新潟市!BV20 -> 10116 | I17: =IF(新潟市!BY20=0,"",新潟市!BY20) ->  | J17: 1 | K17: =IF(新潟市!AL20=0,"",新潟市!AL20) -> 
A18: ②明細コード | B18: 新潟市 | C18: 日報 | D18: 14 | E18: =新潟市!BU21 -> 松浜 | F18: 2 | G18: 受注No． | H18: =新潟市!BV21 -> 10117 | I18: =IF(新潟市!BY21=0,"",新潟市!BY21) ->  | J18: 1 | K18: =IF(新潟市!AL21=0,"",新潟市!AL21) -> 
A19: ②明細コード | B19: 新潟市 | C19: 日報 | D19: 15 | E19: =新潟市!BU22 -> 新潟南 | F19: 2 | G19: 受注No． | H19: =新潟市!BV22 -> 10118 | I19: =IF(新潟市!BY22=0,"",新潟市!BY22) ->  | J19: 1 | K19: =IF(新潟市!AL22=0,"",新潟市!AL22) -> 
A20: ②明細コード | B20: 新潟市 | C20: 日報 | D20: 16 | E20: =新潟市!BU23 -> 姥ケ山 | F20: 2 | G20: 受注No． | H20: =新潟市!BV23 -> 10119 | I20: =IF(新潟市!BY23=0,"",新潟市!BY23) ->  | J20: 1 | K20: =IF(新潟市!AL23=0,"",新潟市!AL23) -> 
A21: ②明細コード | B21: 新潟市 | C21: 日報 | D21: 17 | E21: =新潟市!BU24 -> 山二ツ | F21: 2 | G21: 受注No． | H21: =新潟市!BV24 -> 10120 | I21: =IF(新潟市!BY24=0,"",新潟市!BY24) ->  | J21: 1 | K21: =IF(新潟市!AL24=0,"",新潟市!AL24) -> 
A22: ②明細コード | B22: 新潟市 | C22: 日報 | D22: 18 | E22: =新潟市!BU25 -> 亀田西 | F22: 2 | G22: 受注No． | H22: =新潟市!BV25 -> 10122 | I22: =IF(新潟市!BY25=0,"",新潟市!BY25) ->  | J22: 1 | K22: =IF(新潟市!AL25=0,"",新潟市!AL25) -> 
A23: ②明細コード | B23: 新潟市 | C23: 日報 | D23: 19 | E23: =新潟市!BU26 -> 亀田 | F23: 2 | G23: 受注No． | H23: =新潟市!BV26 -> 10123 | I23: =IF(新潟市!BY26=0,"",新潟市!BY26) ->  | J23: 1 | K23: =IF(新潟市!AL26=0,"",新潟市!AL26) -> 
A24: ②明細コード | B24: 新潟市 | C24: 日報 | D24: 20 | E24: =新潟市!BU27 -> 横越 | F24: 2 | G24: 受注No． | H24: =新潟市!BV27 -> 10176 | I24: =IF(新潟市!BY27=0,"",新潟市!BY27) ->  | J24: 1 | K24: =IF(新潟市!AL27=0,"",新潟市!AL27) -> 
A25: ②明細コード | B25: 新潟市 | C25: 日報 | D25: 21 | E25: =新潟市!BU28 -> 有明 | F25: 2 | G25: 受注No． | H25: =新潟市!BV28 -> 10177 | I25: =IF(新潟市!BY28=0,"",新潟市!BY28) ->  | J25: 1 | K25: =IF(新潟市!AL28=0,"",新潟市!AL28) -> 
A26: ②明細コード | B26: 新潟市 | C26: 日報 | D26: 22 | E26: =新潟市!BU29 -> 小針 | F26: 2 | G26: 受注No． | H26: =新潟市!BV29 -> 10127 | I26: =IF(新潟市!BY29=0,"",新潟市!BY29) ->  | J26: 1 | K26: =IF(新潟市!AL29=0,"",新潟市!AL29) -> 
A27: ②明細コード | B27: 新潟市 | C27: 日報 | D27: 23 | E27: =新潟市!BU30 -> 中通 | F27: 2 | G27: 受注No． | H27: =新潟市!BV30 -> 10128 | I27: =IF(新潟市!BY30=0,"",新潟市!BY30) ->  | J27: 1 | K27: =IF(新潟市!AL30=0,"",新潟市!AL30) -> 
A28: ②明細コード | B28: 新潟市 | C28: 日報 | D28: 24 | E28: =新潟市!BU31 -> 本町 | F28: 2 | G28: 受注No． | H28: =新潟市!BV31 -> 10130 | I28: =IF(新潟市!BY31=0,"",新潟市!BY31) ->  | J28: 1 | K28: =IF(新潟市!AL31=0,"",新潟市!AL31) -> 
A29: ②明細コード | B29: 新潟市 | C29: 日報 | D29: 25 | E29: =新潟市!BU32 -> 中央 | F29: 2 | G29: 受注No． | H29: =新潟市!BV32 -> 10131 | I29: =IF(新潟市!BY32=0,"",新潟市!BY32) ->  | J29: 1 | K29: =IF(新潟市!AL32=0,"",新潟市!AL32) -> 
A30: ②明細コード | B30: 新潟市 | C30: 日報 | D30: 26 | E30: =新潟市!BU33 -> 真砂 | F30: 2 | G30: 受注No． | H30: =新潟市!BV33 -> 10133 | I30: =IF(新潟市!BY33=0,"",新潟市!BY33) ->  | J30: 1 | K30: =IF(新潟市!AL33=0,"",新潟市!AL33) -> 
A31: ②明細コード | B31: 新潟市 | C31: 日報 | D31: 27 | E31: =新潟市!BU34 -> 寺尾 | F31: 2 | G31: 受注No． | H31: =新潟市!BV34 -> 10134 | I31: =IF(新潟市!BY34=0,"",新潟市!BY34) ->  | J31: 1 | K31: =IF(新潟市!AL34=0,"",新潟市!AL34) -> 
A32: ②明細コード | B32: 新潟市 | C32: 日報 | D32: 28 | E32: =新潟市!BU35 -> 新大前 | F32: 2 | G32: 受注No． | H32: =新潟市!BV35 -> 10135 | I32: =IF(新潟市!BY35=0,"",新潟市!BY35) ->  | J32: 1 | K32: =IF(新潟市!AL35=0,"",新潟市!AL35) -> 
A33: ②明細コード | B33: 新潟市 | C33: 日報 | D33: 29 | E33: =新潟市!BU36 -> 内野 | F33: 2 | G33: 受注No． | H33: =新潟市!BV36 -> 10136 | I33: =IF(新潟市!BY36=0,"",新潟市!BY36) ->  | J33: 1 | K33: =IF(新潟市!AL36=0,"",新潟市!AL36) -> 
A34: ②明細コード | B34: 新潟市 | C34: 日報 | D34: 30 | E34: =新潟市!BU37 -> 西内野 | F34: 2 | G34: 受注No． | H34: =新潟市!BV37 -> 10137 | I34: =IF(新潟市!BY37=0,"",新潟市!BY37) ->  | J34: 1 | K34: =IF(新潟市!AL37=0,"",新潟市!AL37) -> 
A35: ②明細コード | B35: 新潟市 | C35: 日報 | D35: 31 | E35: =新潟市!#REF! ->  | F35: 2 | G35: 受注No． | H35: =新潟市!#REF! ->  | I35: =IF(新潟市!#REF!=0,"",新潟市!#REF!) ->  | J35: 1 | K35: =IF(新潟市!#REF!=0,"",新潟市!#REF!) -> 
A36: ②明細コード | B36: 新潟市 | C36: 日報 | D36: 32 | E36: =新潟市!BU38 -> 小新 | F36: 2 | G36: 受注No． | H36: =新潟市!BV38 -> 10140 | I36: =IF(新潟市!BY38=0,"",新潟市!BY38) ->  | J36: 1 | K36: =IF(新潟市!AL38=0,"",新潟市!AL38) -> 
A37: ②明細コード | B37: 新潟市 | C37: 日報 | D37: 33 | E37: =新潟市!BU39 -> 寺地 | F37: 2 | G37: 受注No． | H37: =新潟市!BV39 -> 10141 | I37: =IF(新潟市!BY39=0,"",新潟市!BY39) ->  | J37: 1 | K37: =IF(新潟市!AL39=0,"",新潟市!AL39) -> 
A38: ②明細コード | B38: 新潟市 | C38: 日報 | D38: 34 | E38: =新潟市!BU40 -> 黒埼 | F38: 2 | G38: 受注No． | H38: =新潟市!BV40 -> 10178 | I38: =IF(新潟市!BY40=0,"",新潟市!BY40) ->  | J38: 1 | K38: =IF(新潟市!AL40=0,"",新潟市!AL40) -> 
A39: ②明細コード | B39: 新潟市 | C39: 日報 | D39: 35 | E39: =新潟市!BU41 -> 黒埼南 | F39: 2 | G39: 受注No． | H39: =新潟市!BV41 -> 10143 | I39: =IF(新潟市!BY41=0,"",新潟市!BY41) ->  | J39: 1 | K39: =IF(新潟市!AL41=0,"",新潟市!AL41) -> 
A40: ②明細コード | B40: 新潟市 | C40: 中央紙 | D40: 1 | E40: =新潟市!#REF! ->  | F40: 2 | G40: 受注No． | H40: =新潟市!#REF! ->  | I40: =IF(新潟市!#REF!=0,"",新潟市!#REF!) ->  | J40: 1 | K40: =IF(新潟市!#REF!=0,"",新潟市!#REF!) -> 
A41: ②明細コード | B41: 新潟市 | C41: 中央紙 | D41: 2 | E41: =新潟市!#REF! ->  | F41: 2 | G41: 受注No． | H41: =新潟市!#REF! ->  | I41: =IF(新潟市!#REF!=0,"",新潟市!#REF!) ->  | J41: 1 | K41: =IF(新潟市!#REF!=0,"",新潟市!#REF!) -> 
A42: ②明細コード | B42: 新潟市 | C42: 中央紙 | D42: 3 | E42: =新潟市!CE9 -> 本町 | F42: 2 | G42: 受注No． | H42: =新潟市!CF9 -> 210167 | I42: =IF(新潟市!CG9=0,"",新潟市!CG9) ->  | J42: 1 | K42: =IF(新潟市!CH9=0,"",新潟市!CH9) -> 
A43: ②明細コード | B43: 新潟市 | C43: 中央紙 | D43: 4 | E43: =新潟市!CE10 -> 中央 | F43: 2 | G43: 受注No． | H43: =新潟市!CF10 -> 210168 | I43: =IF(新潟市!CG10=0,"",新潟市!CG10) ->  | J43: 1 | K43: =IF(新潟市!CH10=0,"",新潟市!CH10) -> 
A44: ②明細コード | B44: 新潟市 | C44: 中央紙 | D44: 5 | E44: =新潟市!CE11 -> 小針 | F44: 2 | G44: 受注No． | H44: =新潟市!CF11 -> 210169 | I44: =IF(新潟市!CG11=0,"",新潟市!CG11) ->  | J44: 1 | K44: =IF(新潟市!CH11=0,"",新潟市!CH11) -> 
A45: ②明細コード | B45: 新潟市 | C45: 中央紙 | D45: 6 | E45: =新潟市!CE12 -> 寺尾 | F45: 2 | G45: 受注No． | H45: =新潟市!CF12 -> 210170 | I45: =IF(新潟市!CG12=0,"",新潟市!CG12) ->  | J45: 1 | K45: =IF(新潟市!CH12=0,"",新潟市!CH12) -> 
A46: ②明細コード | B46: 新潟市 | C46: 中央紙 | D46: 7 | E46: =新潟市!CE13 -> 内野 | F46: 2 | G46: 受注No． | H46: =新潟市!CF13 -> 210171 | I46: =IF(新潟市!CG13=0,"",新潟市!CG13) ->  | J46: 1 | K46: =IF(新潟市!CH13=0,"",新潟市!CH13) -> 
A47: ②明細コード | B47: 新潟市 | C47: 中央紙 | D47: 8 | E47: =新潟市!CE14 -> 小新黒埼 | F47: 2 | G47: 受注No． | H47: =新潟市!CF14 -> 210172 | I47: =IF(新潟市!CG14=0,"",新潟市!CG14) ->  | J47: 1 | K47: =IF(新潟市!CH14=0,"",新潟市!CH14) -> 
A48: ②明細コード | B48: 新潟市 | C48: 中央紙 | D48: 9 | E48: =新潟市!CE15 -> 黒埼南 | F48: 2 | G48: 受注No． | H48: =新潟市!CF15 -> 210179 | I48: =IF(新潟市!CG15=0,"",新潟市!CG15) ->  | J48: 1 | K48: =IF(新潟市!CH15=0,"",新潟市!CH15) -> 
A49: ②明細コード | B49: 新潟市 | C49: 中央紙 | D49: 10 | E49: =新潟市!CE16 -> 万代 | F49: 2 | G49: 受注No． | H49: =新潟市!CF16 -> 210158 | I49: =IF(新潟市!CG16=0,"",新潟市!CG16) ->  | J49: 1 | K49: =IF(新潟市!CH16=0,"",新潟市!CH16) -> 
A50: ②明細コード | B50: 新潟市 | C50: 中央紙 | D50: 11 | E50: =新潟市!CE17 -> 県庁前 | F50: 2 | G50: 受注No． | H50: =新潟市!CF17 -> 210159 | I50: =IF(新潟市!CG17=0,"",新潟市!CG17) ->  | J50: 1 | K50: =IF(新潟市!CH17=0,"",新潟市!CH17) -> 
A51: ②明細コード | B51: 新潟市 | C51: 中央紙 | D51: 12 | E51: =新潟市!CE18 -> 駅南東 | F51: 2 | G51: 受注No． | H51: =新潟市!CF18 -> 210160 | I51: =IF(新潟市!CG18=0,"",新潟市!CG18) ->  | J51: 1 | K51: =IF(新潟市!CH18=0,"",新潟市!CH18) -> 
A52: ②明細コード | B52: 新潟市 | C52: 中央紙 | D52: 13 | E52: =新潟市!CE19 -> 山木戸 | F52: 2 | G52: 受注No． | H52: =新潟市!CF19 -> 210162 | I52: =IF(新潟市!CG19=0,"",新潟市!CG19) ->  | J52: 1 | K52: =IF(新潟市!CH19=0,"",新潟市!CH19) -> 
A53: ②明細コード | B53: 新潟市 | C53: 中央紙 | D53: 14 | E53: =新潟市!CE20 -> 山ノ下 | F53: 2 | G53: 受注No． | H53: =新潟市!CF20 -> 210163 | I53: =IF(新潟市!CG20=0,"",新潟市!CG20) ->  | J53: 1 | K53: =IF(新潟市!CH20=0,"",新潟市!CH20) -> 
A54: ②明細コード | B54: 新潟市 | C54: 中央紙 | D54: 15 | E54: =新潟市!CE21 -> 松浜 | F54: 2 | G54: 受注No． | H54: =新潟市!CF21 -> 210164 | I54: =IF(新潟市!CG21=0,"",新潟市!CG21) ->  | J54: 1 | K54: =IF(新潟市!CH21=0,"",新潟市!CH21) -> 
A55: ②明細コード | B55: 新潟市 | C55: 中央紙 | D55: 16 | E55: =新潟市!CE22 -> 亀田 | F55: 2 | G55: 受注No． | H55: =新潟市!CF22 -> 210166 | I55: =IF(新潟市!CG22=0,"",新潟市!CG22) ->  | J55: 1 | K55: =IF(新潟市!CH22=0,"",新潟市!CH22) -> 
A56: ②明細コード | B56: 下越地区1 | C56: 日報 | D56: 1 | E56: =下越1!BU9 -> 分水 | F56: 2 | G56: 受注No． | H56: =IF(下越1!BV9=0,"",下越1!BV9) -> 20101 | I56: =IF(下越1!BY9=0,"",下越1!BY9) ->  | J56: 1 | K56: =IF(下越1!BZ9=0,"",下越1!BZ9) -> 
A57: ②明細コード | B57: 下越地区1 | C57: 日報 | D57: =D56+1 -> 2 | E57: =下越1!BU10 -> 吉田 | F57: 2 | G57: 受注No． | H57: =IF(下越1!BV10=0,"",下越1!BV10) -> 20102 | I57: =IF(下越1!BY10=0,"",下越1!BY10) ->  | J57: 1 | K57: =IF(下越1!BZ10=0,"",下越1!BZ10) -> 
A58: ②明細コード | B58: 下越地区1 | C58: 日報 | D58: =D57+1 -> 3 | E58: =下越1!BU11 -> 粟生津 | F58: 2 | G58: 受注No． | H58: =IF(下越1!BV11=0,"",下越1!BV11) -> 20104 | I58: =IF(下越1!BY11=0,"",下越1!BY11) ->  | J58: 1 | K58: =IF(下越1!BZ11=0,"",下越1!BZ11) -> 
A59: ②明細コード | B59: 下越地区1 | C59: 日報 | D59: 4 | E59: =下越1!BU12 -> 巻 | F59: 2 | G59: 受注No． | H59: =IF(下越1!BV12=0,"",下越1!BV12) -> 20105 | I59: =IF(下越1!BY12=0,"",下越1!BY12) ->  | J59: 1 | K59: =IF(下越1!BZ12=0,"",下越1!BZ12) -> 
A60: ②明細コード | B60: 下越地区1 | C60: 日報 | D60: 5 | E60: =下越1!BU13 -> 岩室 | F60: 2 | G60: 受注No． | H60: =IF(下越1!BV13=0,"",下越1!BV13) -> 20108 | I60: =IF(下越1!BY13=0,"",下越1!BY13) ->  | J60: 1 | K60: =IF(下越1!BZ13=0,"",下越1!BZ13) -> 
A61: ②明細コード | B61: 下越地区1 | C61: 日報 | D61: 6 | E61: =下越1!BU14 -> 西川 | F61: 2 | G61: 受注No． | H61: =IF(下越1!BV14=0,"",下越1!BV14) -> 20109 | I61: =IF(下越1!BY14=0,"",下越1!BY14) ->  | J61: 1 | K61: =IF(下越1!BZ14=0,"",下越1!BZ14) -> 
A62: ②明細コード | B62: 下越地区1 | C62: 日報 | D62: 7 | E62: =下越1!BU15 -> 中之口 | F62: 2 | G62: 受注No． | H62: =IF(下越1!BV15=0,"",下越1!BV15) -> 20110 | I62: =IF(下越1!BY15=0,"",下越1!BY15) ->  | J62: 1 | K62: =IF(下越1!BZ15=0,"",下越1!BZ15) -> 
A63: ②明細コード | B63: 下越地区1 | C63: 日報 | D63: 8 | E63: =下越1!BU16 -> 弥彦 | F63: 2 | G63: 受注No． | H63: =IF(下越1!BV16=0,"",下越1!BV16) -> 20111 | I63: =IF(下越1!BY16=0,"",下越1!BY16) ->  | J63: 1 | K63: =IF(下越1!BZ16=0,"",下越1!BZ16) -> 
A64: ②明細コード | B64: 下越地区1 | C64: 日報 | D64: 9 | E64: =下越1!BU17 -> 0 | F64: 2 | G64: 受注No． | H64: =IF(下越1!BV17=0,"",下越1!BV17) ->  | I64: =IF(下越1!BY17=0,"",下越1!BY17) ->  | J64: 1 | K64: =IF(下越1!BZ17=0,"",下越1!BZ17) -> 
A65: ②明細コード | B65: 下越地区1 | C65: 日報 | D65: 10 | E65: =下越1!BU18 -> 小須戸 | F65: 2 | G65: 受注No． | H65: =IF(下越1!BV18=0,"",下越1!BV18) -> 20112 | I65: =IF(下越1!BY18=0,"",下越1!BY18) ->  | J65: 1 | K65: =IF(下越1!BZ18=0,"",下越1!BZ18) -> 
A66: ②明細コード | B66: 下越地区1 | C66: 日報 | D66: 11 | E66: =下越1!BU19 -> 矢代田 | F66: 2 | G66: 受注No． | H66: =IF(下越1!BV19=0,"",下越1!BV19) -> 20113 | I66: =IF(下越1!BY19=0,"",下越1!BY19) ->  | J66: 1 | K66: =IF(下越1!BZ19=0,"",下越1!BZ19) -> 
A67: ②明細コード | B67: 下越地区1 | C67: 日報 | D67: 12 | E67: =下越1!BU20 -> 村松 | F67: 2 | G67: 受注No． | H67: =IF(下越1!BV20=0,"",下越1!BV20) -> 20114 | I67: =IF(下越1!BY20=0,"",下越1!BY20) ->  | J67: 1 | K67: =IF(下越1!BZ20=0,"",下越1!BZ20) -> 
A68: ②明細コード | B68: 下越地区1 | C68: 日報 | D68: 13 | E68: =下越1!BU21 -> 0 | F68: 2 | G68: 受注No． | H68: =IF(下越1!BV21=0,"",下越1!BV21) ->  | I68: =IF(下越1!BY21=0,"",下越1!BY21) ->  | J68: 1 | K68: =IF(下越1!BZ21=0,"",下越1!BZ21) -> 
A69: ②明細コード | B69: 下越地区1 | C69: 日報 | D69: 14 | E69: =下越1!BU22 -> 新津 | F69: 2 | G69: 受注No． | H69: =IF(下越1!BV22=0,"",下越1!BV22) -> 20116 | I69: =IF(下越1!BY22=0,"",下越1!BY22) ->  | J69: 1 | K69: =IF(下越1!BZ22=0,"",下越1!BZ22) -> 
A70: ②明細コード | B70: 下越地区1 | C70: 日報 | D70: 15 | E70: =下越1!BU23 -> 新津・荻川 | F70: 2 | G70: 受注No． | H70: =IF(下越1!BV23=0,"",下越1!BV23) -> 20181 | I70: =IF(下越1!BY23=0,"",下越1!BY23) ->  | J70: 1 | K70: =IF(下越1!BZ23=0,"",下越1!BZ23) -> 
A71: ②明細コード | B71: 下越地区1 | C71: 日報 | D71: 16 | E71: =下越1!BU24 -> 0 | F71: 2 | G71: 受注No． | H71: =IF(下越1!BV24=0,"",下越1!BV24) ->  | I71: =IF(下越1!BY24=0,"",下越1!BY24) ->  | J71: 1 | K71: =IF(下越1!BZ24=0,"",下越1!BZ24) -> 
A72: ②明細コード | B72: 下越地区1 | C72: 日報 | D72: 17 | E72: =下越1!BU25 -> 五泉 | F72: 2 | G72: 受注No． | H72: =IF(下越1!BV25=0,"",下越1!BV25) -> 20117 | I72: =IF(下越1!BY25=0,"",下越1!BY25) ->  | J72: 1 | K72: =IF(下越1!BZ25=0,"",下越1!BZ25) -> 
A73: ②明細コード | B73: 下越地区1 | C73: 日報 | D73: 18 | E73: =下越1!BU27 -> 保田・馬下 | F73: 2 | G73: 受注No． | H73: =IF(下越1!BV27=0,"",下越1!BV27) -> 20183 | I73: =IF(下越1!BY27=0,"",下越1!BY27) ->  | J73: 1 | K73: =IF(下越1!BZ27=0,"",下越1!BZ27) -> 
A74: ②明細コード | B74: 下越地区1 | C74: 日報 | D74: 19 | E74: =下越1!BU28 -> 0 | F74: 2 | G74: 受注No． | H74: =IF(下越1!BV28=0,"",下越1!BV28) ->  | I74: =IF(下越1!BY28=0,"",下越1!BY28) ->  | J74: 1 | K74: =IF(下越1!BZ28=0,"",下越1!BZ28) -> 
A75: ②明細コード | B75: 下越地区1 | C75: 日報 | D75: 20 | E75: =下越1!BU29 -> 白根 | F75: 2 | G75: 受注No． | H75: =IF(下越1!BV29=0,"",下越1!BV29) -> 20120 | I75: =IF(下越1!BY29=0,"",下越1!BY29) ->  | J75: 1 | K75: =IF(下越1!BZ29=0,"",下越1!BZ29) -> 
A76: ②明細コード | B76: 下越地区1 | C76: 日報 | D76: 21 | E76: =下越1!BU30 -> 月潟 | F76: 2 | G76: 受注No． | H76: =IF(下越1!BV30=0,"",下越1!BV30) -> 20122 | I76: =IF(下越1!BY30=0,"",下越1!BY30) ->  | J76: 1 | K76: =IF(下越1!BZ30=0,"",下越1!BZ30) -> 
A77: ②明細コード | B77: 下越地区1 | C77: 日報 | D77: 22 | E77: =下越1!BU31 -> 新飯田 | F77: 2 | G77: 受注No． | H77: =IF(下越1!BV31=0,"",下越1!BV31) -> 20123 | I77: =IF(下越1!BY31=0,"",下越1!BY31) ->  | J77: 1 | K77: =IF(下越1!BZ31=0,"",下越1!BZ31) -> 
A78: ②明細コード | B78: 下越地区1 | C78: 日報 | D78: 23 | E78: =下越1!BU32 -> 0 | F78: 2 | G78: 受注No． | H78: =IF(下越1!BV32=0,"",下越1!BV32) ->  | I78: =IF(下越1!BY32=0,"",下越1!BY32) ->  | J78: 1 | K78: =IF(下越1!BZ32=0,"",下越1!BZ32) -> 
A79: ②明細コード | B79: 下越地区1 | C79: 日報 | D79: 24 | E79: =下越1!BU33 -> 三条北 | F79: 2 | G79: 受注No． | H79: =IF(下越1!BV33=0,"",下越1!BV33) -> 20124 | I79: =IF(下越1!BY33=0,"",下越1!BY33) ->  | J79: 1 | K79: =IF(下越1!BZ33=0,"",下越1!BZ33) -> 
A80: ②明細コード | B80: 下越地区1 | C80: 日報 | D80: 25 | E80: =下越1!BU34 -> 三条南 | F80: 2 | G80: 受注No． | H80: =IF(下越1!BV34=0,"",下越1!BV34) -> 20125 | I80: =IF(下越1!BY34=0,"",下越1!BY34) ->  | J80: 1 | K80: =IF(下越1!BZ34=0,"",下越1!BZ34) -> 
A81: ②明細コード | B81: 下越地区1 | C81: 日報 | D81: 26 | E81: =下越1!#REF! ->  | F81: 2 | G81: 受注No． | H81: =IF(下越1!#REF!=0,"",下越1!#REF!) ->  | I81: =IF(下越1!#REF!=0,"",下越1!#REF!) ->  | J81: 1 | K81: =IF(下越1!#REF!=0,"",下越1!#REF!) -> 
A82: ②明細コード | B82: 下越地区1 | C82: 日報 | D82: 27 | E82: =下越1!BU35 -> 0 | F82: 2 | G82: 受注No． | H82: =IF(下越1!BV35=0,"",下越1!BV35) ->  | I82: =IF(下越1!BY35=0,"",下越1!BY35) ->  | J82: 1 | K82: =IF(下越1!BZ35=0,"",下越1!BZ35) -> 
A83: ②明細コード | B83: 下越地区1 | C83: 日報 | D83: 28 | E83: =下越1!BU36 -> 燕 | F83: 2 | G83: 受注No． | H83: =IF(下越1!BV36=0,"",下越1!BV36) -> 20130 | I83: =IF(下越1!BY36=0,"",下越1!BY36) ->  | J83: 1 | K83: =IF(下越1!BZ36=0,"",下越1!BZ36) -> 
A84: ②明細コード | B84: 下越地区1 | C84: 日報 | D84: 29 | E84: =下越1!BU37 -> 燕南 | F84: 2 | G84: 受注No． | H84: =IF(下越1!BV37=0,"",下越1!BV37) -> 20131 | I84: =IF(下越1!BY37=0,"",下越1!BY37) ->  | J84: 1 | K84: =IF(下越1!BZ37=0,"",下越1!BZ37) -> 
A85: ②明細コード | B85: 下越地区1 | C85: 日報 | D85: 30 | E85: =下越1!BU38 -> 0 | F85: 2 | G85: 受注No． | H85: =IF(下越1!BV38=0,"",下越1!BV38) ->  | I85: =IF(下越1!BY38=0,"",下越1!BY38) ->  | J85: 1 | K85: =IF(下越1!BZ38=0,"",下越1!BZ38) -> 
A86: ②明細コード | B86: 下越地区1 | C86: 日報 | D86: 31 | E86: =下越1!BU39 -> 加茂 | F86: 2 | G86: 受注No． | H86: =IF(下越1!BV39=0,"",下越1!BV39) -> 20135 | I86: =IF(下越1!BY39=0,"",下越1!BY39) ->  | J86: 1 | K86: =IF(下越1!BZ39=0,"",下越1!BZ39) -> 
A87: ②明細コード | B87: 下越地区1 | C87: 日報 | D87: 32 | E87: =下越1!BU40 -> 0 | F87: 2 | G87: 受注No． | H87: =IF(下越1!BV40=0,"",下越1!BV40) ->  | I87: =IF(下越1!BY40=0,"",下越1!BY40) ->  | J87: 1 | K87: =IF(下越1!BZ40=0,"",下越1!BZ40) -> 
A88: ②明細コード | B88: 下越地区1 | C88: 日報 | D88: 33 | E88: =下越1!BU41 -> 下田 | F88: 2 | G88: 受注No． | H88: =IF(下越1!BV41=0,"",下越1!BV41) -> 20139 | I88: =IF(下越1!BY41=0,"",下越1!BY41) ->  | J88: 1 | K88: =IF(下越1!BZ41=0,"",下越1!BZ41) -> 
A89: ②明細コード | B89: 下越地区1 | C89: 日報 | D89: 34 | E89: =下越1!BU42 -> 栄山嵜 | F89: 2 | G89: 受注No． | H89: =IF(下越1!BV42=0,"",下越1!BV42) -> 20140 | I89: =IF(下越1!BY42=0,"",下越1!BY42) ->  | J89: 1 | K89: =IF(下越1!BZ42=0,"",下越1!BZ42) -> 
A90: ②明細コード | B90: 下越地区1 | C90: 日報 | D90: 35 | E90: =下越1!BU43 -> 栄吉田 | F90: 2 | G90: 受注No． | H90: =IF(下越1!BV43=0,"",下越1!BV43) -> 20141 | I90: =IF(下越1!BY43=0,"",下越1!BY43) ->  | J90: 1 | K90: =IF(下越1!BZ43=0,"",下越1!BZ43) -> 
A91: ②明細コード | B91: 下越地区1 | C91: 日報 | D91: 36 | E91: =下越1!BU44 -> 帯織 | F91: 2 | G91: 受注No． | H91: =IF(下越1!BV44=0,"",下越1!BV44) -> 20143 | I91: =IF(下越1!BY44=0,"",下越1!BY44) ->  | J91: 1 | K91: =IF(下越1!BZ44=0,"",下越1!BZ44) -> 
A92: ②明細コード | B92: 下越地区1 | C92: 日報 | D92: 37 | E92: =下越1!BU45 -> 0 | F92: 2 | G92: 受注No． | H92: =IF(下越1!BV45=0,"",下越1!BV45) ->  | I92: =IF(下越1!BY45=0,"",下越1!BY45) ->  | J92: 1 | K92: =IF(下越1!BZ45=0,"",下越1!BZ45) -> 
A93: ②明細コード | B93: 下越地区1 | C93: 日報 | D93: 38 | E93: =下越1!BU46 -> 豊栄 | F93: 2 | G93: 受注No． | H93: =IF(下越1!BV46=0,"",下越1!BV46) -> 20179 | I93: =IF(下越1!BY46=0,"",下越1!BY46) ->  | J93: 1 | K93: =IF(下越1!BZ46=0,"",下越1!BZ46) -> 
A94: ②明細コード | B94: 下越地区1 | C94: 日報 | D94: 39 | E94: =下越1!#REF! ->  | F94: 2 | G94: 受注No． | H94: =IF(下越1!#REF!=0,"",下越1!#REF!) ->  | I94: =IF(下越1!#REF!=0,"",下越1!#REF!) ->  | J94: 1 | K94: =IF(下越1!#REF!=0,"",下越1!#REF!) -> 
A95: ②明細コード | B95: 下越地区1 | C95: 日報 | D95: 40 | E95: =下越1!BU47 -> 木崎 | F95: 2 | G95: 受注No． | H95: =IF(下越1!BV47=0,"",下越1!BV47) -> 20146 | I95: =IF(下越1!BY47=0,"",下越1!BY47) ->  | J95: 1 | K95: =IF(下越1!BZ47=0,"",下越1!BZ47) -> 
A96: ②明細コード | B96: 下越地区1 | C96: 中央紙 | D96: 1 | E96: =下越1!CE9 -> 巻 | F96: 2 | G96: 受注No． | H96: =IF(下越1!CF9=0,"",下越1!CF9) -> 20106 | I96: =IF(下越1!CG9=0,"",下越1!CG9) ->  | J96: 1 | K96: =IF(下越1!CH9=0,"",下越1!CH9) -> 
A97: ②明細コード | B97: 下越地区1 | C97: 中央紙 | D97: 2 | E97: =下越1!CE10 -> 巻 | F97: 2 | G97: 受注No． | H97: =IF(下越1!CF10=0,"",下越1!CF10) -> 220107 | I97: =IF(下越1!CG10=0,"",下越1!CG10) ->  | J97: 1 | K97: =IF(下越1!CH10=0,"",下越1!CH10) -> 
A98: ②明細コード | B98: 下越地区1 | C98: 中央紙 | D98: 3 | E98: =下越1!CE11 -> 0 | F98: 2 | G98: 受注No． | H98: =IF(下越1!CF11=0,"",下越1!CF11) ->  | I98: =IF(下越1!CG11=0,"",下越1!CG11) ->  | J98: 1 | K98: =IF(下越1!CH11=0,"",下越1!CH11) -> 
A99: ②明細コード | B99: 下越地区1 | C99: 中央紙 | D99: 4 | E99: =下越1!CE12 -> 0 | F99: 2 | G99: 受注No． | H99: =IF(下越1!CF12=0,"",下越1!CF12) ->  | I99: =IF(下越1!CG12=0,"",下越1!CG12) ->  | J99: 1 | K99: =IF(下越1!CH12=0,"",下越1!CH12) -> 
A100: ②明細コード | B100: 下越地区1 | C100: 中央紙 | D100: 5 | E100: =下越1!CE13 -> 0 | F100: 2 | G100: 受注No． | H100: =IF(下越1!CF13=0,"",下越1!CF13) ->  | I100: =IF(下越1!CG13=0,"",下越1!CG13) ->  | J100: 1 | K100: =IF(下越1!CH13=0,"",下越1!CH13) -> 
A101: ②明細コード | B101: 下越地区1 | C101: 中央紙 | D101: 6 | E101: =下越1!CE14 -> 0 | F101: 2 | G101: 受注No． | H101: =IF(下越1!CF14=0,"",下越1!CF14) ->  | I101: =IF(下越1!CG14=0,"",下越1!CG14) ->  | J101: 1 | K101: =IF(下越1!CH14=0,"",下越1!CH14) -> 
A102: ②明細コード | B102: 下越地区1 | C102: 中央紙 | D102: 7 | E102: =下越1!CE15 -> 0 | F102: 2 | G102: 受注No． | H102: =IF(下越1!CF15=0,"",下越1!CF15) ->  | I102: =IF(下越1!CG15=0,"",下越1!CG15) ->  | J102: 1 | K102: =IF(下越1!CH15=0,"",下越1!CH15) -> 
A103: ②明細コード | B103: 下越地区1 | C103: 中央紙 | D103: 8 | E103: =下越1!CE16 -> 0 | F103: 2 | G103: 受注No． | H103: =IF(下越1!CF16=0,"",下越1!CF16) ->  | I103: =IF(下越1!CG16=0,"",下越1!CG16) ->  | J103: 1 | K103: =IF(下越1!CH16=0,"",下越1!CH16) -> 
A104: ②明細コード | B104: 下越地区1 | C104: 中央紙 | D104: 9 | E104: =下越1!CE17 -> 0 | F104: 2 | G104: 受注No． | H104: =IF(下越1!CF17=0,"",下越1!CF17) ->  | I104: =IF(下越1!CG17=0,"",下越1!CG17) ->  | J104: 1 | K104: =IF(下越1!CH17=0,"",下越1!CH17) -> 
A105: ②明細コード | B105: 下越地区1 | C105: 中央紙 | D105: 10 | E105: =下越1!CE18 -> 0 | F105: 2 | G105: 受注No． | H105: =IF(下越1!CF18=0,"",下越1!CF18) ->  | I105: =IF(下越1!CG18=0,"",下越1!CG18) ->  | J105: 1 | K105: =IF(下越1!CH18=0,"",下越1!CH18) -> 
A106: ②明細コード | B106: 下越地区２ | C106: 日報 | D106: 1 | E106: =下越２!BU9 -> 新発田西 | F106: 2 | G106: 受注No． | H106: =IF(下越２!BV9=0,"",下越２!BV9) -> 20148 | I106: =IF(下越２!BY9=0,"",下越２!BY9) ->  | J106: 1 | K106: =IF(下越２!BZ9=0,"",下越２!BZ9) -> 
A107: ②明細コード | B107: 下越地区２ | C107: 日報 | D107: 2 | E107: =下越２!BU10 -> 新発田東 | F107: 2 | G107: 受注No． | H107: =IF(下越２!BV10=0,"",下越２!BV10) -> 20149 | I107: =IF(下越２!BY10=0,"",下越２!BY10) ->  | J107: 1 | K107: =IF(下越２!BZ10=0,"",下越２!BZ10) -> 
A108: ②明細コード | B108: 下越地区２ | C108: 日報 | D108: 3 | E108: =下越２!BU11 -> 月岡 | F108: 2 | G108: 受注No． | H108: =IF(下越２!BV11=0,"",下越２!BV11) -> 20153 | I108: =IF(下越２!BY11=0,"",下越２!BY11) ->  | J108: 1 | K108: =IF(下越２!BZ11=0,"",下越２!BZ11) -> 
A109: ②明細コード | B109: 下越地区２ | C109: 日報 | D109: 4 | E109: =下越２!BU12 -> ※木崎ミニック | F109: 2 | G109: 受注No． | H109: =IF(下越２!BV12=0,"",下越２!BV12) -> 20180 | I109: =IF(下越２!BY12=0,"",下越２!BY12) ->  | J109: 1 | K109: =IF(下越２!BZ12=0,"",下越２!BZ12) -> 
A110: ②明細コード | B110: 下越地区２ | C110: 日報 | D110: 5 | E110: =下越２!BU13 -> 0 | F110: 2 | G110: 受注No． | H110: =IF(下越２!BV13=0,"",下越２!BV13) ->  | I110: =IF(下越２!BY13=0,"",下越２!BY13) ->  | J110: 1 | K110: =IF(下越２!BZ13=0,"",下越２!BZ13) -> 
A111: ②明細コード | B111: 下越地区２ | C111: 日報 | D111: 6 | E111: =下越２!BU14 -> 中条東 | F111: 2 | G111: 受注No． | H111: =IF(下越２!BV14=0,"",下越２!BV14) -> 20154 | I111: =IF(下越２!BY14=0,"",下越２!BY14) ->  | J111: 1 | K111: =IF(下越２!BZ14=0,"",下越２!BZ14) -> 
A112: ②明細コード | B112: 下越地区２ | C112: 日報 | D112: 7 | E112: =下越２!BU15 -> 西中条 | F112: 2 | G112: 受注No． | H112: =IF(下越２!BV15=0,"",下越２!BV15) -> 20155 | I112: =IF(下越２!BY15=0,"",下越２!BY15) ->  | J112: 1 | K112: =IF(下越２!BZ15=0,"",下越２!BZ15) -> 
A113: ②明細コード | B113: 下越地区２ | C113: 日報 | D113: 8 | E113: =下越２!BU16 -> 黒川 | F113: 2 | G113: 受注No． | H113: =IF(下越２!BV16=0,"",下越２!BV16) -> 20157 | I113: =IF(下越２!BY16=0,"",下越２!BY16) ->  | J113: 1 | K113: =IF(下越２!BZ16=0,"",下越２!BZ16) -> 
A114: ②明細コード | B114: 下越地区２ | C114: 日報 | D114: 9 | E114: =下越２!BU17 -> 水原 | F114: 2 | G114: 受注No． | H114: =IF(下越２!BV17=0,"",下越２!BV17) -> 20158 | I114: =IF(下越２!BY17=0,"",下越２!BY17) ->  | J114: 1 | K114: =IF(下越２!BZ17=0,"",下越２!BZ17) -> 
A115: ②明細コード | B115: 下越地区２ | C115: 日報 | D115: 10 | E115: =下越２!BU18 -> 保田 | F115: 2 | G115: 受注No． | H115: =IF(下越２!BV18=0,"",下越２!BV18) -> 20161 | I115: =IF(下越２!BY18=0,"",下越２!BY18) ->  | J115: 1 | K115: =IF(下越２!BZ18=0,"",下越２!BZ18) -> 
A116: ②明細コード | B116: 下越地区２ | C116: 日報 | D116: 11 | E116: =下越２!BU19 -> 0 | F116: 2 | G116: 受注No． | H116: =IF(下越２!BV19=0,"",下越２!BV19) ->  | I116: =IF(下越２!BY19=0,"",下越２!BY19) ->  | J116: 1 | K116: =IF(下越２!BZ19=0,"",下越２!BZ19) -> 
A117: ②明細コード | B117: 下越地区２ | C117: 日報 | D117: 12 | E117: =下越２!BU20 -> 村上 | F117: 2 | G117: 受注No． | H117: =IF(下越２!BV20=0,"",下越２!BV20) -> 20162 | I117: =IF(下越２!BY20=0,"",下越２!BY20) ->  | J117: 1 | K117: =IF(下越２!BZ20=0,"",下越２!BZ20) -> 
A118: ②明細コード | B118: 下越地区２ | C118: 日報 | D118: 13 | E118: =下越２!BU21 -> 岩船 | F118: 2 | G118: 受注No． | H118: =IF(下越２!BV21=0,"",下越２!BV21) -> 20163 | I118: =IF(下越２!BY21=0,"",下越２!BY21) ->  | J118: 1 | K118: =IF(下越２!BZ21=0,"",下越２!BZ21) -> 
A119: ②明細コード | B119: 下越地区２ | C119: 日報 | D119: 14 | E119: =下越２!BU22 -> 越後早川 | F119: 2 | G119: 受注No． | H119: =IF(下越２!BV22=0,"",下越２!BV22) -> 20164 | I119: =IF(下越２!BY22=0,"",下越２!BY22) ->  | J119: 1 | K119: =IF(下越２!BZ22=0,"",下越２!BZ22) -> 
A120: ②明細コード | B120: 下越地区２ | C120: 日報 | D120: 15 | E120: =下越２!BU23 -> 0 | F120: 2 | G120: 受注No． | H120: =IF(下越２!BV23=0,"",下越２!BV23) ->  | I120: =IF(下越２!BY23=0,"",下越２!BY23) ->  | J120: 1 | K120: =IF(下越２!BZ23=0,"",下越２!BZ23) -> 
A121: ②明細コード | B121: 下越地区２ | C121: 日報 | D121: 16 | E121: =下越２!BU24 -> 坂町 | F121: 2 | G121: 受注No． | H121: =IF(下越２!BV24=0,"",下越２!BV24) -> 20165 | I121: =IF(下越２!BY24=0,"",下越２!BY24) ->  | J121: 1 | K121: =IF(下越２!BZ24=0,"",下越２!BZ24) -> 
A122: ②明細コード | B122: 下越地区２ | C122: 日報 | D122: 17 | E122: =下越２!#REF! ->  | F122: 2 | G122: 受注No． | H122: =IF(下越２!#REF!=0,"",下越２!#REF!) ->  | I122: =IF(下越２!#REF!=0,"",下越２!#REF!) ->  | J122: 1 | K122: =IF(下越２!#REF!=0,"",下越２!#REF!) -> 
A123: ②明細コード | B123: 下越地区２ | C123: 日報 | D123: =D122+1 -> 18 | E123: =下越２!BU25 -> 関川 | F123: 2 | G123: 受注No． | H123: =IF(下越２!BV25=0,"",下越２!BV25) -> 20167 | I123: =IF(下越２!BY25=0,"",下越２!BY25) ->  | J123: 1 | K123: =IF(下越２!BZ25=0,"",下越２!BZ25) -> 
A124: ②明細コード | B124: 下越地区２ | C124: 日報 | D124: 19 | E124: =下越２!#REF! ->  | F124: 2 | G124: 受注No． | H124: =IF(下越２!#REF!=0,"",下越２!#REF!) ->  | I124: =IF(下越２!#REF!=0,"",下越２!#REF!) ->  | J124: 1 | K124: =IF(下越２!#REF!=0,"",下越２!#REF!) -> 
A125: ②明細コード | B125: 下越地区２ | C125: 日報 | D125: 20 | E125: =下越２!BU26 -> 府屋 | F125: 2 | G125: 受注No． | H125: =IF(下越２!BV26=0,"",下越２!BV26) -> 20170 | I125: =IF(下越２!BY26=0,"",下越２!BY26) ->  | J125: 1 | K125: =IF(下越２!BZ26=0,"",下越２!BZ26) -> 
A126: ②明細コード | B126: 下越地区２ | C126: 日報 | D126: 21 | E126: =下越２!BU27 -> 黒川俣 | F126: 2 | G126: 受注No． | H126: =IF(下越２!BV27=0,"",下越２!BV27) -> 20172 | I126: =IF(下越２!BY27=0,"",下越２!BY27) ->  | J126: 1 | K126: =IF(下越２!BZ27=0,"",下越２!BZ27) -> 
A127: ②明細コード | B127: 下越地区２ | C127: 日報 | D127: 22 | E127: =下越２!BU28 -> 0 | F127: 2 | G127: 受注No． | H127: =IF(下越２!BV28=0,"",下越２!BV28) ->  | I127: =IF(下越２!BY28=0,"",下越２!BY28) ->  | J127: 1 | K127: =IF(下越２!BZ28=0,"",下越２!BZ28) -> 
A128: ②明細コード | B128: 下越地区２ | C128: 日報 | D128: 23 | E128: =下越２!BU29 -> 津川 | F128: 2 | G128: 受注No． | H128: =IF(下越２!BV29=0,"",下越２!BV29) -> 20173 | I128: =IF(下越２!BY29=0,"",下越２!BY29) ->  | J128: 1 | K128: =IF(下越２!BZ29=0,"",下越２!BZ29) -> 
A129: ②明細コード | B129: 下越地区２ | C129: 日報 | D129: 24 | E129: =下越２!BU30 -> 豊実 | F129: 2 | G129: 受注No． | H129: =IF(下越２!BV30=0,"",下越２!BV30) -> 20174 | I129: =IF(下越２!BY30=0,"",下越２!BY30) ->  | J129: 1 | K129: =IF(下越２!BZ30=0,"",下越２!BZ30) -> 
A130: ②明細コード | B130: 下越地区２ | C130: 日報 | D130: 25 | E130: =下越２!BU31 -> 日出谷 | F130: 2 | G130: 受注No． | H130: =IF(下越２!BV31=0,"",下越２!BV31) -> 20175 | I130: =IF(下越２!BY31=0,"",下越２!BY31) ->  | J130: 1 | K130: =IF(下越２!BZ31=0,"",下越２!BZ31) -> 
A131: ②明細コード | B131: 下越地区２ | C131: 日報 | D131: 26 | E131: =下越２!BU32 -> 鹿瀬 | F131: 2 | G131: 受注No． | H131: =IF(下越２!BV32=0,"",下越２!BV32) -> 20176 | I131: =IF(下越２!BY32=0,"",下越２!BY32) ->  | J131: 1 | K131: =IF(下越２!BZ32=0,"",下越２!BZ32) -> 
A132: ②明細コード | B132: 下越地区２ | C132: 日報 | D132: 27 | E132: =下越２!BU33 -> 白崎 | F132: 2 | G132: 受注No． | H132: =IF(下越２!BV33=0,"",下越２!BV33) -> 20177 | I132: =IF(下越２!BY33=0,"",下越２!BY33) ->  | J132: 1 | K132: =IF(下越２!BZ33=0,"",下越２!BZ33) -> 
A133: ②明細コード | B133: 下越地区２ | C133: 日報 | D133: 28 | E133: =下越２!BU35 -> 保田・五十島 | F133: 2 | G133: 受注No． | H133: =IF(下越２!BV35=0,"",下越２!BV35) -> 20182 | I133: =IF(下越２!BY35=0,"",下越２!BY35) ->  | J133: 1 | K133: =IF(下越２!BZ35=0,"",下越２!BZ35) -> 
A134: ②明細コード | B134: 下越地区２ | C134: 日報 | D134: 29 | E134: =下越２!BU36 -> 0 | F134: 2 | G134: 受注No． | H134: =IF(下越２!BV36=0,"",下越２!BV36) ->  | I134: =IF(下越２!BY36=0,"",下越２!BY36) ->  | J134: 1 | K134: =IF(下越２!BZ36=0,"",下越２!BZ36) -> 
A135: ②明細コード | B135: 下越地区２ | C135: 日報 | D135: 30 | E135: =下越２!BU37 -> 小国 | F135: 2 | G135: 受注No． | H135: =IF(下越２!BV37=0,"",下越２!BV37) -> 20201 | I135: =IF(下越２!BY37=0,"",下越２!BY37) ->  | J135: 1 | K135: =IF(下越２!BZ37=0,"",下越２!BZ37) -> 
A136: ②明細コード | B136: 下越地区２ | C136: 日報 | D136: 31 | E136: =下越２!BU38 -> 0 | F136: 2 | G136: 受注No． | H136: =IF(下越２!BV38=0,"",下越２!BV38) ->  | I136: =IF(下越２!BY38=0,"",下越２!BY38) ->  | J136: 1 | K136: =IF(下越２!BZ38=0,"",下越２!BZ38) -> 
A137: ②明細コード | B137: 下越地区２ | C137: 日報 | D137: 32 | E137: =下越２!BU39 -> 両津 | F137: 2 | G137: 受注No． | H137: =IF(下越２!BV39=0,"",下越２!BV39) -> 30101 | I137: =IF(下越２!BY39=0,"",下越２!BY39) ->  | J137: 1 | K137: =IF(下越２!BZ39=0,"",下越２!BZ39) -> 
A138: ②明細コード | B138: 下越地区２ | C138: 日報 | D138: 33 | E138: =下越２!BU40 -> 吉井 | F138: 2 | G138: 受注No． | H138: =IF(下越２!BV40=0,"",下越２!BV40) -> 30105 | I138: =IF(下越２!BY40=0,"",下越２!BY40) ->  | J138: 1 | K138: =IF(下越２!BZ40=0,"",下越２!BZ40) -> 
A139: ②明細コード | B139: 下越地区２ | C139: 日報 | D139: 34 | E139: =下越２!#REF! ->  | F139: 2 | G139: 受注No． | H139: =IF(下越２!#REF!=0,"",下越２!#REF!) ->  | I139: =IF(下越２!#REF!=0,"",下越２!#REF!) ->  | J139: 1 | K139: =IF(下越２!#REF!=0,"",下越２!#REF!) -> 
A140: ②明細コード | B140: 下越地区２ | C140: 日報 | D140: 35 | E140: =下越２!BU41 -> 0 | F140: 2 | G140: 受注No． | H140: =IF(下越２!BV41=0,"",下越２!BV41) ->  | I140: =IF(下越２!BY41=0,"",下越２!BY41) ->  | J140: 1 | K140: =IF(下越２!BZ41=0,"",下越２!BZ41) -> 
A141: ②明細コード | B141: 下越地区２ | C141: 日報 | D141: 36 | E141: =下越２!BU42 -> 真野 | F141: 2 | G141: 受注No． | H141: =IF(下越２!BV42=0,"",下越２!BV42) -> 30106 | I141: =IF(下越２!BY42=0,"",下越２!BY42) ->  | J141: 1 | K141: =IF(下越２!BZ42=0,"",下越２!BZ42) -> 
A142: ②明細コード | B142: 下越地区２ | C142: 日報 | D142: 37 | E142: =下越２!BU43 -> 新穂 | F142: 2 | G142: 受注No． | H142: =IF(下越２!BV43=0,"",下越２!BV43) -> 30108 | I142: =IF(下越２!BY43=0,"",下越２!BY43) ->  | J142: 1 | K142: =IF(下越２!BZ43=0,"",下越２!BZ43) -> 
A143: ②明細コード | B143: 下越地区２ | C143: 日報 | D143: 38 | E143: =下越２!BU44 -> 畑野 | F143: 2 | G143: 受注No． | H143: =IF(下越２!BV44=0,"",下越２!BV44) -> 30111 | I143: =IF(下越２!BY44=0,"",下越２!BY44) ->  | J143: 1 | K143: =IF(下越２!BZ44=0,"",下越２!BZ44) -> 
A144: ②明細コード | B144: 下越地区２ | C144: 日報 | D144: 39 | E144: =下越２!BU45 -> 佐和田 | F144: 2 | G144: 受注No． | H144: =IF(下越２!BV45=0,"",下越２!BV45) -> 30114 | I144: =IF(下越２!BY45=0,"",下越２!BY45) ->  | J144: 1 | K144: =IF(下越２!BZ45=0,"",下越２!BZ45) -> 
A145: ②明細コード | B145: 下越地区２ | C145: 日報 | D145: 40 | E145: =下越２!BU46 -> 相川 | F145: 2 | G145: 受注No． | H145: =IF(下越２!BV46=0,"",下越２!BV46) -> 30110 | I145: =IF(下越２!BY46=0,"",下越２!BY46) ->  | J145: 1 | K145: =IF(下越２!BZ46=0,"",下越２!BZ46) -> 
A146: ②明細コード | B146: 下越地区２ | C146: 日報 | D146: 41 | E146: =下越２!BU47 -> 金井 | F146: 2 | G146: 受注No． | H146: =IF(下越２!BV47=0,"",下越２!BV47) -> 30121 | I146: =IF(下越２!BY47=0,"",下越２!BY47) ->  | J146: 1 | K146: =IF(下越２!BZ47=0,"",下越２!BZ47) -> 
A147: ②明細コード | B147: 下越地区２ | C147: 日報 | D147: 42 | E147: =下越２!BU48 -> 羽茂 | F147: 2 | G147: 受注No． | H147: =IF(下越２!BV48=0,"",下越２!BV48) -> 30122 | I147: =IF(下越２!BY48=0,"",下越２!BY48) ->  | J147: 1 | K147: =IF(下越２!BZ48=0,"",下越２!BZ48) -> 
A148: ②明細コード | B148: 下越地区２ | C148: 日報 | D148: 43 | E148: =下越２!BU49 -> 小木 | F148: 2 | G148: 受注No． | H148: =IF(下越２!BV49=0,"",下越２!BV49) -> 30124 | I148: =IF(下越２!BY49=0,"",下越２!BY49) ->  | J148: 1 | K148: =IF(下越２!BZ49=0,"",下越２!BZ49) -> 
A149: ②明細コード | B149: 下越地区２ | C149: 日報 | D149: 44 | E149: =下越２!BU50 -> 赤泊 | F149: 2 | G149: 受注No． | H149: =IF(下越２!BV50=0,"",下越２!BV50) -> 30127 | I149: =IF(下越２!BY50=0,"",下越２!BY50) ->  | J149: 1 | K149: =IF(下越２!BZ50=0,"",下越２!BZ50) -> 
A150: ②明細コード | B150: 下越地区２ | C150: 日報 | D150: 45 | E150: =下越２!BU51 -> 多田 | F150: 2 | G150: 受注No． | H150: =IF(下越２!BV51=0,"",下越２!BV51) -> 30130 | I150: =IF(下越２!BY51=0,"",下越２!BY51) ->  | J150: 1 | K150: =IF(下越２!BZ51=0,"",下越２!BZ51) -> 
A151: ②明細コード | B151: 下越地区２ | C151: 中央紙 | D151: 1 | E151: =下越２!#REF! ->  | F151: 2 | G151: 受注No． | H151: =IF(下越２!#REF!=0,"",下越２!#REF!) ->  | I151: =IF(下越２!#REF!=0,"",下越２!#REF!) ->  | J151: 1 | K151: =IF(下越２!#REF!=0,"",下越２!#REF!) -> 
A152: ②明細コード | B152: 下越地区２ | C152: 中央紙 | D152: =D151+1 -> 2 | E152: =下越２!CE9 -> 新発田 | F152: 2 | G152: 受注No． | H152: =IF(下越２!CF9=0,"",下越２!CF9) -> 220152 | I152: =IF(下越２!CG9=0,"",下越２!CG9) ->  | J152: 1 | K152: =IF(下越２!CH9=0,"",下越２!CH9) -> 
A153: ②明細コード | B153: 下越地区２ | C153: 中央紙 | D153: 3 | E153: =下越２!CE10 -> 0 | F153: 2 | G153: 受注No． | H153: =IF(下越２!CF10=0,"",下越２!CF10) ->  | I153: =IF(下越２!CG10=0,"",下越２!CG10) ->  | J153: 1 | K153: =IF(下越２!CH10=0,"",下越２!CH10) -> 
A154: ②明細コード | B154: 下越地区２ | C154: 中央紙 | D154: 4 | E154: =下越２!CE11 -> 0 | F154: 2 | G154: 受注No． | H154: =IF(下越２!CF11=0,"",下越２!CF11) ->  | I154: =IF(下越２!CG11=0,"",下越２!CG11) ->  | J154: 1 | K154: =IF(下越２!CH11=0,"",下越２!CH11) -> 
A155: ②明細コード | B155: 下越地区２ | C155: 中央紙 | D155: 5 | E155: =下越２!CE12 -> 0 | F155: 2 | G155: 受注No． | H155: =IF(下越２!CF12=0,"",下越２!CF12) ->  | I155: =IF(下越２!CG12=0,"",下越２!CG12) ->  | J155: 1 | K155: =IF(下越２!CH12=0,"",下越２!CH12) -> 
A156: ②明細コード | B156: 下越地区２ | C156: 中央紙 | D156: 6 | E156: =下越２!CE13 -> 0 | F156: 2 | G156: 受注No． | H156: =IF(下越２!CF13=0,"",下越２!CF13) ->  | I156: =IF(下越２!CG13=0,"",下越２!CG13) ->  | J156: 1 | K156: =IF(下越２!CH13=0,"",下越２!CH13) -> 
A157: ②明細コード | B157: 下越地区２ | C157: 中央紙 | D157: 7 | E157: =下越２!CE14 -> 中条 | F157: 2 | G157: 受注No． | H157: =IF(下越２!CF14=0,"",下越２!CF14) -> 220156 | I157: =IF(下越２!CG14=0,"",下越２!CG14) ->  | J157: 1 | K157: =IF(下越２!CH14=0,"",下越２!CH14) -> 
A158: ②明細コード | B158: 下越地区２ | C158: 中央紙 | D158: 8 | E158: =下越２!CE18 -> 0 | F158: 2 | G158: 受注No． | H158: =IF(下越２!CF18=0,"",下越２!CF18) ->  | I158: =IF(下越２!CG18=0,"",下越２!CG18) ->  | J158: 1 | K158: =IF(下越２!CH18=0,"",下越２!CH18) -> 
A159: ②明細コード | B159: 下越地区２ | C159: 中央紙 | D159: 9 | E159: =下越２!CE19 -> 0 | F159: 2 | G159: 受注No． | H159: =IF(下越２!CF19=0,"",下越２!CF19) ->  | I159: =IF(下越２!CG19=0,"",下越２!CG19) ->  | J159: 1 | K159: =IF(下越２!CH19=0,"",下越２!CH19) -> 
A160: ②明細コード | B160: 下越地区２ | C160: 中央紙 | D160: 10 | E160: =下越２!CE21 -> 0 | F160: 2 | G160: 受注No． | H160: =IF(下越２!CF21=0,"",下越２!CF21) ->  | I160: =IF(下越２!CG21=0,"",下越２!CG21) ->  | J160: 1 | K160: =IF(下越２!CH21=0,"",下越２!CH21) -> 
A161: ②明細コード | B161: 下越地区２ | C161: 中央紙 | D161: 11 | E161: =下越２!CE23 -> 0 | F161: 2 | G161: 受注No． | H161: =IF(下越２!CF23=0,"",下越２!CF23) ->  | I161: =IF(下越２!CG23=0,"",下越２!CG23) ->  | J161: 1 | K161: =IF(下越２!CH23=0,"",下越２!CH23) -> 
A162: ②明細コード | B162: 下越地区２ | C162: 中央紙 | D162: 12 | E162: =下越２!CE15 -> 水原 | F162: 2 | G162: 受注No． | H162: =IF(下越２!CF15=0,"",下越２!CF15) -> 220160 | I162: =IF(下越２!CG15=0,"",下越２!CG15) ->  | J162: 1 | K162: =IF(下越２!CH15=0,"",下越２!CH15) -> 
A163: ②明細コード | B163: 下越地区２ | C163: 中央紙 | D163: 13 | E163: =下越２!CE16 -> 0 | F163: 2 | G163: 受注No． | H163: =IF(下越２!CF16=0,"",下越２!CF16) ->  | I163: =IF(下越２!CG16=0,"",下越２!CG16) ->  | J163: 1 | K163: =IF(下越２!CH16=0,"",下越２!CH16) -> 
A164: ②明細コード | B164: 下越地区２ | C164: 中央紙 | D164: 14 | E164: =下越２!CE17 -> 0 | F164: 2 | G164: 受注No． | H164: =IF(下越２!CF17=0,"",下越２!CF17) ->  | I164: =IF(下越２!CG17=0,"",下越２!CG17) ->  | J164: 1 | K164: =IF(下越２!CH17=0,"",下越２!CH17) -> 
A165: ②明細コード | B165: 下越地区２ | C165: 中央紙 | D165: 15 | E165: =下越２!CE20 -> 0 | F165: 2 | G165: 受注No． | H165: =IF(下越２!CF20=0,"",下越２!CF20) ->  | I165: =IF(下越２!CG20=0,"",下越２!CG20) ->  | J165: 1 | K165: =IF(下越２!CH20=0,"",下越２!CH20) -> 
A166: ②明細コード | B166: 下越地区２ | C166: 中央紙 | D166: 16 | E166: =下越２!#REF! ->  | F166: 2 | G166: 受注No． | H166: =IF(下越２!#REF!=0,"",下越２!#REF!) ->  | I166: =IF(下越２!#REF!=0,"",下越２!#REF!) ->  | J166: 1 | K166: =IF(下越２!#REF!=0,"",下越２!#REF!) -> 
A167: ②明細コード | B167: 下越地区２ | C167: 中央紙 | D167: =D166+1 -> 17 | E167: =下越２!CE22 -> 0 | F167: 2 | G167: 受注No． | H167: =IF(下越２!CF22=0,"",下越２!CF22) ->  | I167: =IF(下越２!CG22=0,"",下越２!CG22) ->  | J167: 1 | K167: =IF(下越２!CH22=0,"",下越２!CH22) -> 
A168: ②明細コード | B168: 下越地区２ | C168: 中央紙 | D168: 18 | E168: =下越２!#REF! ->  | F168: 2 | G168: 受注No． | H168: =IF(下越２!#REF!=0,"",下越２!#REF!) ->  | I168: =IF(下越２!#REF!=0,"",下越２!#REF!) ->  | J168: 1 | K168: =IF(下越２!#REF!=0,"",下越２!#REF!) -> 
A169: ②明細コード | B169: 中越地区 | C169: 日報 | D169: 1 | E169: =中越1!#REF! ->  | F169: 2 | G169: 受注No． | H169: =IF(中越1!#REF!=0,"",中越1!#REF!) ->  | I169: =IF(中越1!#REF!=0,"",中越1!#REF!) ->  | J169: 1 | K169: =IF(中越1!#REF!=0,"",中越1!#REF!) -> 
A170: ②明細コード | B170: 中越地区 | C170: 日報 | D170: =D169+1 -> 2 | E170: =中越1!BZ9 -> 長岡中央 | F170: 2 | G170: 受注No． | H170: =IF(中越1!CA9=0,"",中越1!CA9) -> 40102 | I170: =IF(中越1!CD9=0,"",中越1!CD9) ->  | J170: 1 | K170: =IF(中越1!CE9=0,"",中越1!CE9) -> 
A171: ②明細コード | B171: 中越地区 | C171: 日報 | D171: 3 | E171: =中越1!BZ10 -> 長岡南 | F171: 2 | G171: 受注No． | H171: =IF(中越1!CA10=0,"",中越1!CA10) -> 40300 | I171: =IF(中越1!CD10=0,"",中越1!CD10) ->  | J171: 1 | K171: =IF(中越1!CE10=0,"",中越1!CE10) -> 
A172: ②明細コード | B172: 中越地区 | C172: 日報 | D172: 4 | E172: =中越1!BZ11 -> 長岡東 | F172: 2 | G172: 受注No． | H172: =IF(中越1!CA11=0,"",中越1!CA11) -> 40104 | I172: =IF(中越1!CD11=0,"",中越1!CD11) ->  | J172: 1 | K172: =IF(中越1!CE11=0,"",中越1!CE11) -> 
A173: ②明細コード | B173: 中越地区 | C173: 日報 | D173: 5 | E173: =中越1!BZ12 -> 長岡新保 | F173: 2 | G173: 受注No． | H173: =IF(中越1!CA12=0,"",中越1!CA12) -> 40105 | I173: =IF(中越1!CD12=0,"",中越1!CD12) ->  | J173: 1 | K173: =IF(中越1!CE12=0,"",中越1!CE12) -> 
A174: ②明細コード | B174: 中越地区 | C174: 日報 | D174: 6 | E174: =中越1!BZ13 -> 長岡悠久 | F174: 2 | G174: 受注No． | H174: =IF(中越1!CA13=0,"",中越1!CA13) -> 40106 | I174: =IF(中越1!CD13=0,"",中越1!CD13) ->  | J174: 1 | K174: =IF(中越1!CE13=0,"",中越1!CE13) -> 
A175: ②明細コード | B175: 中越地区 | C175: 日報 | D175: 7 | E175: =中越1!BZ14 -> 西長岡 | F175: 2 | G175: 受注No． | H175: =IF(中越1!CA14=0,"",中越1!CA14) -> 40111 | I175: =IF(中越1!CD14=0,"",中越1!CD14) ->  | J175: 1 | K175: =IF(中越1!CE14=0,"",中越1!CE14) -> 
A176: ②明細コード | B176: 中越地区 | C176: 日報 | D176: 8 | E176: =中越1!BZ15 -> 関原 | F176: 2 | G176: 受注No． | H176: =IF(中越1!CA15=0,"",中越1!CA15) -> 40113 | I176: =IF(中越1!CD15=0,"",中越1!CD15) ->  | J176: 1 | K176: =IF(中越1!CE15=0,"",中越1!CE15) -> 
A177: ②明細コード | B177: 中越地区 | C177: 日報 | D177: 9 | E177: =中越1!BZ16 -> 王寺川 | F177: 2 | G177: 受注No． | H177: =IF(中越1!CA16=0,"",中越1!CA16) -> 40114 | I177: =IF(中越1!CD16=0,"",中越1!CD16) ->  | J177: 1 | K177: =IF(中越1!CE16=0,"",中越1!CE16) -> 
A178: ②明細コード | B178: 中越地区 | C178: 日報 | D178: 10 | E178: =中越1!BZ17 -> 長岡江陽 | F178: 2 | G178: 受注No． | H178: =IF(中越1!CA17=0,"",中越1!CA17) -> 40115 | I178: =IF(中越1!CD17=0,"",中越1!CD17) ->  | J178: 1 | K178: =IF(中越1!CE17=0,"",中越1!CE17) -> 
A179: ②明細コード | B179: 中越地区 | C179: 日報 | D179: 11 | E179: =中越1!BZ18 -> 黒条 | F179: 2 | G179: 受注No． | H179: =IF(中越1!CA18=0,"",中越1!CA18) -> 40116 | I179: =IF(中越1!CD18=0,"",中越1!CD18) ->  | J179: 1 | K179: =IF(中越1!CE18=0,"",中越1!CE18) -> 
A180: ②明細コード | B180: 中越地区 | C180: 日報 | D180: 12 | E180: =中越1!BZ19 -> 新組 | F180: 2 | G180: 受注No． | H180: =IF(中越1!CA19=0,"",中越1!CA19) -> 40117 | I180: =IF(中越1!CD19=0,"",中越1!CD19) ->  | J180: 1 | K180: =IF(中越1!CE19=0,"",中越1!CE19) -> 
A181: ②明細コード | B181: 中越地区 | C181: 日報 | D181: 13 | E181: =中越1!BZ20 -> 長岡宮内 | F181: 2 | G181: 受注No． | H181: =IF(中越1!CA20=0,"",中越1!CA20) -> 40121 | I181: =IF(中越1!CD20=0,"",中越1!CD20) ->  | J181: 1 | K181: =IF(中越1!CE20=0,"",中越1!CE20) -> 
A182: ②明細コード | B182: 中越地区 | C182: 日報 | D182: 14 | E182: =中越1!BZ21 -> 濁沢 | F182: 2 | G182: 受注No． | H182: =IF(中越1!CA21=0,"",中越1!CA21) -> 40124 | I182: =IF(中越1!CD21=0,"",中越1!CD21) ->  | J182: 1 | K182: =IF(中越1!CE21=0,"",中越1!CE21) -> 
A183: ②明細コード | B183: 中越地区 | C183: 日報 | D183: 15 | E183: =中越1!BZ22 -> 岡南 | F183: 2 | G183: 受注No． | H183: =IF(中越1!CA22=0,"",中越1!CA22) -> 40125 | I183: =IF(中越1!CD22=0,"",中越1!CD22) ->  | J183: 1 | K183: =IF(中越1!CE22=0,"",中越1!CE22) -> 
A184: ②明細コード | B184: 中越地区 | C184: 日報 | D184: 16 | E184: =中越1!BZ23 -> 六日市 | F184: 2 | G184: 受注No． | H184: =IF(中越1!CA23=0,"",中越1!CA23) -> 40126 | I184: =IF(中越1!CD23=0,"",中越1!CD23) ->  | J184: 1 | K184: =IF(中越1!CE23=0,"",中越1!CE23) -> 
A185: ②明細コード | B185: 中越地区 | C185: 日報 | D185: 17 | E185: =中越1!BZ24 -> 0 | F185: 2 | G185: 受注No． | H185: =IF(中越1!CA24=0,"",中越1!CA24) ->  | I185: =IF(中越1!CD24=0,"",中越1!CD24) ->  | J185: 1 | K185: =IF(中越1!CE24=0,"",中越1!CE24) -> 
A186: ②明細コード | B186: 中越地区 | C186: 日報 | D186: 18 | E186: =中越1!BZ25 -> 栃尾 | F186: 2 | G186: 受注No． | H186: =IF(中越1!CA25=0,"",中越1!CA25) -> 40127 | I186: =IF(中越1!CD25=0,"",中越1!CD25) ->  | J186: 1 | K186: =IF(中越1!CE25=0,"",中越1!CE25) -> 
A187: ②明細コード | B187: 中越地区 | C187: 日報 | D187: 19 | E187: =中越1!BZ26 -> 0 | F187: 2 | G187: 受注No． | H187: =IF(中越1!CA26=0,"",中越1!CA26) ->  | I187: =IF(中越1!CD26=0,"",中越1!CD26) ->  | J187: 1 | K187: =IF(中越1!CE26=0,"",中越1!CE26) -> 
A188: ②明細コード | B188: 中越地区 | C188: 日報 | D188: 20 | E188: =中越1!BZ27 -> 見附南 | F188: 2 | G188: 受注No． | H188: =IF(中越1!CA27=0,"",中越1!CA27) -> 40130 | I188: =IF(中越1!CD27=0,"",中越1!CD27) ->  | J188: 1 | K188: =IF(中越1!CE27=0,"",中越1!CE27) -> 
A189: ②明細コード | B189: 中越地区 | C189: 日報 | D189: 21 | E189: =中越1!BZ28 -> 見附北 | F189: 2 | G189: 受注No． | H189: =IF(中越1!CA28=0,"",中越1!CA28) -> 40131 | I189: =IF(中越1!CD28=0,"",中越1!CD28) ->  | J189: 1 | K189: =IF(中越1!CE28=0,"",中越1!CE28) -> 
A190: ②明細コード | B190: 中越地区 | C190: 日報 | D190: 22 | E190: =中越1!BZ29 -> 今町 | F190: 2 | G190: 受注No． | H190: =IF(中越1!CA29=0,"",中越1!CA29) -> 40135 | I190: =IF(中越1!CD29=0,"",中越1!CD29) ->  | J190: 1 | K190: =IF(中越1!CE29=0,"",中越1!CE29) -> 
A191: ②明細コード | B191: 中越地区 | C191: 日報 | D191: 23 | E191: =中越1!BZ30 -> 0 | F191: 2 | G191: 受注No． | H191: =IF(中越1!CA30=0,"",中越1!CA30) ->  | I191: =IF(中越1!CD30=0,"",中越1!CD30) ->  | J191: 1 | K191: =IF(中越1!CE30=0,"",中越1!CE30) -> 
A192: ②明細コード | B192: 中越地区 | C192: 日報 | D192: 24 | E192: =中越1!BZ31 -> 越路 | F192: 2 | G192: 受注No． | H192: =IF(中越1!CA31=0,"",中越1!CA31) -> 40139 | I192: =IF(中越1!CD31=0,"",中越1!CD31) ->  | J192: 1 | K192: =IF(中越1!CE31=0,"",中越1!CE31) -> 
A193: ②明細コード | B193: 中越地区 | C193: 日報 | D193: 25 | E193: =中越1!BZ32 -> 塚山 | F193: 2 | G193: 受注No． | H193: =IF(中越1!CA32=0,"",中越1!CA32) -> 40141 | I193: =IF(中越1!CD32=0,"",中越1!CD32) ->  | J193: 1 | K193: =IF(中越1!CE32=0,"",中越1!CE32) -> 
A194: ②明細コード | B194: 中越地区 | C194: 日報 | D194: 26 | E194: =中越1!#REF! ->  | F194: 2 | G194: 受注No． | H194: =IF(中越1!#REF!=0,"",中越1!#REF!) ->  | I194: =IF(中越1!#REF!=0,"",中越1!#REF!) ->  | J194: 1 | K194: =IF(中越1!#REF!=0,"",中越1!#REF!) -> 
A195: ②明細コード | B195: 中越地区 | C195: 日報 | D195: 27 | E195: =中越1!#REF! ->  | F195: 2 | G195: 受注No． | H195: =IF(中越1!#REF!=0,"",中越1!#REF!) ->  | I195: =IF(中越1!#REF!=0,"",中越1!#REF!) ->  | J195: 1 | K195: =IF(中越1!#REF!=0,"",中越1!#REF!) -> 
A196: ②明細コード | B196: 中越地区 | C196: 日報 | D196: 28 | E196: =中越1!BZ33 -> 与板 | F196: 2 | G196: 受注No． | H196: =IF(中越1!CA33=0,"",中越1!CA33) -> 40144 | I196: =IF(中越1!CD33=0,"",中越1!CD33) ->  | J196: 1 | K196: =IF(中越1!CE33=0,"",中越1!CE33) -> 
A197: ②明細コード | B197: 中越地区 | C197: 日報 | D197: 29 | E197: =中越1!BZ34 -> 大河津 | F197: 2 | G197: 受注No． | H197: =IF(中越1!CA34=0,"",中越1!CA34) -> 40145 | I197: =IF(中越1!CD34=0,"",中越1!CD34) ->  | J197: 1 | K197: =IF(中越1!CE34=0,"",中越1!CE34) -> 
A198: ②明細コード | B198: 中越地区 | C198: 日報 | D198: 30 | E198: =中越1!BZ35 -> 寺泊 | F198: 2 | G198: 受注No． | H198: =IF(中越1!CA35=0,"",中越1!CA35) -> 40146 | I198: =IF(中越1!CD35=0,"",中越1!CD35) ->  | J198: 1 | K198: =IF(中越1!CE35=0,"",中越1!CE35) -> 
A199: ②明細コード | B199: 中越地区 | C199: 日報 | D199: 31 | E199: =中越1!BZ36 -> 和島 | F199: 2 | G199: 受注No． | H199: =IF(中越1!CA36=0,"",中越1!CA36) -> 40147 | I199: =IF(中越1!CD36=0,"",中越1!CD36) ->  | J199: 1 | K199: =IF(中越1!CE36=0,"",中越1!CE36) -> 
A200: ②明細コード | B200: 中越地区 | C200: 日報 | D200: 32 | E200: =中越1!BZ37 -> 西越 | F200: 2 | G200: 受注No． | H200: =IF(中越1!CA37=0,"",中越1!CA37) -> 40148 | I200: =IF(中越1!CD37=0,"",中越1!CD37) ->  | J200: 1 | K200: =IF(中越1!CE37=0,"",中越1!CE37) -> 
... 123 more rows

Sheet ＥＤＩくるみる (hidden)
A1: 1 | B1: =A1+1 -> 2 | C1: =B1+1 -> 3 | D1: 4 | E1: 5 | F1: 6 | G1: 7 | H1: 8 | I1: 9 | J1: 10 | K1: 11 | L1: 12 | M1: 13 | N1: 14 | O1: 15 | P1: 16 | Q1: 17 | R1: 18 | S1: 19 | T1: 20 | U1: 21 | V1: 22
F2: CSV出力範囲
F3: 1 | G3: 2 | H3: 3 | I3: 4 | J3: 5 | K3: 6 | L3: 7 | M3: 8 | N3: 9 | O3: 10 | P3: 11 | Q3: 12 | R3: 13 | S3: 14 | T3: 15 | U3: 16 | V3: 17
A4: ①ヘッダーレコード | F4: 1 | G4: 0 | H4: 025669 | I4: 0 | J4: 0 | K4: 株式会社 新潟日報サービスネット | L4: データ作成日付（YYYYMMDD） | M4: 受注No． | N4: 7 | O4: 0 | P4: 0 | Q4: =新潟市!M3 -> 0 | R4: =TEXT(新潟市!A3,"yyyymmdd") -> 2023/--/-- | S4: ="くるみる折込 "&新潟市!AI3 -> くるみる折込 | T4: =新潟市!BU5 ->  | U4: =SUM(I5:I241) -> 
A5: ②明細コード | B5: 新潟市 | C5: 日報 | D5: 1 | E5: =新潟市!BU9 -> 万代 | F5: 2 | G5: 受注No． | H5: =新潟市!BV9 -> 10101 | I5: =IF(新潟市!CA9=0,"",新潟市!CA9) ->  | J5: 1
A6: ②明細コード | B6: 新潟市 | C6: 日報 | D6: =D5+1 -> 2 | E6: =新潟市!BU10 -> 駅南 | F6: 2 | G6: 受注No． | H6: =新潟市!BV10 -> 10102 | I6: =IF(新潟市!CA10=0,"",新潟市!CA10) ->  | J6: 1
A7: ②明細コード | B7: 新潟市 | C7: 日報 | D7: =D6+1 -> 3 | E7: =新潟市!BU11 -> 木戸 | F7: 2 | G7: 受注No． | H7: =新潟市!BV11 -> 10103 | I7: =IF(新潟市!CA11=0,"",新潟市!CA11) ->  | J7: 1
A8: ②明細コード | B8: 新潟市 | C8: 日報 | D8: 4 | E8: =新潟市!BU12 -> 石山東 | F8: 2 | G8: 受注No． | H8: =新潟市!BV12 -> 10105 | I8: =IF(新潟市!CA12=0,"",新潟市!CA12) ->  | J8: 1
A9: ②明細コード | B9: 新潟市 | C9: 日報 | D9: 5 | E9: =新潟市!BU13 -> 山ノ下 | F9: 2 | G9: 受注No． | H9: =新潟市!BV13 -> 10107 | I9: =IF(新潟市!CA13=0,"",新潟市!CA13) ->  | J9: 1
A10: ②明細コード | B10: 新潟市 | C10: 日報 | D10: 6 | E10: =新潟市!BU14 -> 物見山 | F10: 2 | G10: 受注No． | H10: =新潟市!BV14 -> 10108 | I10: =IF(新潟市!CA14=0,"",新潟市!CA14) ->  | J10: 1
A11: ②明細コード | B11: 新潟市 | C11: 日報 | D11: 7 | E11: =新潟市!BU15 -> とやの | F11: 2 | G11: 受注No． | H11: =新潟市!BV15 -> 10109 | I11: =IF(新潟市!CA15=0,"",新潟市!CA15) ->  | J11: 1
A12: ②明細コード | B12: 新潟市 | C12: 日報 | D12: 8 | E12: =新潟市!BU16 -> 県庁前 | F12: 2 | G12: 受注No． | H12: =新潟市!BV16 -> 10111 | I12: =IF(新潟市!CA16=0,"",新潟市!CA16) ->  | J12: 1
A13: ②明細コード | B13: 新潟市 | C13: 日報 | D13: 9 | E13: =新潟市!#REF! ->  | F13: 2 | G13: 受注No． | H13: =新潟市!#REF! ->  | I13: =IF(新潟市!#REF!=0,"",新潟市!#REF!) ->  | J13: 1
A14: ②明細コード | B14: 新潟市 | C14: 日報 | D14: 10 | E14: =新潟市!BU17 -> 愛宕 | F14: 2 | G14: 受注No． | H14: =新潟市!BV17 -> 10113 | I14: =IF(新潟市!CA17=0,"",新潟市!CA17) ->  | J14: 1
A15: ②明細コード | B15: 新潟市 | C15: 日報 | D15: 11 | E15: =新潟市!BU18 -> 河渡 | F15: 2 | G15: 受注No． | H15: =新潟市!BV18 -> 10114 | I15: =IF(新潟市!CA18=0,"",新潟市!CA18) ->  | J15: 1
A16: ②明細コード | B16: 新潟市 | C16: 日報 | D16: 12 | E16: =新潟市!BU19 -> 牡丹山 | F16: 2 | G16: 受注No． | H16: =新潟市!BV19 -> 10115 | I16: =IF(新潟市!CA19=0,"",新潟市!CA19) ->  | J16: 1
A17: ②明細コード | B17: 新潟市 | C17: 日報 | D17: 13 | E17: =新潟市!BU20 -> 大形 | F17: 2 | G17: 受注No． | H17: =新潟市!BV20 -> 10116 | I17: =IF(新潟市!CA20=0,"",新潟市!CA20) ->  | J17: 1
A18: ②明細コード | B18: 新潟市 | C18: 日報 | D18: 14 | E18: =新潟市!BU21 -> 松浜 | F18: 2 | G18: 受注No． | H18: =新潟市!BV21 -> 10117 | I18: =IF(新潟市!CA21=0,"",新潟市!CA21) ->  | J18: 1
A19: ②明細コード | B19: 新潟市 | C19: 日報 | D19: 15 | E19: =新潟市!BU22 -> 新潟南 | F19: 2 | G19: 受注No． | H19: =新潟市!BV22 -> 10118 | I19: =IF(新潟市!CA22=0,"",新潟市!CA22) ->  | J19: 1
A20: ②明細コード | B20: 新潟市 | C20: 日報 | D20: 16 | E20: =新潟市!BU23 -> 姥ケ山 | F20: 2 | G20: 受注No． | H20: =新潟市!BV23 -> 10119 | I20: =IF(新潟市!CA23=0,"",新潟市!CA23) ->  | J20: 1
A21: ②明細コード | B21: 新潟市 | C21: 日報 | D21: 17 | E21: =新潟市!BU24 -> 山二ツ | F21: 2 | G21: 受注No． | H21: =新潟市!BV24 -> 10120 | I21: =IF(新潟市!CA24=0,"",新潟市!CA24) ->  | J21: 1
A22: ②明細コード | B22: 新潟市 | C22: 日報 | D22: 18 | E22: =新潟市!BU25 -> 亀田西 | F22: 2 | G22: 受注No． | H22: =新潟市!BV25 -> 10122 | I22: =IF(新潟市!CA25=0,"",新潟市!CA25) ->  | J22: 1
A23: ②明細コード | B23: 新潟市 | C23: 日報 | D23: 19 | E23: =新潟市!BU26 -> 亀田 | F23: 2 | G23: 受注No． | H23: =新潟市!BV26 -> 10123 | I23: =IF(新潟市!CA26=0,"",新潟市!CA26) ->  | J23: 1
A24: ②明細コード | B24: 新潟市 | C24: 日報 | D24: 20 | E24: =新潟市!BU27 -> 横越 | F24: 2 | G24: 受注No． | H24: =新潟市!BV27 -> 10176 | I24: =IF(新潟市!CA27=0,"",新潟市!CA27) ->  | J24: 1
A25: ②明細コード | B25: 新潟市 | C25: 日報 | D25: 21 | E25: =新潟市!BU28 -> 有明 | F25: 2 | G25: 受注No． | H25: =新潟市!BV28 -> 10177 | I25: =IF(新潟市!CA28=0,"",新潟市!CA28) ->  | J25: 1
A26: ②明細コード | B26: 新潟市 | C26: 日報 | D26: 22 | E26: =新潟市!BU29 -> 小針 | F26: 2 | G26: 受注No． | H26: =新潟市!BV29 -> 10127 | I26: =IF(新潟市!CA29=0,"",新潟市!CA29) ->  | J26: 1
A27: ②明細コード | B27: 新潟市 | C27: 日報 | D27: 23 | E27: =新潟市!BU30 -> 中通 | F27: 2 | G27: 受注No． | H27: =新潟市!BV30 -> 10128 | I27: =IF(新潟市!CA30=0,"",新潟市!CA30) ->  | J27: 1
A28: ②明細コード | B28: 新潟市 | C28: 日報 | D28: 24 | E28: =新潟市!BU31 -> 本町 | F28: 2 | G28: 受注No． | H28: =新潟市!BV31 -> 10130 | I28: =IF(新潟市!CA31=0,"",新潟市!CA31) ->  | J28: 1
A29: ②明細コード | B29: 新潟市 | C29: 日報 | D29: 25 | E29: =新潟市!BU32 -> 中央 | F29: 2 | G29: 受注No． | H29: =新潟市!BV32 -> 10131 | I29: =IF(新潟市!CA32=0,"",新潟市!CA32) ->  | J29: 1
A30: ②明細コード | B30: 新潟市 | C30: 日報 | D30: 26 | E30: =新潟市!BU33 -> 真砂 | F30: 2 | G30: 受注No． | H30: =新潟市!BV33 -> 10133 | I30: =IF(新潟市!CA33=0,"",新潟市!CA33) ->  | J30: 1
A31: ②明細コード | B31: 新潟市 | C31: 日報 | D31: 27 | E31: =新潟市!BU34 -> 寺尾 | F31: 2 | G31: 受注No． | H31: =新潟市!BV34 -> 10134 | I31: =IF(新潟市!CA34=0,"",新潟市!CA34) ->  | J31: 1
A32: ②明細コード | B32: 新潟市 | C32: 日報 | D32: 28 | E32: =新潟市!BU35 -> 新大前 | F32: 2 | G32: 受注No． | H32: =新潟市!BV35 -> 10135 | I32: =IF(新潟市!CA35=0,"",新潟市!CA35) ->  | J32: 1
A33: ②明細コード | B33: 新潟市 | C33: 日報 | D33: 29 | E33: =新潟市!BU36 -> 内野 | F33: 2 | G33: 受注No． | H33: =新潟市!BV36 -> 10136 | I33: =IF(新潟市!CA36=0,"",新潟市!CA36) ->  | J33: 1
A34: ②明細コード | B34: 新潟市 | C34: 日報 | D34: 30 | E34: =新潟市!BU37 -> 西内野 | F34: 2 | G34: 受注No． | H34: =新潟市!BV37 -> 10137 | I34: =IF(新潟市!CA37=0,"",新潟市!CA37) ->  | J34: 1
A35: ②明細コード | B35: 新潟市 | C35: 日報 | D35: 31 | E35: =新潟市!#REF! ->  | F35: 2 | G35: 受注No． | H35: =新潟市!#REF! ->  | I35: =IF(新潟市!#REF!=0,"",新潟市!#REF!) ->  | J35: 1
A36: ②明細コード | B36: 新潟市 | C36: 日報 | D36: 32 | E36: =新潟市!BU38 -> 小新 | F36: 2 | G36: 受注No． | H36: =新潟市!BV38 -> 10140 | I36: =IF(新潟市!CA38=0,"",新潟市!CA38) ->  | J36: 1
A37: ②明細コード | B37: 新潟市 | C37: 日報 | D37: 33 | E37: =新潟市!BU39 -> 寺地 | F37: 2 | G37: 受注No． | H37: =新潟市!BV39 -> 10141 | I37: =IF(新潟市!CA39=0,"",新潟市!CA39) ->  | J37: 1
A38: ②明細コード | B38: 新潟市 | C38: 日報 | D38: 34 | E38: =新潟市!BU40 -> 黒埼 | F38: 2 | G38: 受注No． | H38: =新潟市!BV40 -> 10178 | I38: =IF(新潟市!CA40=0,"",新潟市!CA40) ->  | J38: 1
A39: ②明細コード | B39: 新潟市 | C39: 日報 | D39: 35 | E39: =新潟市!BU41 -> 黒埼南 | F39: 2 | G39: 受注No． | H39: =新潟市!BV41 -> 10143 | I39: =IF(新潟市!CA41=0,"",新潟市!CA41) ->  | J39: 1
A40: ②明細コード | B40: 下越地区1 | C40: 日報 | D40: 1 | E40: =下越1!BU9 -> 分水 | F40: 2 | G40: 受注No． | H40: =IF(下越1!BV9=0,"",下越1!BV9) -> 20101 | I40: =IF(下越1!CA9=0,"",下越1!CA9) ->  | J40: 1
A41: ②明細コード | B41: 下越地区1 | C41: 日報 | D41: =D40+1 -> 2 | E41: =下越1!BU10 -> 吉田 | F41: 2 | G41: 受注No． | H41: =IF(下越1!BV10=0,"",下越1!BV10) -> 20102 | I41: =IF(下越1!CA10=0,"",下越1!CA10) ->  | J41: 1
A42: ②明細コード | B42: 下越地区1 | C42: 日報 | D42: =D41+1 -> 3 | E42: =下越1!BU11 -> 粟生津 | F42: 2 | G42: 受注No． | H42: =IF(下越1!BV11=0,"",下越1!BV11) -> 20104 | I42: =IF(下越1!CA11=0,"",下越1!CA11) ->  | J42: 1
A43: ②明細コード | B43: 下越地区1 | C43: 日報 | D43: 4 | E43: =下越1!BU12 -> 巻 | F43: 2 | G43: 受注No． | H43: =IF(下越1!BV12=0,"",下越1!BV12) -> 20105 | I43: =IF(下越1!CA12=0,"",下越1!CA12) ->  | J43: 1
A44: ②明細コード | B44: 下越地区1 | C44: 日報 | D44: 5 | E44: =下越1!BU13 -> 岩室 | F44: 2 | G44: 受注No． | H44: =IF(下越1!BV13=0,"",下越1!BV13) -> 20108 | I44: =IF(下越1!CA13=0,"",下越1!CA13) ->  | J44: 1
A45: ②明細コード | B45: 下越地区1 | C45: 日報 | D45: 6 | E45: =下越1!BU14 -> 西川 | F45: 2 | G45: 受注No． | H45: =IF(下越1!BV14=0,"",下越1!BV14) -> 20109 | I45: =IF(下越1!CA14=0,"",下越1!CA14) ->  | J45: 1
A46: ②明細コード | B46: 下越地区1 | C46: 日報 | D46: 7 | E46: =下越1!BU15 -> 中之口 | F46: 2 | G46: 受注No． | H46: =IF(下越1!BV15=0,"",下越1!BV15) -> 20110 | I46: =IF(下越1!CA15=0,"",下越1!CA15) ->  | J46: 1
A47: ②明細コード | B47: 下越地区1 | C47: 日報 | D47: 8 | E47: =下越1!BU16 -> 弥彦 | F47: 2 | G47: 受注No． | H47: =IF(下越1!BV16=0,"",下越1!BV16) -> 20111 | I47: =IF(下越1!CA16=0,"",下越1!CA16) ->  | J47: 1
A48: ②明細コード | B48: 下越地区1 | C48: 日報 | D48: 9 | E48: =下越1!BU17 -> 0 | F48: 2 | G48: 受注No． | H48: =IF(下越1!BV17=0,"",下越1!BV17) ->  | I48: =IF(下越1!CA17=0,"",下越1!CA17) ->  | J48: 1
A49: ②明細コード | B49: 下越地区1 | C49: 日報 | D49: 10 | E49: =下越1!BU18 -> 小須戸 | F49: 2 | G49: 受注No． | H49: =IF(下越1!BV18=0,"",下越1!BV18) -> 20112 | I49: =IF(下越1!CA18=0,"",下越1!CA18) ->  | J49: 1
A50: ②明細コード | B50: 下越地区1 | C50: 日報 | D50: 11 | E50: =下越1!BU19 -> 矢代田 | F50: 2 | G50: 受注No． | H50: =IF(下越1!BV19=0,"",下越1!BV19) -> 20113 | I50: =IF(下越1!CA19=0,"",下越1!CA19) ->  | J50: 1
A51: ②明細コード | B51: 下越地区1 | C51: 日報 | D51: 12 | E51: =下越1!BU20 -> 村松 | F51: 2 | G51: 受注No． | H51: =IF(下越1!BV20=0,"",下越1!BV20) -> 20114 | I51: =IF(下越1!CA20=0,"",下越1!CA20) ->  | J51: 1
A52: ②明細コード | B52: 下越地区1 | C52: 日報 | D52: 13 | E52: =下越1!BU21 -> 0 | F52: 2 | G52: 受注No． | H52: =IF(下越1!BV21=0,"",下越1!BV21) ->  | I52: =IF(下越1!CA21=0,"",下越1!CA21) ->  | J52: 1
A53: ②明細コード | B53: 下越地区1 | C53: 日報 | D53: 14 | E53: =下越1!BU22 -> 新津 | F53: 2 | G53: 受注No． | H53: =IF(下越1!BV22=0,"",下越1!BV22) -> 20116 | I53: =IF(下越1!CA22=0,"",下越1!CA22) ->  | J53: 1
A54: ②明細コード | B54: 下越地区1 | C54: 日報 | D54: 15 | E54: =下越1!BU23 -> 新津・荻川 | F54: 2 | G54: 受注No． | H54: =IF(下越1!BV23=0,"",下越1!BV23) -> 20181 | I54: =IF(下越1!CA23=0,"",下越1!CA23) ->  | J54: 1
A55: ②明細コード | B55: 下越地区1 | C55: 日報 | D55: 16 | E55: =下越1!BU24 -> 0 | F55: 2 | G55: 受注No． | H55: =IF(下越1!BV24=0,"",下越1!BV24) ->  | I55: =IF(下越1!CA24=0,"",下越1!CA24) ->  | J55: 1
A56: ②明細コード | B56: 下越地区1 | C56: 日報 | D56: 17 | E56: =下越1!BU25 -> 五泉 | F56: 2 | G56: 受注No． | H56: =IF(下越1!BV25=0,"",下越1!BV25) -> 20117 | I56: =IF(下越1!CA25=0,"",下越1!CA25) ->  | J56: 1
A57: ②明細コード | B57: 下越地区1 | C57: 日報 | D57: 18 | E57: =下越1!BU27 -> 保田・馬下 | F57: 2 | G57: 受注No． | H57: =IF(下越1!BV27=0,"",下越1!BV27) -> 20183 | I57: =IF(下越1!CA27=0,"",下越1!CA27) ->  | J57: 1
A58: ②明細コード | B58: 下越地区1 | C58: 日報 | D58: 19 | E58: =下越1!BU28 -> 0 | F58: 2 | G58: 受注No． | H58: =IF(下越1!BV28=0,"",下越1!BV28) ->  | I58: =IF(下越1!CA28=0,"",下越1!CA28) ->  | J58: 1
A59: ②明細コード | B59: 下越地区1 | C59: 日報 | D59: 20 | E59: =下越1!BU29 -> 白根 | F59: 2 | G59: 受注No． | H59: =IF(下越1!BV29=0,"",下越1!BV29) -> 20120 | I59: =IF(下越1!CA29=0,"",下越1!CA29) ->  | J59: 1
A60: ②明細コード | B60: 下越地区1 | C60: 日報 | D60: 21 | E60: =下越1!BU30 -> 月潟 | F60: 2 | G60: 受注No． | H60: =IF(下越1!BV30=0,"",下越1!BV30) -> 20122 | I60: =IF(下越1!CA30=0,"",下越1!CA30) ->  | J60: 1
A61: ②明細コード | B61: 下越地区1 | C61: 日報 | D61: 22 | E61: =下越1!BU31 -> 新飯田 | F61: 2 | G61: 受注No． | H61: =IF(下越1!BV31=0,"",下越1!BV31) -> 20123 | I61: =IF(下越1!CA31=0,"",下越1!CA31) ->  | J61: 1
A62: ②明細コード | B62: 下越地区1 | C62: 日報 | D62: 23 | E62: =下越1!BU32 -> 0 | F62: 2 | G62: 受注No． | H62: =IF(下越1!BV32=0,"",下越1!BV32) ->  | I62: =IF(下越1!CA32=0,"",下越1!CA32) ->  | J62: 1
A63: ②明細コード | B63: 下越地区1 | C63: 日報 | D63: 24 | E63: =下越1!BU33 -> 三条北 | F63: 2 | G63: 受注No． | H63: =IF(下越1!BV33=0,"",下越1!BV33) -> 20124 | I63: =IF(下越1!CA33=0,"",下越1!CA33) ->  | J63: 1
A64: ②明細コード | B64: 下越地区1 | C64: 日報 | D64: 25 | E64: =下越1!BU34 -> 三条南 | F64: 2 | G64: 受注No． | H64: =IF(下越1!BV34=0,"",下越1!BV34) -> 20125 | I64: =IF(下越1!CA34=0,"",下越1!CA34) ->  | J64: 1
A65: ②明細コード | B65: 下越地区1 | C65: 日報 | D65: 26 | E65: =下越1!#REF! ->  | F65: 2 | G65: 受注No． | H65: =IF(下越1!#REF!=0,"",下越1!#REF!) ->  | I65: =IF(下越1!#REF!=0,"",下越1!#REF!) ->  | J65: 1
A66: ②明細コード | B66: 下越地区1 | C66: 日報 | D66: 27 | E66: =下越1!BU35 -> 0 | F66: 2 | G66: 受注No． | H66: =IF(下越1!BV35=0,"",下越1!BV35) ->  | I66: =IF(下越1!CA35=0,"",下越1!CA35) ->  | J66: 1
A67: ②明細コード | B67: 下越地区1 | C67: 日報 | D67: 28 | E67: =下越1!BU36 -> 燕 | F67: 2 | G67: 受注No． | H67: =IF(下越1!BV36=0,"",下越1!BV36) -> 20130 | I67: =IF(下越1!CA36=0,"",下越1!CA36) ->  | J67: 1
A68: ②明細コード | B68: 下越地区1 | C68: 日報 | D68: 29 | E68: =下越1!BU37 -> 燕南 | F68: 2 | G68: 受注No． | H68: =IF(下越1!BV37=0,"",下越1!BV37) -> 20131 | I68: =IF(下越1!CA37=0,"",下越1!CA37) ->  | J68: 1
A69: ②明細コード | B69: 下越地区1 | C69: 日報 | D69: 30 | E69: =下越1!BU38 -> 0 | F69: 2 | G69: 受注No． | H69: =IF(下越1!BV38=0,"",下越1!BV38) ->  | I69: =IF(下越1!CA38=0,"",下越1!CA38) ->  | J69: 1
A70: ②明細コード | B70: 下越地区1 | C70: 日報 | D70: 31 | E70: =下越1!BU39 -> 加茂 | F70: 2 | G70: 受注No． | H70: =IF(下越1!BV39=0,"",下越1!BV39) -> 20135 | I70: =IF(下越1!CA39=0,"",下越1!CA39) ->  | J70: 1
A71: ②明細コード | B71: 下越地区1 | C71: 日報 | D71: 32 | E71: =下越1!BU40 -> 0 | F71: 2 | G71: 受注No． | H71: =IF(下越1!BV40=0,"",下越1!BV40) ->  | I71: =IF(下越1!CA40=0,"",下越1!CA40) ->  | J71: 1
A72: ②明細コード | B72: 下越地区1 | C72: 日報 | D72: 33 | E72: =下越1!BU41 -> 下田 | F72: 2 | G72: 受注No． | H72: =IF(下越1!BV41=0,"",下越1!BV41) -> 20139 | I72: =IF(下越1!CA41=0,"",下越1!CA41) ->  | J72: 1
A73: ②明細コード | B73: 下越地区1 | C73: 日報 | D73: 34 | E73: =下越1!BU42 -> 栄山嵜 | F73: 2 | G73: 受注No． | H73: =IF(下越1!BV42=0,"",下越1!BV42) -> 20140 | I73: =IF(下越1!CA42=0,"",下越1!CA42) ->  | J73: 1
A74: ②明細コード | B74: 下越地区1 | C74: 日報 | D74: 35 | E74: =下越1!BU43 -> 栄吉田 | F74: 2 | G74: 受注No． | H74: =IF(下越1!BV43=0,"",下越1!BV43) -> 20141 | I74: =IF(下越1!CA43=0,"",下越1!CA43) ->  | J74: 1
A75: ②明細コード | B75: 下越地区1 | C75: 日報 | D75: 36 | E75: =下越1!BU44 -> 帯織 | F75: 2 | G75: 受注No． | H75: =IF(下越1!BV44=0,"",下越1!BV44) -> 20143 | I75: =IF(下越1!CA44=0,"",下越1!CA44) ->  | J75: 1
A76: ②明細コード | B76: 下越地区1 | C76: 日報 | D76: 37 | E76: =下越1!BU45 -> 0 | F76: 2 | G76: 受注No． | H76: =IF(下越1!BV45=0,"",下越1!BV45) ->  | I76: =IF(下越1!CA45=0,"",下越1!CA45) ->  | J76: 1
A77: ②明細コード | B77: 下越地区1 | C77: 日報 | D77: 38 | E77: =下越1!BU46 -> 豊栄 | F77: 2 | G77: 受注No． | H77: =IF(下越1!BV46=0,"",下越1!BV46) -> 20179 | I77: =IF(下越1!CA46=0,"",下越1!CA46) ->  | J77: 1
A78: ②明細コード | B78: 下越地区1 | C78: 日報 | D78: 39 | E78: =下越1!#REF! ->  | F78: 2 | G78: 受注No． | H78: =IF(下越1!#REF!=0,"",下越1!#REF!) ->  | I78: =IF(下越1!#REF!=0,"",下越1!#REF!) ->  | J78: 1
A79: ②明細コード | B79: 下越地区1 | C79: 日報 | D79: 40 | E79: =下越1!BU47 -> 木崎 | F79: 2 | G79: 受注No． | H79: =IF(下越1!BV47=0,"",下越1!BV47) -> 20146 | I79: =IF(下越1!CA47=0,"",下越1!CA47) ->  | J79: 1
A80: ②明細コード | B80: 下越地区２ | C80: 日報 | D80: 1 | E80: =下越２!BU9 -> 新発田西 | F80: 2 | G80: 受注No． | H80: =IF(下越２!BV9=0,"",下越２!BV9) -> 20148 | I80: =IF(下越２!CA9=0,"",下越２!CA9) ->  | J80: 1
A81: ②明細コード | B81: 下越地区２ | C81: 日報 | D81: 2 | E81: =下越２!BU10 -> 新発田東 | F81: 2 | G81: 受注No． | H81: =IF(下越２!BV10=0,"",下越２!BV10) -> 20149 | I81: =IF(下越２!CA10=0,"",下越２!CA10) ->  | J81: 1
A82: ②明細コード | B82: 下越地区２ | C82: 日報 | D82: 3 | E82: =下越２!BU11 -> 月岡 | F82: 2 | G82: 受注No． | H82: =IF(下越２!BV11=0,"",下越２!BV11) -> 20153 | I82: =IF(下越２!CA11=0,"",下越２!CA11) ->  | J82: 1
A83: ②明細コード | B83: 下越地区２ | C83: 日報 | D83: 4 | E83: =下越２!BU12 -> ※木崎ミニック | F83: 2 | G83: 受注No． | H83: =IF(下越２!BV12=0,"",下越２!BV12) -> 20180 | I83: =IF(下越２!CA12=0,"",下越２!CA12) ->  | J83: 1
A84: ②明細コード | B84: 下越地区２ | C84: 日報 | D84: 5 | E84: =下越２!BU13 -> 0 | F84: 2 | G84: 受注No． | H84: =IF(下越２!BV13=0,"",下越２!BV13) ->  | I84: =IF(下越２!CA13=0,"",下越２!CA13) ->  | J84: 1
A85: ②明細コード | B85: 下越地区２ | C85: 日報 | D85: 6 | E85: =下越２!BU14 -> 中条東 | F85: 2 | G85: 受注No． | H85: =IF(下越２!BV14=0,"",下越２!BV14) -> 20154 | I85: =IF(下越２!CA14=0,"",下越２!CA14) ->  | J85: 1
A86: ②明細コード | B86: 下越地区２ | C86: 日報 | D86: 7 | E86: =下越２!BU15 -> 西中条 | F86: 2 | G86: 受注No． | H86: =IF(下越２!BV15=0,"",下越２!BV15) -> 20155 | I86: =IF(下越２!CA15=0,"",下越２!CA15) ->  | J86: 1
A87: ②明細コード | B87: 下越地区２ | C87: 日報 | D87: 8 | E87: =下越２!BU16 -> 黒川 | F87: 2 | G87: 受注No． | H87: =IF(下越２!BV16=0,"",下越２!BV16) -> 20157 | I87: =IF(下越２!CA16=0,"",下越２!CA16) ->  | J87: 1
A88: ②明細コード | B88: 下越地区２ | C88: 日報 | D88: 9 | E88: =下越２!BU17 -> 水原 | F88: 2 | G88: 受注No． | H88: =IF(下越２!BV17=0,"",下越２!BV17) -> 20158 | I88: =IF(下越２!CA17=0,"",下越２!CA17) ->  | J88: 1
A89: ②明細コード | B89: 下越地区２ | C89: 日報 | D89: 10 | E89: =下越２!BU18 -> 保田 | F89: 2 | G89: 受注No． | H89: =IF(下越２!BV18=0,"",下越２!BV18) -> 20161 | I89: =IF(下越２!CA18=0,"",下越２!CA18) ->  | J89: 1
A90: ②明細コード | B90: 下越地区２ | C90: 日報 | D90: 11 | E90: =下越２!BU19 -> 0 | F90: 2 | G90: 受注No． | H90: =IF(下越２!BV19=0,"",下越２!BV19) ->  | I90: =IF(下越２!CA19=0,"",下越２!CA19) ->  | J90: 1
A91: ②明細コード | B91: 下越地区２ | C91: 日報 | D91: 12 | E91: =下越２!BU20 -> 村上 | F91: 2 | G91: 受注No． | H91: =IF(下越２!BV20=0,"",下越２!BV20) -> 20162 | I91: =IF(下越２!CA20=0,"",下越２!CA20) ->  | J91: 1
A92: ②明細コード | B92: 下越地区２ | C92: 日報 | D92: 13 | E92: =下越２!BU21 -> 岩船 | F92: 2 | G92: 受注No． | H92: =IF(下越２!BV21=0,"",下越２!BV21) -> 20163 | I92: =IF(下越２!CA21=0,"",下越２!CA21) ->  | J92: 1
A93: ②明細コード | B93: 下越地区２ | C93: 日報 | D93: 14 | E93: =下越２!BU22 -> 越後早川 | F93: 2 | G93: 受注No． | H93: =IF(下越２!BV22=0,"",下越２!BV22) -> 20164 | I93: =IF(下越２!CA22=0,"",下越２!CA22) ->  | J93: 1
A94: ②明細コード | B94: 下越地区２ | C94: 日報 | D94: 15 | E94: =下越２!BU23 -> 0 | F94: 2 | G94: 受注No． | H94: =IF(下越２!BV23=0,"",下越２!BV23) ->  | I94: =IF(下越２!CA23=0,"",下越２!CA23) ->  | J94: 1
A95: ②明細コード | B95: 下越地区２ | C95: 日報 | D95: 16 | E95: =下越２!BU24 -> 坂町 | F95: 2 | G95: 受注No． | H95: =IF(下越２!BV24=0,"",下越２!BV24) -> 20165 | I95: =IF(下越２!CA24=0,"",下越２!CA24) ->  | J95: 1
A96: ②明細コード | B96: 下越地区２ | C96: 日報 | D96: 17 | E96: =下越２!#REF! ->  | F96: 2 | G96: 受注No． | H96: =IF(下越２!#REF!=0,"",下越２!#REF!) ->  | I96: =IF(下越２!#REF!=0,"",下越２!#REF!) ->  | J96: 1
A97: ②明細コード | B97: 下越地区２ | C97: 日報 | D97: =D96+1 -> 18 | E97: =下越２!BU25 -> 関川 | F97: 2 | G97: 受注No． | H97: =IF(下越２!BV25=0,"",下越２!BV25) -> 20167 | I97: =IF(下越２!CA25=0,"",下越２!CA25) ->  | J97: 1
A98: ②明細コード | B98: 下越地区２ | C98: 日報 | D98: 19 | E98: =下越２!#REF! ->  | F98: 2 | G98: 受注No． | H98: =IF(下越２!#REF!=0,"",下越２!#REF!) ->  | I98: =IF(下越２!#REF!=0,"",下越２!#REF!) ->  | J98: 1
A99: ②明細コード | B99: 下越地区２ | C99: 日報 | D99: 20 | E99: =下越２!BU26 -> 府屋 | F99: 2 | G99: 受注No． | H99: =IF(下越２!BV26=0,"",下越２!BV26) -> 20170 | I99: =IF(下越２!CA26=0,"",下越２!CA26) ->  | J99: 1
A100: ②明細コード | B100: 下越地区２ | C100: 日報 | D100: 21 | E100: =下越２!BU27 -> 黒川俣 | F100: 2 | G100: 受注No． | H100: =IF(下越２!BV27=0,"",下越２!BV27) -> 20172 | I100: =IF(下越２!CA27=0,"",下越２!CA27) ->  | J100: 1
A101: ②明細コード | B101: 下越地区２ | C101: 日報 | D101: 22 | E101: =下越２!BU28 -> 0 | F101: 2 | G101: 受注No． | H101: =IF(下越２!BV28=0,"",下越２!BV28) ->  | I101: =IF(下越２!CA28=0,"",下越２!CA28) ->  | J101: 1
A102: ②明細コード | B102: 下越地区２ | C102: 日報 | D102: 23 | E102: =下越２!BU29 -> 津川 | F102: 2 | G102: 受注No． | H102: =IF(下越２!BV29=0,"",下越２!BV29) -> 20173 | I102: =IF(下越２!CA29=0,"",下越２!CA29) ->  | J102: 1
A103: ②明細コード | B103: 下越地区２ | C103: 日報 | D103: 24 | E103: =下越２!BU30 -> 豊実 | F103: 2 | G103: 受注No． | H103: =IF(下越２!BV30=0,"",下越２!BV30) -> 20174 | I103: =IF(下越２!CA30=0,"",下越２!CA30) ->  | J103: 1
A104: ②明細コード | B104: 下越地区２ | C104: 日報 | D104: 25 | E104: =下越２!BU31 -> 日出谷 | F104: 2 | G104: 受注No． | H104: =IF(下越２!BV31=0,"",下越２!BV31) -> 20175 | I104: =IF(下越２!CA31=0,"",下越２!CA31) ->  | J104: 1
A105: ②明細コード | B105: 下越地区２ | C105: 日報 | D105: 26 | E105: =下越２!BU32 -> 鹿瀬 | F105: 2 | G105: 受注No． | H105: =IF(下越２!BV32=0,"",下越２!BV32) -> 20176 | I105: =IF(下越２!CA32=0,"",下越２!CA32) ->  | J105: 1
A106: ②明細コード | B106: 下越地区２ | C106: 日報 | D106: 27 | E106: =下越２!BU33 -> 白崎 | F106: 2 | G106: 受注No． | H106: =IF(下越２!BV33=0,"",下越２!BV33) -> 20177 | I106: =IF(下越２!CA33=0,"",下越２!CA33) ->  | J106: 1
A107: ②明細コード | B107: 下越地区２ | C107: 日報 | D107: 28 | E107: =下越２!BU35 -> 保田・五十島 | F107: 2 | G107: 受注No． | H107: =IF(下越２!BV35=0,"",下越２!BV35) -> 20182 | I107: =IF(下越２!CA35=0,"",下越２!CA35) ->  | J107: 1
A108: ②明細コード | B108: 下越地区２ | C108: 日報 | D108: 29 | E108: =下越２!BU36 -> 0 | F108: 2 | G108: 受注No． | H108: =IF(下越２!BV36=0,"",下越２!BV36) ->  | I108: =IF(下越２!CA36=0,"",下越２!CA36) ->  | J108: 1
A109: ②明細コード | B109: 下越地区２ | C109: 日報 | D109: 30 | E109: =下越２!BU37 -> 小国 | F109: 2 | G109: 受注No． | H109: =IF(下越２!BV37=0,"",下越２!BV37) -> 20201 | I109: =IF(下越２!CA37=0,"",下越２!CA37) ->  | J109: 1
A110: ②明細コード | B110: 下越地区２ | C110: 日報 | D110: 31 | E110: =下越２!BU38 -> 0 | F110: 2 | G110: 受注No． | H110: =IF(下越２!BV38=0,"",下越２!BV38) ->  | I110: =IF(下越２!CA38=0,"",下越２!CA38) ->  | J110: 1
A111: ②明細コード | B111: 下越地区２ | C111: 日報 | D111: 32 | E111: =下越２!BU39 -> 両津 | F111: 2 | G111: 受注No． | H111: =IF(下越２!BV39=0,"",下越２!BV39) -> 30101 | I111: =IF(下越２!CA39=0,"",下越２!CA39) ->  | J111: 1
A112: ②明細コード | B112: 下越地区２ | C112: 日報 | D112: 33 | E112: =下越２!BU40 -> 吉井 | F112: 2 | G112: 受注No． | H112: =IF(下越２!BV40=0,"",下越２!BV40) -> 30105 | I112: =IF(下越２!CA40=0,"",下越２!CA40) ->  | J112: 1
A113: ②明細コード | B113: 下越地区２ | C113: 日報 | D113: 34 | E113: =下越２!#REF! ->  | F113: 2 | G113: 受注No． | H113: =IF(下越２!#REF!=0,"",下越２!#REF!) ->  | I113: =IF(下越２!#REF!=0,"",下越２!#REF!) ->  | J113: 1
A114: ②明細コード | B114: 下越地区２ | C114: 日報 | D114: 35 | E114: =下越２!BU41 -> 0 | F114: 2 | G114: 受注No． | H114: =IF(下越２!BV41=0,"",下越２!BV41) ->  | I114: =IF(下越２!CA41=0,"",下越２!CA41) ->  | J114: 1
A115: ②明細コード | B115: 下越地区２ | C115: 日報 | D115: 36 | E115: =下越２!BU42 -> 真野 | F115: 2 | G115: 受注No． | H115: =IF(下越２!BV42=0,"",下越２!BV42) -> 30106 | I115: =IF(下越２!CA42=0,"",下越２!CA42) ->  | J115: 1
A116: ②明細コード | B116: 下越地区２ | C116: 日報 | D116: 37 | E116: =下越２!BU43 -> 新穂 | F116: 2 | G116: 受注No． | H116: =IF(下越２!BV43=0,"",下越２!BV43) -> 30108 | I116: =IF(下越２!CA43=0,"",下越２!CA43) ->  | J116: 1
A117: ②明細コード | B117: 下越地区２ | C117: 日報 | D117: 38 | E117: =下越２!BU44 -> 畑野 | F117: 2 | G117: 受注No． | H117: =IF(下越２!BV44=0,"",下越２!BV44) -> 30111 | I117: =IF(下越２!CA44=0,"",下越２!CA44) ->  | J117: 1
A118: ②明細コード | B118: 下越地区２ | C118: 日報 | D118: 39 | E118: =下越２!BU45 -> 佐和田 | F118: 2 | G118: 受注No． | H118: =IF(下越２!BV45=0,"",下越２!BV45) -> 30114 | I118: =IF(下越２!CA45=0,"",下越２!CA45) ->  | J118: 1
A119: ②明細コード | B119: 下越地区２ | C119: 日報 | D119: 40 | E119: =下越２!BU46 -> 相川 | F119: 2 | G119: 受注No． | H119: =IF(下越２!BV46=0,"",下越２!BV46) -> 30110 | I119: =IF(下越２!CA46=0,"",下越２!CA46) ->  | J119: 1
A120: ②明細コード | B120: 下越地区２ | C120: 日報 | D120: 41 | E120: =下越２!BU47 -> 金井 | F120: 2 | G120: 受注No． | H120: =IF(下越２!BV47=0,"",下越２!BV47) -> 30121 | I120: =IF(下越２!CA47=0,"",下越２!CA47) ->  | J120: 1
A121: ②明細コード | B121: 下越地区２ | C121: 日報 | D121: 42 | E121: =下越２!BU48 -> 羽茂 | F121: 2 | G121: 受注No． | H121: =IF(下越２!BV48=0,"",下越２!BV48) -> 30122 | I121: =IF(下越２!CA48=0,"",下越２!CA48) ->  | J121: 1
A122: ②明細コード | B122: 下越地区２ | C122: 日報 | D122: 43 | E122: =下越２!BU49 -> 小木 | F122: 2 | G122: 受注No． | H122: =IF(下越２!BV49=0,"",下越２!BV49) -> 30124 | I122: =IF(下越２!CA49=0,"",下越２!CA49) ->  | J122: 1
A123: ②明細コード | B123: 下越地区２ | C123: 日報 | D123: 44 | E123: =下越２!BU50 -> 赤泊 | F123: 2 | G123: 受注No． | H123: =IF(下越２!BV50=0,"",下越２!BV50) -> 30127 | I123: =IF(下越２!CA50=0,"",下越２!CA50) ->  | J123: 1
A124: ②明細コード | B124: 下越地区２ | C124: 日報 | D124: 45 | E124: =下越２!BU51 -> 多田 | F124: 2 | G124: 受注No． | H124: =IF(下越２!BV51=0,"",下越２!BV51) -> 30130 | I124: =IF(下越２!CA51=0,"",下越２!CA51) ->  | J124: 1
A125: ②明細コード | B125: 中越地区 | C125: 日報 | D125: 1 | E125: =中越1!#REF! ->  | F125: 2 | G125: 受注No． | H125: =IF(中越1!#REF!=0,"",中越1!#REF!) ->  | I125: =IF(中越1!#REF!=0,"",中越1!#REF!) ->  | J125: 1
A126: ②明細コード | B126: 中越地区 | C126: 日報 | D126: =D125+1 -> 2 | E126: =中越1!BZ9 -> 長岡中央 | F126: 2 | G126: 受注No． | H126: =IF(中越1!CA9=0,"",中越1!CA9) -> 40102 | I126: =IF(中越1!CF9=0,"",中越1!CF9) ->  | J126: 1
A127: ②明細コード | B127: 中越地区 | C127: 日報 | D127: 3 | E127: =中越1!BZ10 -> 長岡南 | F127: 2 | G127: 受注No． | H127: =IF(中越1!CA10=0,"",中越1!CA10) -> 40300 | I127: =IF(中越1!CF10=0,"",中越1!CF10) ->  | J127: 1
A128: ②明細コード | B128: 中越地区 | C128: 日報 | D128: 4 | E128: =中越1!BZ11 -> 長岡東 | F128: 2 | G128: 受注No． | H128: =IF(中越1!CA11=0,"",中越1!CA11) -> 40104 | I128: =IF(中越1!CF11=0,"",中越1!CF11) ->  | J128: 1
A129: ②明細コード | B129: 中越地区 | C129: 日報 | D129: 5 | E129: =中越1!BZ12 -> 長岡新保 | F129: 2 | G129: 受注No． | H129: =IF(中越1!CA12=0,"",中越1!CA12) -> 40105 | I129: =IF(中越1!CF12=0,"",中越1!CF12) ->  | J129: 1
A130: ②明細コード | B130: 中越地区 | C130: 日報 | D130: 6 | E130: =中越1!BZ13 -> 長岡悠久 | F130: 2 | G130: 受注No． | H130: =IF(中越1!CA13=0,"",中越1!CA13) -> 40106 | I130: =IF(中越1!CF13=0,"",中越1!CF13) ->  | J130: 1
A131: ②明細コード | B131: 中越地区 | C131: 日報 | D131: 7 | E131: =中越1!BZ14 -> 西長岡 | F131: 2 | G131: 受注No． | H131: =IF(中越1!CA14=0,"",中越1!CA14) -> 40111 | I131: =IF(中越1!CF14=0,"",中越1!CF14) ->  | J131: 1
A132: ②明細コード | B132: 中越地区 | C132: 日報 | D132: 8 | E132: =中越1!BZ15 -> 関原 | F132: 2 | G132: 受注No． | H132: =IF(中越1!CA15=0,"",中越1!CA15) -> 40113 | I132: =IF(中越1!CF15=0,"",中越1!CF15) ->  | J132: 1
A133: ②明細コード | B133: 中越地区 | C133: 日報 | D133: 9 | E133: =中越1!BZ16 -> 王寺川 | F133: 2 | G133: 受注No． | H133: =IF(中越1!CA16=0,"",中越1!CA16) -> 40114 | I133: =IF(中越1!CF16=0,"",中越1!CF16) ->  | J133: 1
A134: ②明細コード | B134: 中越地区 | C134: 日報 | D134: 10 | E134: =中越1!BZ17 -> 長岡江陽 | F134: 2 | G134: 受注No． | H134: =IF(中越1!CA17=0,"",中越1!CA17) -> 40115 | I134: =IF(中越1!CF17=0,"",中越1!CF17) ->  | J134: 1
A135: ②明細コード | B135: 中越地区 | C135: 日報 | D135: 11 | E135: =中越1!BZ18 -> 黒条 | F135: 2 | G135: 受注No． | H135: =IF(中越1!CA18=0,"",中越1!CA18) -> 40116 | I135: =IF(中越1!CF18=0,"",中越1!CF18) ->  | J135: 1
A136: ②明細コード | B136: 中越地区 | C136: 日報 | D136: 12 | E136: =中越1!BZ19 -> 新組 | F136: 2 | G136: 受注No． | H136: =IF(中越1!CA19=0,"",中越1!CA19) -> 40117 | I136: =IF(中越1!CF19=0,"",中越1!CF19) ->  | J136: 1
A137: ②明細コード | B137: 中越地区 | C137: 日報 | D137: 13 | E137: =中越1!BZ20 -> 長岡宮内 | F137: 2 | G137: 受注No． | H137: =IF(中越1!CA20=0,"",中越1!CA20) -> 40121 | I137: =IF(中越1!CF20=0,"",中越1!CF20) ->  | J137: 1
A138: ②明細コード | B138: 中越地区 | C138: 日報 | D138: 14 | E138: =中越1!BZ21 -> 濁沢 | F138: 2 | G138: 受注No． | H138: =IF(中越1!CA21=0,"",中越1!CA21) -> 40124 | I138: =IF(中越1!CF21=0,"",中越1!CF21) ->  | J138: 1
A139: ②明細コード | B139: 中越地区 | C139: 日報 | D139: 15 | E139: =中越1!BZ22 -> 岡南 | F139: 2 | G139: 受注No． | H139: =IF(中越1!CA22=0,"",中越1!CA22) -> 40125 | I139: =IF(中越1!CF22=0,"",中越1!CF22) ->  | J139: 1
A140: ②明細コード | B140: 中越地区 | C140: 日報 | D140: 16 | E140: =中越1!BZ23 -> 六日市 | F140: 2 | G140: 受注No． | H140: =IF(中越1!CA23=0,"",中越1!CA23) -> 40126 | I140: =IF(中越1!CF23=0,"",中越1!CF23) ->  | J140: 1
A141: ②明細コード | B141: 中越地区 | C141: 日報 | D141: 17 | E141: =中越1!BZ24 -> 0 | F141: 2 | G141: 受注No． | H141: =IF(中越1!CA24=0,"",中越1!CA24) ->  | I141: =IF(中越1!CF24=0,"",中越1!CF24) ->  | J141: 1
A142: ②明細コード | B142: 中越地区 | C142: 日報 | D142: 18 | E142: =中越1!BZ25 -> 栃尾 | F142: 2 | G142: 受注No． | H142: =IF(中越1!CA25=0,"",中越1!CA25) -> 40127 | I142: =IF(中越1!CF25=0,"",中越1!CF25) ->  | J142: 1
A143: ②明細コード | B143: 中越地区 | C143: 日報 | D143: 19 | E143: =中越1!BZ26 -> 0 | F143: 2 | G143: 受注No． | H143: =IF(中越1!CA26=0,"",中越1!CA26) ->  | I143: =IF(中越1!CF26=0,"",中越1!CF26) ->  | J143: 1
A144: ②明細コード | B144: 中越地区 | C144: 日報 | D144: 20 | E144: =中越1!BZ27 -> 見附南 | F144: 2 | G144: 受注No． | H144: =IF(中越1!CA27=0,"",中越1!CA27) -> 40130 | I144: =IF(中越1!CF27=0,"",中越1!CF27) ->  | J144: 1
A145: ②明細コード | B145: 中越地区 | C145: 日報 | D145: 21 | E145: =中越1!BZ28 -> 見附北 | F145: 2 | G145: 受注No． | H145: =IF(中越1!CA28=0,"",中越1!CA28) -> 40131 | I145: =IF(中越1!CF28=0,"",中越1!CF28) ->  | J145: 1
A146: ②明細コード | B146: 中越地区 | C146: 日報 | D146: 22 | E146: =中越1!BZ29 -> 今町 | F146: 2 | G146: 受注No． | H146: =IF(中越1!CA29=0,"",中越1!CA29) -> 40135 | I146: =IF(中越1!CF29=0,"",中越1!CF29) ->  | J146: 1
A147: ②明細コード | B147: 中越地区 | C147: 日報 | D147: 23 | E147: =中越1!BZ30 -> 0 | F147: 2 | G147: 受注No． | H147: =IF(中越1!CA30=0,"",中越1!CA30) ->  | I147: =IF(中越1!CF30=0,"",中越1!CF30) ->  | J147: 1
A148: ②明細コード | B148: 中越地区 | C148: 日報 | D148: 24 | E148: =中越1!BZ31 -> 越路 | F148: 2 | G148: 受注No． | H148: =IF(中越1!CA31=0,"",中越1!CA31) -> 40139 | I148: =IF(中越1!CF31=0,"",中越1!CF31) ->  | J148: 1
A149: ②明細コード | B149: 中越地区 | C149: 日報 | D149: 25 | E149: =中越1!BZ32 -> 塚山 | F149: 2 | G149: 受注No． | H149: =IF(中越1!CA32=0,"",中越1!CA32) -> 40141 | I149: =IF(中越1!CF32=0,"",中越1!CF32) ->  | J149: 1
A150: ②明細コード | B150: 中越地区 | C150: 日報 | D150: 26 | E150: =中越1!#REF! ->  | F150: 2 | G150: 受注No． | H150: =IF(中越1!#REF!=0,"",中越1!#REF!) ->  | I150: =IF(中越1!#REF!=0,"",中越1!#REF!) ->  | J150: 1
A151: ②明細コード | B151: 中越地区 | C151: 日報 | D151: 27 | E151: =中越1!#REF! ->  | F151: 2 | G151: 受注No． | H151: =IF(中越1!#REF!=0,"",中越1!#REF!) ->  | I151: =IF(中越1!#REF!=0,"",中越1!#REF!) ->  | J151: 1
A152: ②明細コード | B152: 中越地区 | C152: 日報 | D152: 28 | E152: =中越1!BZ33 -> 与板 | F152: 2 | G152: 受注No． | H152: =IF(中越1!CA33=0,"",中越1!CA33) -> 40144 | I152: =IF(中越1!CF33=0,"",中越1!CF33) ->  | J152: 1
A153: ②明細コード | B153: 中越地区 | C153: 日報 | D153: 29 | E153: =中越1!BZ34 -> 大河津 | F153: 2 | G153: 受注No． | H153: =IF(中越1!CA34=0,"",中越1!CA34) -> 40145 | I153: =IF(中越1!CF34=0,"",中越1!CF34) ->  | J153: 1
A154: ②明細コード | B154: 中越地区 | C154: 日報 | D154: 30 | E154: =中越1!BZ35 -> 寺泊 | F154: 2 | G154: 受注No． | H154: =IF(中越1!CA35=0,"",中越1!CA35) -> 40146 | I154: =IF(中越1!CF35=0,"",中越1!CF35) ->  | J154: 1
A155: ②明細コード | B155: 中越地区 | C155: 日報 | D155: 31 | E155: =中越1!BZ36 -> 和島 | F155: 2 | G155: 受注No． | H155: =IF(中越1!CA36=0,"",中越1!CA36) -> 40147 | I155: =IF(中越1!CF36=0,"",中越1!CF36) ->  | J155: 1
A156: ②明細コード | B156: 中越地区 | C156: 日報 | D156: 32 | E156: =中越1!BZ37 -> 西越 | F156: 2 | G156: 受注No． | H156: =IF(中越1!CA37=0,"",中越1!CA37) -> 40148 | I156: =IF(中越1!CF37=0,"",中越1!CF37) ->  | J156: 1
A157: ②明細コード | B157: 中越地区 | C157: 日報 | D157: 33 | E157: =中越1!#REF! ->  | F157: 2 | G157: 受注No． | H157: =IF(中越1!#REF!=0,"",中越1!#REF!) ->  | I157: =IF(中越1!#REF!=0,"",中越1!#REF!) ->  | J157: 1
A158: ②明細コード | B158: 中越地区２ | C158: 日報 | D158: 1 | E158: =中越２!BU9 -> 小千谷中央 | F158: 2 | G158: 受注No． | H158: =IF(中越２!BV9=0,"",中越２!BV9) -> 40151 | I158: =IF(中越２!CA9=0,"",中越２!CA9) ->  | J158: 1
A159: ②明細コード | B159: 中越地区２ | C159: 日報 | D159: 2 | E159: =中越２!BU10 -> 小千谷東 | F159: 2 | G159: 受注No． | H159: =IF(中越２!BV10=0,"",中越２!BV10) -> 40152 | I159: =IF(中越２!CA10=0,"",中越２!CA10) ->  | J159: 1
A160: ②明細コード | B160: 中越地区２ | C160: 日報 | D160: 3 | E160: =中越２!BU11 -> 片貝 | F160: 2 | G160: 受注No． | H160: =IF(中越２!BV11=0,"",中越２!BV11) -> 40154 | I160: =IF(中越２!CA11=0,"",中越２!CA11) ->  | J160: 1
A161: ②明細コード | B161: 中越地区２ | C161: 日報 | D161: 4 | E161: =中越２!BU12 -> 岩沢 | F161: 2 | G161: 受注No． | H161: =IF(中越２!BV12=0,"",中越２!BV12) -> 40155 | I161: =IF(中越２!CA12=0,"",中越２!CA12) ->  | J161: 1
A162: ②明細コード | B162: 中越地区２ | C162: 日報 | D162: 5 | E162: =中越２!BU13 -> 0 | F162: 2 | G162: 受注No． | H162: =IF(中越２!BV13=0,"",中越２!BV13) ->  | I162: =IF(中越２!CA13=0,"",中越２!CA13) ->  | J162: 1
A163: ②明細コード | B163: 中越地区２ | C163: 日報 | D163: 6 | E163: =中越２!BU14 -> 十日町西部 | F163: 2 | G163: 受注No． | H163: =IF(中越２!BV14=0,"",中越２!BV14) -> 40156 | I163: =IF(中越２!CA14=0,"",中越２!CA14) ->  | J163: 1
A164: ②明細コード | B164: 中越地区２ | C164: 日報 | D164: 7 | E164: =中越２!BU15 -> 十日町東部 | F164: 2 | G164: 受注No． | H164: =IF(中越２!BV15=0,"",中越２!BV15) -> 40157 | I164: =IF(中越２!CA15=0,"",中越２!CA15) ->  | J164: 1
A165: ②明細コード | B165: 中越地区２ | C165: 日報 | D165: 8 | E165: =中越２!BU16 -> 下条 | F165: 2 | G165: 受注No． | H165: =IF(中越２!BV16=0,"",中越２!BV16) -> 40162 | I165: =IF(中越２!CA16=0,"",中越２!CA16) ->  | J165: 1
A166: ②明細コード | B166: 中越地区２ | C166: 日報 | D166: 9 | E166: =中越２!BU17 -> 魚沼中条 | F166: 2 | G166: 受注No． | H166: =IF(中越２!BV17=0,"",中越２!BV17) -> 40163 | I166: =IF(中越２!CA17=0,"",中越２!CA17) ->  | J166: 1
A167: ②明細コード | B167: 中越地区２ | C167: 日報 | D167: 10 | E167: =中越２!BU18 -> 水沢 | F167: 2 | G167: 受注No． | H167: =IF(中越２!BV18=0,"",中越２!BV18) -> 40164 | I167: =IF(中越２!CA18=0,"",中越２!CA18) ->  | J167: 1
A168: ②明細コード | B168: 中越地区２ | C168: 日報 | D168: 11 | E168: =中越２!BU19 -> 伊達 | F168: 2 | G168: 受注No． | H168: =IF(中越２!BV19=0,"",中越２!BV19) -> 40165 | I168: =IF(中越２!CA19=0,"",中越２!CA19) ->  | J168: 1
A169: ②明細コード | B169: 中越地区２ | C169: 日報 | D169: 12 | E169: =中越２!BU20 -> 0 | F169: 2 | G169: 受注No． | H169: =IF(中越２!BV20=0,"",中越２!BV20) ->  | I169: =IF(中越２!CA20=0,"",中越２!CA20) ->  | J169: 1
A170: ②明細コード | B170: 中越地区２ | C170: 日報 | D170: 13 | E170: =中越２!BU21 -> 川口 | F170: 2 | G170: 受注No． | H170: =IF(中越２!BV21=0,"",中越２!BV21) -> 40166 | I170: =IF(中越２!CA21=0,"",中越２!CA21) ->  | J170: 1
A171: ②明細コード | B171: 中越地区２ | C171: 日報 | D171: 14 | E171: =中越２!BU22 -> 堀之内 | F171: 2 | G171: 受注No． | H171: =IF(中越２!BV22=0,"",中越２!BV22) -> 40167 | I171: =IF(中越２!CA22=0,"",中越２!CA22) ->  | J171: 1
A172: ②明細コード | B172: 中越地区２ | C172: 日報 | D172: 15 | E172: =中越２!BU23 -> 小出 | F172: 2 | G172: 受注No． | H172: =IF(中越２!BV23=0,"",中越２!BV23) -> 40168 | I172: =IF(中越２!CA23=0,"",中越２!CA23) ->  | J172: 1
A173: ②明細コード | B173: 中越地区２ | C173: 日報 | D173: 16 | E173: =中越２!BU24 -> 魚沼北 | F173: 2 | G173: 受注No． | H173: =IF(中越２!BV24=0,"",中越２!BV24) -> 40172 | I173: =IF(中越２!CA24=0,"",中越２!CA24) ->  | J173: 1
A174: ②明細コード | B174: 中越地区２ | C174: 日報 | D174: 17 | E174: =中越２!BU25 -> 0 | F174: 2 | G174: 受注No． | H174: =IF(中越２!BV25=0,"",中越２!BV25) ->  | I174: =IF(中越２!CA25=0,"",中越２!CA25) ->  | J174: 1
A175: ②明細コード | B175: 中越地区２ | C175: 日報 | D175: 18 | E175: =中越２!BU26 -> 浦佐 | F175: 2 | G175: 受注No． | H175: =IF(中越２!BV26=0,"",中越２!BV26) -> 40176 | I175: =IF(中越２!CA26=0,"",中越２!CA26) ->  | J175: 1
A176: ②明細コード | B176: 中越地区２ | C176: 日報 | D176: 19 | E176: =中越２!BU27 -> 大崎 | F176: 2 | G176: 受注No． | H176: =IF(中越２!BV27=0,"",中越２!BV27) -> 40178 | I176: =IF(中越２!CA27=0,"",中越２!CA27) ->  | J176: 1
A177: ②明細コード | B177: 中越地区２ | C177: 日報 | D177: 20 | E177: =中越２!BU28 -> 五日町 | F177: 2 | G177: 受注No． | H177: =IF(中越２!BV28=0,"",中越２!BV28) -> 40179 | I177: =IF(中越２!CA28=0,"",中越２!CA28) ->  | J177: 1
A178: ②明細コード | B178: 中越地区２ | C178: 日報 | D178: 21 | E178: =中越２!BU29 -> 城内 | F178: 2 | G178: 受注No． | H178: =IF(中越２!BV29=0,"",中越２!BV29) -> 40180 | I178: =IF(中越２!CA29=0,"",中越２!CA29) ->  | J178: 1
A179: ②明細コード | B179: 中越地区２ | C179: 日報 | D179: 22 | E179: =中越２!BU30 -> 六日町 | F179: 2 | G179: 受注No． | H179: =IF(中越２!BV30=0,"",中越２!BV30) -> 40181 | I179: =IF(中越２!CA30=0,"",中越２!CA30) ->  | J179: 1
A180: ②明細コード | B180: 中越地区２ | C180: 日報 | D180: =D179+1 -> 23 | E180: =中越２!BU31 -> 塩沢 | F180: 2 | G180: 受注No． | H180: =IF(中越２!BV31=0,"",中越２!BV31) -> 40184 | I180: =IF(中越２!CA31=0,"",中越２!CA31) ->  | J180: 1
A181: ②明細コード | B181: 中越地区２ | C181: 日報 | D181: 24 | E181: =中越２!BU32 -> 上田 | F181: 2 | G181: 受注No． | H181: =IF(中越２!BV32=0,"",中越２!BV32) -> 40186 | I181: =IF(中越２!CA32=0,"",中越２!CA32) ->  | J181: 1
A182: ②明細コード | B182: 中越地区２ | C182: 日報 | D182: 25 | E182: =中越２!#REF! ->  | F182: 2 | G182: 受注No． | H182: =IF(中越２!#REF!=0,"",中越２!#REF!) ->  | I182: =IF(中越２!#REF!=0,"",中越２!#REF!) ->  | J182: 1
A183: ②明細コード | B183: 中越地区２ | C183: 日報 | D183: 26 | E183: =中越２!BU33 -> 湯沢 | F183: 2 | G183: 受注No． | H183: =IF(中越２!BV33=0,"",中越２!BV33) -> 40189 | I183: =IF(中越２!CA33=0,"",中越２!CA33) ->  | J183: 1
A184: ②明細コード | B184: 中越地区２ | C184: 日報 | D184: 27 | E184: =中越２!BU34 -> 0 | F184: 2 | G184: 受注No． | H184: =IF(中越２!BV34=0,"",中越２!BV34) ->  | I184: =IF(中越２!CA34=0,"",中越２!CA34) ->  | J184: 1
A185: ②明細コード | B185: 中越地区２ | C185: 日報 | D185: 28 | E185: =中越２!BU35 -> 十日町川西 | F185: 2 | G185: 受注No． | H185: =IF(中越２!BV35=0,"",中越２!BV35) -> 40192 | I185: =IF(中越２!CA35=0,"",中越２!CA35) ->  | J185: 1
A186: ②明細コード | B186: 中越地区２ | C186: 日報 | D186: 29 | E186: =中越２!BU36 -> 仙田 | F186: 2 | G186: 受注No． | H186: =IF(中越２!BV36=0,"",中越２!BV36) -> 40193 | I186: =IF(中越２!CA36=0,"",中越２!CA36) ->  | J186: 1
A187: ②明細コード | B187: 中越地区２ | C187: 日報 | D187: 30 | E187: =中越２!BU37 -> 田沢 | F187: 2 | G187: 受注No． | H187: =IF(中越２!BV37=0,"",中越２!BV37) -> 40194 | I187: =IF(中越２!CA37=0,"",中越２!CA37) ->  | J187: 1
A188: ②明細コード | B188: 中越地区２ | C188: 日報 | D188: 31 | E188: =中越２!#REF! ->  | F188: 2 | G188: 受注No． | H188: =IF(中越２!#REF!=0,"",中越２!#REF!) ->  | I188: =IF(中越２!#REF!=0,"",中越２!#REF!) ->  | J188: 1
A189: ②明細コード | B189: 中越地区２ | C189: 日報 | D189: 32 | E189: =中越２!BU38 -> 津南 | F189: 2 | G189: 受注No． | H189: =IF(中越２!BV38=0,"",中越２!BV38) -> 340197 | I189: =IF(中越２!CA38=0,"",中越２!CA38) ->  | J189: 1
A190: ②明細コード | B190: 中越地区２ | C190: 日報 | D190: 33 | E190: =中越２!BU39 -> 上郷 | F190: 2 | G190: 受注No． | H190: =IF(中越２!BV39=0,"",中越２!BV39) -> 40199 | I190: =IF(中越２!CA39=0,"",中越２!CA39) ->  | J190: 1
A191: ②明細コード | B191: 中越地区２ | C191: 日報 | D191: 34 | E191: =中越２!BU40 -> 森宮野原 | F191: 2 | G191: 受注No． | H191: =IF(中越２!BV40=0,"",中越２!BV40) -> 40200 | I191: =IF(中越２!CA40=0,"",中越２!CA40) ->  | J191: 1
A192: ②明細コード | B192: 上越 | C192: 日報 | D192: 1 | E192: =上越1!BU9 -> 柏崎中央 | F192: 2 | G192: 受注No． | H192: =IF(上越1!BV9=0,"",上越1!BV9) -> 40229 | I192: =IF(上越1!CA9=0,"",上越1!CA9) ->  | J192: 1
A193: ②明細コード | B193: 上越 | C193: 日報 | D193: =D192+1 -> 2 | E193: =上越1!BU10 -> 柏崎 | F193: 2 | G193: 受注No． | H193: =IF(上越1!BV10=0,"",上越1!BV10) -> 40202 | I193: =IF(上越1!CA10=0,"",上越1!CA10) ->  | J193: 1
A194: ②明細コード | B194: 上越 | C194: 日報 | D194: 3 | E194: =上越1!BU11 -> 柏崎南 | F194: 2 | G194: 受注No． | H194: =IF(上越1!BV11=0,"",上越1!BV11) -> 40203 | I194: =IF(上越1!CA11=0,"",上越1!CA11) ->  | J194: 1
A195: ②明細コード | B195: 上越 | C195: 日報 | D195: 4 | E195: =上越1!BU12 -> 0 | F195: 2 | G195: 受注No． | H195: =IF(上越1!BV12=0,"",上越1!BV12) ->  | I195: =IF(上越1!CA12=0,"",上越1!CA12) ->  | J195: 1
A196: ②明細コード | B196: 上越 | C196: 日報 | D196: 5 | E196: =上越1!#REF! ->  | F196: 2 | G196: 受注No． | H196: =IF(上越1!#REF!=0,"",上越1!#REF!) ->  | I196: =IF(上越1!#REF!=0,"",上越1!#REF!) ->  | J196: 1
A197: ②明細コード | B197: 上越 | C197: 日報 | D197: 6 | E197: =上越1!BU13 -> 安田 | F197: 2 | G197: 受注No． | H197: =IF(上越1!BV13=0,"",上越1!BV13) -> 40211 | I197: =IF(上越1!CA13=0,"",上越1!CA13) ->  | J197: 1
A198: ②明細コード | B198: 上越 | C198: 日報 | D198: 7 | E198: =上越1!BU14 -> 北条 | F198: 2 | G198: 受注No． | H198: =IF(上越1!BV14=0,"",上越1!BV14) -> 40212 | I198: =IF(上越1!CA14=0,"",上越1!CA14) ->  | J198: 1
A199: ②明細コード | B199: 上越 | C199: 日報 | D199: 8 | E199: =上越1!BU15 -> 広田 | F199: 2 | G199: 受注No． | H199: =IF(上越1!BV15=0,"",上越1!BV15) -> 40213 | I199: =IF(上越1!CA15=0,"",上越1!CA15) ->  | J199: 1
A200: ②明細コード | B200: 上越 | C200: 日報 | D200: 9 | E200: =上越1!BU16 -> 米山 | F200: 2 | G200: 受注No． | H200: =IF(上越1!BV16=0,"",上越1!BV16) -> 40228 | I200: =IF(上越1!CA16=0,"",上越1!CA16) ->  | J200: 1
... 51 more rows

Sheet 折込指示 (hidden)
B2: 折込指示 | D2: サイズ | E2: コード | G2: ガタチラ掲載 | I2: 曜日 | K2: assh実施日 | M2: assh曜日
B3: スポンサー中心に入れ | D3: Ｂ1 | E3: 01 | G3: 有 | I3: 月 | K3: --年 --月 --日 （--曜） | M3: 第2木曜
B4: スポンサー寄りに入れ | D4: Ｂ2 | E4: 02 | G4: 無 | I4: 火 | K4: 202103112 | M4: 第4木曜
B5: 住宅地中心に入れ | D5: Ｂ3 | E5: 03 | I5: 水 | K5: 202103254
B6: 会場中心に入れ | D6: Ｂ4 | E6: 04 | I6: 木 | K6: 202104082
B7: 会場寄りに入れ | D7: Ｂ5 | E7: 05 | I7: 金 | K7: 202104224
D8: Ｂ3厚 | E8: 13 | I8: 土 | K8: 202105132
D9: Ｂ4厚 | E9: 14 | I9: 日 | K9: 202105274
D10: Ｂ5厚 | E10: 15 | K10: 202106102
D11: 長Ｂ3 | E11: 22 | K11: 202106244
D12: Ｂ3＋Ｂ4 | E12: 23
D13: Ｂ3*2 | E13: 24
D14: Ｂ3*3 | E14: 25
D15: Ｂ1連合 | E15: 41
D16: Ｂ2連合 | E16: 42
D17: Ｂ3連合 | E17: 43
D18: Ｂ4連合 | E18: 44
D19: Ａ4証紙 | E19: 54
D20: 特 | E20: 90
D21: -
D22: A4（Ｂ4） | E22: 04
D23: A3（Ｂ3） | E23: 03

Sheet ＭＡＰ反映 (hidden)
A1: Seq-No | B1: 銘柄 | C1: コード | D1: 販売店コード | E1: 販売店名 | F1: 基本部数 | G1: 依頼部数 | H1: 割合 | I1: 区域指定 | J1: フラグ | K1: 地区コード | L1: 地区名 | M1: 面積占有率
B2: 日報 | C2: 401NN000000101001 | D2: 0101001 | E2: 万代 | F2: 4600
B3: 日報 | C3: 401NN000000101002 | D3: 0101002 | E3: 駅南 | F3: 5330
B4: 日報 | C4: 401NN000000101003 | D4: 0101003 | E4: 木戸 | F4: 5730
B5: 日報 | C5: 401NN000000101005 | D5: 0101005 | E5: 石山東 | F5: 6530
B6: 日報 | C6: 401NN000000101006 | D6: 0101006 | E6: 山ノ下 | F6: 4830
B7: 日報 | C7: 401NN000000101007 | D7: 0101007 | E7: 物見山 | F7: 4230
B8: 日報 | C8: 401NN000000101008 | D8: 0101008 | E8: とやの | F8: 3500
B9: 日報 | C9: 401NN000000101009 | D9: 0101009 | E9: 上所 | F9: 1660
B10: 日報 | C10: 401NN000000101010 | D10: 0101010 | E10: 県庁前 | F10: 3600
B11: 日報 | C11: 401NN000000101011 | D11: 0101011 | E11: 女池 | F11: 2630
B12: 日報 | C12: 401NN000000101012 | D12: 0101012 | E12: 愛宕 | F12: 4800
B13: 日報 | C13: 401NN000000101013 | D13: 0101013 | E13: 河渡 | F13: 5250
B14: 日報 | C14: 401NN000000101014 | D14: 0101014 | E14: 牡丹山 | F14: 2150
B15: 日報 | C15: 401NN000000101015 | D15: 0101015 | E15: 大形 | F15: 4190
B16: 日報 | C16: 401NN000000101016 | D16: 0101016 | E16: アガノ | F16: 7150
B17: 日報 | C17: 401NN000000101017 | D17: 0101017 | E17: 新潟南 | F17: 3470
B18: 日報 | C18: 401NN000000101018 | D18: 0101018 | E18: 姥ケ山 | F18: 3000
B19: 日報 | C19: 401NN000000101019 | D19: 0101019 | E19: 山二ツ | F19: 3000
B20: 日報 | C20: 401NN000000101021 | D20: 0101021 | E20: 亀田西 | F20: 2950
B21: 日報 | C21: 401NN000000101022 | D21: 0101022 | E21: 亀田 | F21: 4430
B22: 日報 | C22: 401NN000000101023 | D22: 0101023 | E22: 横越 | F22: 2520
B23: 日報 | C23: 401NN000000101024 | D23: 0101024 | E23: 有明 | F23: 6800
B24: 日報 | C24: 401NN000000101026 | D24: 0101026 | E24: 小針 | F24: 7500
B25: 日報 | C25: 401NN000000101027 | D25: 0101027 | E25: 中通 | F25: 3300
B26: 日報 | C26: 401NN000000101029 | D26: 0101029 | E26: 本町 | F26: 3000
B27: 日報 | C27: 401NN000000101030 | D27: 0101030 | E27: 中央 | F27: 3400
B28: 日報 | C28: 401NN000000101031 | D28: 0101031 | E28: 真砂 | F28: 2250
B29: 日報 | C29: 401NN000000101032 | D29: 0101032 | E29: 寺尾 | F29: 6450
B30: 日報 | C30: 401NN000000101033 | D30: 0101033 | E30: 新大前 | F30: 3040
B31: 日報 | C31: 401NN000000101034 | D31: 0101034 | E31: 内野 | F31: 3220
B32: 日報 | C32: 401NN000000101035 | D32: 0101035 | E32: 西内野 | F32: 2570
B33: 日報 | C33: 401NN000000101036 | D33: 0101036 | E33: 上坂井 | F33: 2620
B34: 日報 | C34: 401NN000000101037 | D34: 0101037 | E34: 小新 | F34: 2900
B35: 日報 | C35: 401NN000000101038 | D35: 0101038 | E35: 寺地 | F35: 1870
B36: 日報 | C36: 401NN000000101039 | D36: 0101039 | E36: 黒埼 | F36: 3540
B37: 日報 | C37: 401NN000000101040 | D37: 0101040 | E37: 黒埼南 | F37: 3550
B38: ア | C38: 101NN000000103006 | D38: 0103006 | E38: 新潟西 | F38: 3130
B39: ア | C39: 101NN000000103007 | D39: 0103007 | E39: 内野 | F39: 1240
B40: ヨサ日 | C40: 103NN000000103014 | D40: 0103014 | E40: 本町 | F40: 1150
B41: ヨサ日 | C41: 103NN000000103015 | D41: 0103015 | E41: 中央 | F41: 2400
B42: ヨサ日 | C42: 103NN000000103016 | D42: 0103016 | E42: 小針 | F42: 1720
B43: ヨサ日 | C43: 103NN000000103017 | D43: 0103017 | E43: 寺尾 | F43: 1450
B44: ヨサ日 | C44: 103NN000000103018 | D44: 0103018 | E44: 内野 | F44: 1850
B45: ヨサ日 | C45: 103NN000000103019 | D45: 0103019 | E45: 小新黒埼 | F45: 1100
B46: ヨサ日 | C46: 103NN000000103020 | D46: 0103020 | E46: 黒埼南 | F46: 450
B47: ヨサ日 | C47: 103NN000000103021 | D47: 0103021 | E47: 万代 | F47: 2200
B48: ヨサ日 | C48: 103NN000000103022 | D48: 0103022 | E48: 県庁前 | F48: 3800
B49: ヨサ日 | C49: 103NN000000103023 | D49: 0103023 | E49: 駅南東 | F49: 2100
B50: ヨサ日 | C50: 103NN000000103024 | D50: 0103024 | E50: 山木戸 | F50: 1780
B51: ヨサ日 | C51: 103NN000000103025 | D51: 0103025 | E51: 山ノ下 | F51: 1930
B52: ヨサ日 | C52: 103NN000000103026 | D52: 0103026 | E52: 松浜 | F52: 500
B53: ヨサ日 | C53: 103NN000000103028 | D53: 0103028 | E53: 亀田 | F53: 2500
B54: 合 | C54: 401NN000000201001 | D54: 0201001 | E54: 分水 | F54: 4050
B55: 新アマヨ日 | C55: 401NN000000201002 | D55: 0201002 | E55: 吉田 | F55: 5150
B56: サ | C56: 105NN000000201003 | D56: 0201003 | E56: 吉田 | F56: 300
B57: 合 | C57: 401NN000000201004 | D57: 0201004 | E57: 粟生津 | F57: 1000
B58: 朝刊+ク | C58: 401NN000000201005 | D58: 0201005 | E58: 巻 | F58: 6730
B59: アサ | C59: 101NN000000201006 | D59: 0201006 | E59: 巻 | F59: 750
B60: ヨ | C60: 103NN000000201007 | D60: 0201007 | E60: 巻 | F60: 810
B61: 朝刊+ク | C61: 401NN000000201008 | D61: 0201008 | E61: 岩室 | F61: 730
B62: 朝刊+ク | C62: 401NN000000201009 | D62: 0201009 | E62: 西川 | F62: 4500
B63: 合 | C63: 401NN000000201010 | D63: 0201010 | E63: 中之口 | F63: 1180
B64: 合 | C64: 401NN000000201011 | D64: 0201011 | E64: 弥彦 | F64: 2300
B65: 合 | C65: 401NN000000202001 | D65: 0202001 | E65: 小須戸 | F65: 3620
B66: 朝刊+ク | C66: 401NN000000202002 | D66: 0202002 | E66: 矢代田 | F66: 900
B67: 新マヨ日 | C67: 401NN000000202003 | D67: 0202003 | E67: 村松 | F67: 4500
B68: アサ | C68: 101NN000000202004 | D68: 0202004 | E68: 村松 | F68: 590
B69: 朝刊+ク | C69: 401NN000000203001 | D69: 0203001 | E69: 新津 | F69: 16500
B70: 新マヨ日 | C70: 401NN000000204001 | D70: 0204001 | E70: 五泉 | F70: 8600
B71: アサ | C71: 101NN000000204002 | D71: 0204002 | E71: 五泉 | F71: 750
B72: 合 | C72: 401NN000000204003 | D72: 0204003 | E72: 馬下 | F72: 450
B73: 朝刊+ク | C73: 401NN000000205001 | D73: 0205001 | E73: 白根 | F73: 3550
B74: ヨサ | C74: 103NN000000205002 | D74: 0205002 | E74: 白根 | F74: 1140
B75: 朝刊+ク | C75: 401NN000000205003 | D75: 0205003 | E75: 月潟 | F75: 1840
B76: 朝刊+ク | C76: 401NN000000205004 | D76: 0205004 | E76: 新飯田 | F76: 1030
B77: 新アマサ日 | C77: 401NN000000206001 | D77: 0206001 | E77: 三条北 | F77: 7400
B78: 新アマサ日 | C78: 401NN000000206002 | D78: 0206002 | E78: 三条南 | F78: 2560
B79: 新アマサ日 | C79: 401NN000000206003 | D79: 0206003 | E79: 三条西 | F79: 3300
B80: ヨ | C80: 103NN000000206006 | D80: 0206006 | E80: 三条 | F80: 6000
B81: 朝刊+ク | C81: 401NN000000207001 | D81: 0207001 | E81: 燕 | F81: 7060
B82: 新アマサ日 | C82: 401NN000000207002 | D82: 0207002 | E82: 燕南 | F82: 1400
B83: ヨ | C83: 103NN000000207005 | D83: 0207005 | E83: 燕 | F83: 3160
B84: 朝刊+ク | C84: 401NN000000208001 | D84: 0208001 | E84: 加茂 | F84: 9200
B85: ヨ | C85: 103NN000000208003 | D85: 0208003 | E85: 加茂 | F85: 1900
B86: 合 | C86: 401NN000000209001 | D86: 0209001 | E86: 下田 | F86: 2310
B87: 合 | C87: 401NN000000209002 | D87: 0209002 | E87: 栄山嵜 | F87: 1330
B88: 合 | C88: 401NN000000209003 | D88: 0209003 | E88: 栄吉田 | F88: 330
B89: 合 | C89: 401NN000000209005 | D89: 0209005 | E89: 帯織 | F89: 390
B90: 朝刊+ク | C90: 401NN000000210001 | D90: 0210001 | E90: 豊栄北 | F90: 3150
B91: 朝刊+ク | C91: 401NN000000210002 | D91: 0210002 | E91: 豊栄南※ | F91: 2800
B92: ヨサ日 | C92: 103NN000000210002 | D92: 0210002 | E92: 豊栄 | F92: 1050
B93: 朝刊+ク | C93: 401NN000000210003 | D93: 0210003 | E93: 木崎 | F93: 2550
B94: 朝刊+ク | C94: 401NN000000211002 | D94: 0211002 | E94: 新発田西 | F94: 10650
B95: 朝刊+ク | C95: 401NN000000211003 | D95: 0211003 | E95: 新発田東 | F95: 10250
B96: ア | C96: 101NN000000211004 | D96: 0211004 | E96: 新発田 | F96: 1850
B97: ヨサ | C97: 103NN000000211005 | D97: 0211005 | E97: 新発田 | F97: 4200
B98: 合 | C98: 401NN000000211006 | D98: 0211006 | E98: 月岡 | F98: 2250
B99: 新アマ日 | C99: 401NN000000212001 | D99: 0212001 | E99: 中条東 | F99: 2120
B100: 新アマ日 | C100: 401NN000000212002 | D100: 0212002 | E100: 西中条 | F100: 1600
B101: ヨ | C101: 103NN000000212003 | D101: 0212003 | E101: 中条 | F101: 1150
B102: 合 | C102: 401NN000000212004 | D102: 0212004 | E102: 黒川 | F102: 2590
B103: 朝刊+ク | C103: 401NN000000212005 | D103: 0212005 | E103: 水原※ | F103: 6350
B104: ヨサ | C104: 103NN000000212006 | D104: 0212006 | E104: 水原 | F104: 1290
B105: 合 | C105: 401NN000000212007 | D105: 0212007 | E105: 保田 | F105: 2710
B106: 合 | C106: 401NN000000213001 | D106: 0213001 | E106: 村上 | F106: 8450
B107: 合 | C107: 401NN000000213002 | D107: 0213002 | E107: 岩船 | F107: 1800
B108: 合 | C108: 401NN000000213003 | D108: 0213003 | E108: 越後早川 | F108: 350
B109: 合 | C109: 401NN000000214001 | D109: 0214001 | E109: 坂町 | F109: 2500
B110: 合 | C110: 401NN000000214002 | D110: 0214002 | E110: 平林 | F110: 1100
B111: 合 | C111: 401NN000000214003 | D111: 0214003 | E111: 関川 | F111: 1400
B112: 合 | C112: 401NN000000214004 | D112: 0214004 | E112: 寒川桑川 | F112: 270
B113: 合 | C113: 401NN000000214005 | D113: 0214005 | E113: 府屋 | F113: 790
B114: 合 | C114: 401NN000000214006 | D114: 0214006 | E114: 黒川俣 | F114: 280
B115: 合 | C115: 401NN000000215001 | D115: 0215001 | E115: 津川 | F115: 1880
B116: 合 | C116: 401NN000000215002 | D116: 0215002 | E116: 豊実 | F116: 80
B117: 合 | C117: 401NN000000215003 | D117: 0215003 | E117: 日出谷 | F117: 230
B118: 合 | C118: 401NN000000215004 | D118: 0215004 | E118: 鹿瀬 | F118: 400
B119: 合 | C119: 401NN000000215005 | D119: 0215005 | E119: 白崎 | F119: 680
B120: 合 | C120: 401NN000000215006 | D120: 0215006 | E120: 五十島 | F120: 200
B121: 新マ日 | C121: 401NN000000301001 | D121: 0301001 | E121: 両津 | F121: 2600
B122: ア | C122: 101NN000000301002 | D122: 0301002 | E122: 両津 | F122: 800
B123: ヨ | C123: 103NN000000301003 | D123: 0301003 | E123: 両津 | F123: 800
B124: サ | C124: 105NN000000301004 | D124: 0301004 | E124: 両津 | F124: 400
B125: 新マ日 | C125: 401NN000000301005 | D125: 0301005 | E125: 吉井 | F125: 240
B126: 新サ | C126: 401NN000000302001 | D126: 0302001 | E126: 真野 | F126: 900
B127: アマヨサ日 | C127: 101NN000000302002 | D127: 0302002 | E127: 真野 | F127: 280
B128: 新マサ日 | C128: 401NN000000302003 | D128: 0302003 | E128: 新穂 | F128: 800
B129: ア | C129: 101NN000000302004 | D129: 0302004 | E129: 新穂 | F129: 100
B130: 新 | C130: 401NN000000302006 | D130: 0302006 | E130: 畑野 | F130: 780
B131: アマヨサ日 | C131: 101NN000000302007 | D131: 0302007 | E131: 畑野 | F131: 280
B132: 新アマ日 | C132: 401NN000000302008 | D132: 0302008 | E132: 佐和田 | F132: 1700
B133: ヨサ | C133: 103NN000000302010 | D133: 0302010 | E133: 佐和田 | F133: 400
B134: ヨア | C134: 103NN000000302011 | D134: 0302011 | E134: 沢根 | F134: 100
B135: 合 | C135: 401NN000000302012 | D135: 0302012 | E135: 相川 | F135: 1150
B136: ア | C136: 101NN000000302013 | D136: 0302013 | E136: 相川 | F136: 250
B137: ヨサ | C137: 103NN000000302014 | D137: 0302014 | E137: 相川 | F137: 250
B138: 合 | C138: 401NN000000302015 | D138: 0302015 | E138: 金井 | F138: 1020
B139: 新 | C139: 401NN000000302016 | D139: 0302016 | E139: 羽茂 | F139: 650
B140: アマヨサ日 | C140: 101NN000000302017 | D140: 0302017 | E140: 羽茂 | F140: 300
B141: 新 | C141: 401NN000000302018 | D141: 0302018 | E141: 小木 | F141: 530
B142: アマサ日 | C142: 101NN000000302019 | D142: 0302019 | E142: 小木 | F142: 250
B143: ヨ | C143: 103NN000000302020 | D143: 0302020 | E143: 小木 | F143: 200
B144: 新マ日 | C144: 401NN000000302021 | D144: 0302021 | E144: 赤泊 | F144: 500
B145: アヨサ | C145: 101NN000000302022 | D145: 0302022 | E145: 赤泊 | F145: 100
B146: 合 | C146: 401NN000000302023 | D146: 0302023 | E146: 多田 | F146: 130
B147: 新アマサ日 | C147: 401NN000000401001 | D147: 0401001 | E147: 長岡大手 | F147: 2700
B148: 朝刊+ク | C148: 401NN000000401002 | D148: 0401002 | E148: 長岡中央 | F148: 4950
B149: 新アマサ日 | C149: 401NN000000401003 | D149: 0401003 | E149: 長岡南 | F149: 1810
B150: 朝刊＋ク | C150: 401NN000000401004 | D150: 0401004 | E150: 長岡東 | F150: 4850
B151: 新アマサ日 | C151: 401NN000000401005 | D151: 0401005 | E151: 長岡新保 | F151: 3690
B152: 新アマサ日 | C152: 103NN000000401008 | D152: 0401008 | E152: 長岡悠久 | F152: 3650
B153: ヨ | C153: 103NN000000401009 | D153: 0401009 | E153: 長岡 | F153: 3550
B154: ヨ | C154: 401NN000000401010 | D154: 0401010 | E154: 長岡南部 | F154: 1580
B155: 新アマサ日 | C155: 103NN000000401011 | D155: 0401011 | E155: 西長岡 | F155: 4320
B156: ヨ | C156: 401NN000000401012 | D156: 0401012 | E156: 長岡西部 | F156: 2830
B157: 新アマサ日 | C157: 401NN000000401013 | D157: 0401013 | E157: 関原 | F157: 4870
B158: 合 | C158: 401NN000000401014 | D158: 0401014 | E158: 王寺川 | F158: 520
B159: 新アマサ日 | C159: 401NN000000401015 | D159: 0401015 | E159: 長岡江陽 | F159: 2260
B160: 合 | C160: 401NN000000401016 | D160: 0401016 | E160: 黒条 | F160: 2000
B161: 合 | C161: 103NN000000401018 | D161: 0401018 | E161: 新組 | F161: 1600
B162: ヨサ日 | C162: 401NN000000401020 | D162: 0401020 | E162: 浦瀬 | F162: 220
B163: 新アマサ日 | C163: 103NN000000401022 | D163: 0401022 | E163: 長岡宮内 | F163: 4680
B164: ヨ | C164: 401NN000000401023 | D164: 0401023 | E164: 長岡宮内 | F164: 1500
B165: 合 | C165: 401NN000000401024 | D165: 0401024 | E165: 濁沢 | F165: 400
B166: 合 | C166: 401NN000000401025 | D166: 0401025 | E166: 岡南 | F166: 850
B167: 合 | C167: 401NN000000401888 | D167: 0401888 | E167: 六日市 | F167: 380
B168: 新アマサ | C168: 401NN000000402001 | D168: 0402001 | E168: 栃尾 | F168: 3100
B169: ヨ日 | C169: 103NN000000402003 | D169: 0402003 | E169: 栃尾 | F169: 2570
B170: 新アマサ日 | C170: 401NN000000403001 | D170: 0403001 | E170: 見附南 （椿沢含む） | F170: 2950
B171: 新アマ日 | C171: 401NN000000403002 | D171: 0403002 | E171: 見附北 | F171: 3900
B172: ヨ | C172: 103NN000000403003 | D172: 0403003 | E172: 見附 | F172: 1650
B173: サ | C173: 105NN000000403004 | D173: 0403004 | E173: 見附 | F173: 880
B174: 新アマサ日 | C174: 401NN000000403005 | D174: 0403005 | E174: 今町 | F174: 3400
B175: ヨ | C175: 103NN000000403006 | D175: 0403006 | E175: 今町 | F175: 650
B176: 新アマサ日 | C176: 401NN000000404001 | D176: 0404001 | E176: 越路 | F176: 3260
B177: ヨ | C177: 103NN000000404002 | D177: 0404002 | E177: 来迎寺 | F177: 980
B178: 合 | C178: 401NN000000404003 | D178: 0404003 | E178: 塚山 | F178: 1120
B179: 合 | C179: 401NN000000404004 | D179: 0404004 | E179: 脇野町 | F179: 1180
B180: 合 | C180: 401NN000000404005 | D180: 0404005 | E180: 槙原 | F180: 280
B181: 合 | C181: 401NN000000404006 | D181: 0404006 | E181: 与板 | F181: 1780
B182: 合 | C182: 401NN000000404007 | D182: 0404007 | E182: 大河津 | F182: 1260
B183: 合 | C183: 401NN000000404008 | D183: 0404008 | E183: 寺泊 | F183: 1380
B184: 合 | C184: 401NN000000404009 | D184: 0404009 | E184: 和島 | F184: 1120
B185: 合 | C185: 401NN000000404010 | D185: 0404010 | E185: 西越 （石地含む） | F185: 1050
B186: 合 | C186: 401NN000000404011 | D186: 0404011 | E186: 出雲崎 | F186: 800
B187: 新アマサ日 | C187: 401NN000000405001 | D187: 0405001 | E187: 小千谷中央 | F187: 4200
B188: 新アマサ日 | C188: 401NN000000405002 | D188: 0405002 | E188: 小千谷東 | F188: 1850
B189: ヨ | C189: 103NN000000405003 | D189: 0405003 | E189: 小千谷 | F189: 1750
B190: 合 | C190: 401NN000000405004 | D190: 0405004 | E190: 片貝 | F190: 1690
B191: 合 | C191: 401NN000000405005 | D191: 0405005 | E191: 岩沢 | F191: 710
B192: 新アマサ日 | C192: 401NN000000406001 | D192: 0406001 | E192: 十日町西部 | F192: 3290
B193: 新アマサ日 | C193: 401NN000000406002 | D193: 0406002 | E193: 十日町東部 | F193: 1160
B194: ヨ日 | C194: 103NN000000406004 | D194: 0406004 | E194: 十日町 | F194: 1470
B195: 合 | C195: 401NN000000406006 | D195: 0406006 | E195: 下条 | F195: 1240
B196: 合 | C196: 401NN000000406007 | D196: 0406007 | E196: 魚沼中条 | F196: 1050
B197: 合 | C197: 401NN000000406008 | D197: 0406008 | E197: 水沢 | F197: 860
B198: 合 | C198: 401NN000000406009 | D198: 0406009 | E198: 伊達 | F198: 380
B199: 合 | C199: 401NN000000407001 | D199: 0407001 | E199: 川口 | F199: 1210
B200: 合 | C200: 401NN000000407002 | D200: 0407002 | E200: 堀之内 | F200: 2080
... 85 more rows
